{"text_format":"1","workbook":"xlsx","n_sheets":11,"sheets":["１　整数＋整数(同符号)","２　整数＋整数(異符号)","３　分数＋分数(同符号)","４　分数＋分数(異符号)","５　整数－整数","６　分数－分数","７　カッコなし(整数)","８　カッコなし(分数)","９　カッコなし（まとめ）","10　カッコはずし","11　３数の加減"],"not_rendered":{"charts":0,"images":0,"macros":1,"external_links":0,"defined_names":11,"comments":0,"pivot_tables":0},"unopened":[],"bounds":{"document_bytes":16777216,"sheet_cells":100000,"rows_first":2000,"rows_last":500,"rows_between":2000,"halvings":0,"cell_chars":16384,"cell_head_chars":4096},"cells_cut":0,"cells_raw":0,"read":"whole","date_system":"1900"}

{"sheet":"１　整数＋整数(同符号)","index":0,"n_rows":27,"n_cols":110,"rows_kept":27,"cut":false,"hidden":false,"merged":[[7,2,8,5],[7,9,8,10],[7,11,8,12],[7,13,8,15],[7,16,8,17],[0,33,4,68],[1,4,2,6],[1,7,2,25],[6,2,6,5],[6,32,6,39],[7,32,8,39],[11,5,12,8],[11,11,12,18],[11,19,12,35],[11,57,20,69],[15,5,16,8],[15,11,16,28],[15,29,16,30],[15,31,16,32],[15,33,16,34],[7,18,8,19],[7,20,8,21],[7,22,8,23],[7,24,8,26],[7,27,8,28],[7,29,8,30],[17,11,18,28],[17,29,18,31],[17,32,18,33],[17,34,18,36],[21,57,26,69]]}
[null,null,null,null,null,null,null,null,null,null,null,null,null,null,null,null,null,null,null,null,null,null,null,null,null,null,null,null,null,null,null,null,null,"始める時は問題番号に「１」を入力してください。\n問題は１～２０まで、２０題あります。\n答えが正の数の時は、｢＋｣を省略してください。"]
[null,null,null,null,1,null,null,"同符号の整数の加法"]
[]
[]
[]
[]
[null,null,"問題番号",null,null,null,null,null,null,null,null,null,null,null,null,null,null,null,null,null,null,null,null,null,null,null,null,null,null,null,null,null,"答えを入力"]
[null,null,1,null,null,null,null,null,null,"（",null,{"$f":"IF(MOD($C$8,4)<2,\"＋\",\"－\")","v":"＋"},null,{"$f":"VLOOKUP($C$8,$DD$8:$DF$27,2,0)","v":1},null,null,"）",null,"＋",null,"（",null,{"$f":"IF(MOD($C$8,4)<2,\"＋\",\"－\")","v":"＋"},null,{"$f":"VLOOKUP($C$8,$DD$8:$DF$27,3,0)","v":2},null,null,"）",null,"＝",null,null,null,null,null,null,null,null,null,null,null,null,null,null,null,null,null,null,null,null,null,null,null,null,null,null,null,null,null,null,null,null,null,null,null,null,null,null,null,null,null,null,null,null,null,null,null,null,null,null,null,null,null,null,null,null,null,null,null,null,null,null,null,null,null,null,null,null,null,null,null,null,null,null,null,null,null,1,{"$f":"MOD(DAY(TODAY()),3)+1","v":1},{"$f":"MOD(WEEKDAY(TODAY(),2),2)+1","v":2}]
[null,null,null,null,null,null,null,null,null,null,null,null,null,null,null,null,null,null,null,null,null,null,null,null,null,null,null,null,null,null,null,null,null,null,null,null,null,null,null,null,null,null,null,null,null,null,null,null,null,null,null,null,null,null,null,null,null,null,null,null,null,null,null,null,null,null,null,null,null,null,null,null,null,null,null,null,null,null,null,null,null,null,null,null,null,null,null,null,null,null,null,null,null,null,null,null,null,null,null,null,null,null,null,null,null,null,null,2,{"$f":"MOD(DAY(TODAY()),3)+2","v":2},{"$f":"MOD(WEEKDAY(TODAY(),2),2)+3","v":4}]
[null,null,null,null,null,null,null,null,null,null,null,null,null,null,null,null,null,null,null,null,null,null,null,null,null,null,null,null,null,null,null,null,null,null,null,null,null,null,null,null,null,null,null,null,null,null,null,null,null,null,null,null,null,null,null,null,null,null,null,null,null,null,null,null,null,null,null,null,null,null,null,null,null,null,null,null,null,null,null,null,null,null,null,null,null,null,null,null,null,null,null,null,null,null,null,null,null,null,null,null,null,null,null,null,null,null,null,3,{"$f":"MOD(DAY(TODAY()),3)+3","v":3},{"$f":"MOD(WEEKDAY(TODAY(),2),2)+5","v":6}]
[null,null,null,null,null,null,null,null,null,null,null,null,null,null,null,null,null,null,null,null,null,null,null,null,null,null,null,null,null,null,null,null,null,null,null,null,null,null,null,null,null,null,null,null,null,null,null,null,null,null,null,null,null,null,null,null,null,null,null,null,null,null,null,null,null,null,null,null,null,null,null,null,null,null,null,null,null,null,null,null,null,null,null,null,null,null,null,null,null,null,null,null,null,null,null,null,null,null,null,null,null,null,null,null,null,null,null,4,{"$f":"MOD(MONTH(TODAY()),3)+4","v":4},{"$f":"MOD(DAY(TODAY()),3)+1","v":1}]
[null,null,null,null,null,"正解",null,null,null,null,null,{"$f":"VALUE(ASC(L8&N8))+VALUE(ASC(W8&Y8))","v":3},null,null,null,null,null,null,null,{"$f":"IF(L12>0,\"⇒「＋」の記号は省略\",\"\")","v":"⇒「＋」の記号は省略"},null,null,null,null,null,null,null,null,null,null,null,null,null,null,null,null,null,null,null,null,null,null,null,null,null,null,null,null,null,null,null,null,null,null,null,null,null,{"$f":"IF($AG$8=$L$12,\"○\",\"×\")","v":"×"},null,null,null,null,null,null,null,null,null,null,null,null,null,null,null,null,null,null,null,null,null,null,null,null,null,null,null,null,null,null,null,null,null,null,null,null,null,null,null,null,null,null,null,null,null,null,null,null,null,5,{"$f":"MOD(MONTH(TODAY()),3)+5","v":5},{"$f":"MOD(DAY(TODAY()),3)+2","v":2}]
[null,null,null,null,null,null,null,null,null,null,null,null,null,null,null,null,null,null,null,null,null,null,null,null,null,null,null,null,null,null,null,null,null,null,null,null,null,null,null,null,null,null,null,null,null,null,null,null,null,null,null,null,null,null,null,null,null,null,null,null,null,null,null,null,null,null,null,null,null,null,null,null,null,null,null,null,null,null,null,null,null,null,null,null,null,null,null,null,null,null,null,null,null,null,null,null,null,null,null,null,null,null,null,null,null,null,null,6,{"$f":"MOD(MONTH(TODAY()),3)+6","v":6},{"$f":"MOD(DAY(TODAY()),3)+3","v":3}]
[null,null,null,null,null,null,null,null,null,null,null,null,null,null,null,null,null,null,null,null,null,null,null,null,null,null,null,null,null,null,null,null,null,null,null,null,null,null,null,null,null,null,null,null,null,null,null,null,null,null,null,null,null,null,null,null,null,null,null,null,null,null,null,null,null,null,null,null,null,null,null,null,null,null,null,null,null,null,null,null,null,null,null,null,null,null,null,null,null,null,null,null,null,null,null,null,null,null,null,null,null,null,null,null,null,null,null,7,{"$f":"2*(MOD(WEEKDAY(TODAY(),2),2)+1)","v":4},{"$f":"MOD(DAY(TODAY()),5)+3","v":7}]
[null,null,null,null,null,null,null,null,null,null,null,null,null,null,null,null,null,null,null,null,null,null,null,null,null,null,null,null,null,null,null,null,null,null,null,null,null,null,null,null,null,null,null,null,null,null,null,null,null,null,null,null,null,null,null,null,null,null,null,null,null,null,null,null,null,null,null,null,null,null,null,null,null,null,null,null,null,null,null,null,null,null,null,null,null,null,null,null,null,null,null,null,null,null,null,null,null,null,null,null,null,null,null,null,null,null,null,8,{"$f":"2*(MOD(WEEKDAY(TODAY(),2),2)+2)","v":6},{"$f":"MOD(DAY(TODAY()),5)+4","v":8}]
[null,null,null,null,null,"解説",null,null,null,null,null,"符号は共通の符号なので",null,null,null,null,null,null,null,null,null,null,null,null,null,null,null,null,null,"「",null,{"$f":"L8","v":"＋"},null,"」",null,null,null,null,null,null,null,null,null,null,null,null,null,null,null,null,null,null,null,null,null,null,null,null,null,null,null,null,null,null,null,null,null,null,null,null,null,null,null,null,null,null,null,null,null,null,null,null,null,null,null,null,null,null,null,null,null,null,null,null,null,null,null,null,null,null,null,null,null,null,null,null,null,9,{"$f":"2*(MOD(WEEKDAY(TODAY(),2),2)+3)","v":8},{"$f":"MOD(DAY(TODAY()),5)+5","v":9}]
[null,null,null,null,null,null,null,null,null,null,null,null,null,null,null,null,null,null,null,null,null,null,null,null,null,null,null,null,null,null,null,null,null,null,null,null,null,null,null,null,null,null,null,null,null,null,null,null,null,null,null,null,null,null,null,null,null,null,null,null,null,null,null,null,null,null,null,null,null,null,null,null,null,null,null,null,null,null,null,null,null,null,null,null,null,null,null,null,null,null,null,null,null,null,null,null,null,null,null,null,null,null,null,null,null,null,null,10,{"$f":"3*(MOD(DAY(TODAY()),3)+1)+1","v":4},{"$f":"5*(MOD(WEEKDAY(TODAY(),2),2)+1)","v":10}]
[null,null,null,null,null,null,null,null,null,null,null,"数はそのまま足して",null,null,null,null,null,null,null,null,null,null,null,null,null,null,null,null,null,{"$f":"N8","v":1},null,null,"＋",null,{"$f":"Y8","v":2},null,null,null,null,null,null,null,null,null,null,null,null,null,null,null,null,null,null,null,null,null,null,null,null,null,null,null,null,null,null,null,null,null,null,null,null,null,null,null,null,null,null,null,null,null,null,null,null,null,null,null,null,null,null,null,null,null,null,null,null,null,null,null,null,null,null,null,null,null,null,null,null,11,{"$f":"DE8+6","v":7},8]
[null,null,null,null,null,null,null,null,null,null,null,null,null,null,null,null,null,null,null,null,null,null,null,null,null,null,null,null,null,null,null,null,null,null,null,null,null,null,null,null,null,null,null,null,null,null,null,null,null,null,null,null,null,null,null,null,null,null,null,null,null,null,null,null,null,null,null,null,null,null,null,null,null,null,null,null,null,null,null,null,null,null,null,null,null,null,null,null,null,null,null,null,null,null,null,null,null,null,null,null,null,null,null,null,null,null,null,12,8,10]
[null,null,null,null,null,null,null,null,null,null,null,null,null,null,null,null,null,null,null,null,null,null,null,null,null,null,null,null,null,null,null,null,null,null,null,null,null,null,null,null,null,null,null,null,null,null,null,null,null,null,null,null,null,null,null,null,null,null,null,null,null,null,null,null,null,null,null,null,null,null,null,null,null,null,null,null,null,null,null,null,null,null,null,null,null,null,null,null,null,null,null,null,null,null,null,null,null,null,null,null,null,null,null,null,null,null,null,13,9,12]
[null,null,null,null,null,null,null,null,null,null,null,null,null,null,null,null,null,null,null,null,null,null,null,null,null,null,null,null,null,null,null,null,null,null,null,null,null,null,null,null,null,null,null,null,null,null,null,null,null,null,null,null,null,null,null,null,null,null,null,null,null,null,null,null,null,null,null,null,null,null,null,null,null,null,null,null,null,null,null,null,null,null,null,null,null,null,null,null,null,null,null,null,null,null,null,null,null,null,null,null,null,null,null,null,null,null,null,14,10,7]
[null,null,null,null,null,null,null,null,null,null,null,null,null,null,null,null,null,null,null,null,null,null,null,null,null,null,null,null,null,null,null,null,null,null,null,null,null,null,null,null,null,null,null,null,null,null,null,null,null,null,null,null,null,null,null,null,null,{"$f":"IF($AG$8=$L$12,\"正解！\",\"残念！\")","v":"残念！"},null,null,null,null,null,null,null,null,null,null,null,null,null,null,null,null,null,null,null,null,null,null,null,null,null,null,null,null,null,null,null,null,null,null,null,null,null,null,null,null,null,null,null,null,null,null,null,null,null,15,11,8]
[null,null,null,null,null,null,null,null,null,null,null,null,null,null,null,null,null,null,null,null,null,null,null,null,null,null,null,null,null,null,null,null,null,null,null,null,null,null,null,null,null,null,null,null,null,null,null,null,null,null,null,null,null,null,null,null,null,null,null,null,null,null,null,null,null,null,null,null,null,null,null,null,null,null,null,null,null,null,null,null,null,null,null,null,null,null,null,null,null,null,null,null,null,null,null,null,null,null,null,null,null,null,null,null,null,null,null,16,12,9]
[null,null,null,null,null,null,null,null,null,null,null,null,null,null,null,null,null,null,null,null,null,null,null,null,null,null,null,null,null,null,null,null,null,null,null,null,null,null,null,null,null,null,null,null,null,null,null,null,null,null,null,null,null,null,null,null,null,null,null,null,null,null,null,null,null,null,null,null,null,null,null,null,null,null,null,null,null,null,null,null,null,null,null,null,null,null,null,null,null,null,null,null,null,null,null,null,null,null,null,null,null,null,null,null,null,null,null,17,10,13]
[null,null,null,null,null,null,null,null,null,null,null,null,null,null,null,null,null,null,null,null,null,null,null,null,null,null,null,null,null,null,null,null,null,null,null,null,null,null,null,null,null,null,null,null,null,null,null,null,null,null,null,null,null,null,null,null,null,null,null,null,null,null,null,null,null,null,null,null,null,null,null,null,null,null,null,null,null,null,null,null,null,null,null,null,null,null,null,null,null,null,null,null,null,null,null,null,null,null,null,null,null,null,null,null,null,null,null,18,12,14]
[null,null,null,null,null,null,null,null,null,null,null,null,null,null,null,null,null,null,null,null,null,null,null,null,null,null,null,null,null,null,null,null,null,null,null,null,null,null,null,null,null,null,null,null,null,null,null,null,null,null,null,null,null,null,null,null,null,null,null,null,null,null,null,null,null,null,null,null,null,null,null,null,null,null,null,null,null,null,null,null,null,null,null,null,null,null,null,null,null,null,null,null,null,null,null,null,null,null,null,null,null,null,null,null,null,null,null,19,14,15]
[null,null,null,null,null,null,null,null,null,null,null,null,null,null,null,null,null,null,null,null,null,null,null,null,null,null,null,null,null,null,null,null,null,null,null,null,null,null,null,null,null,null,null,null,null,null,null,null,null,null,null,null,null,null,null,null,null,null,null,null,null,null,null,null,null,null,null,null,null,null,null,null,null,null,null,null,null,null,null,null,null,null,null,null,null,null,null,null,null,null,null,null,null,null,null,null,null,null,null,null,null,null,null,null,null,null,null,20,10,16]

{"sheet":"２　整数＋整数(異符号)","index":1,"n_rows":27,"n_cols":110,"rows_kept":27,"cut":false,"hidden":false,"merged":[[7,32,8,39],[6,32,6,39],[7,20,8,21],[7,22,8,23],[7,24,8,26],[7,27,8,28],[7,29,8,30],[17,11,18,31],[15,5,16,8],[15,11,16,28],[1,4,2,6],[1,7,2,25],[6,2,6,5],[7,2,8,5],[11,5,12,8],[11,11,12,18],[11,19,12,35],[0,33,4,68],[7,9,8,10],[7,11,8,12],[7,13,8,15],[7,16,8,17],[7,18,8,19],[21,57,26,69],[11,57,20,69],[15,32,16,33],[15,34,16,35],[15,36,16,37],[17,32,18,34],[17,35,18,36],[17,37,18,39]]}
[null,null,null,null,null,null,null,null,null,null,null,null,null,null,null,null,null,null,null,null,null,null,null,null,null,null,null,null,null,null,null,null,null,"問題は１～２０まで、２０題あります。\n答えが正の数の時は、｢＋｣を省略してください。"]
[null,null,null,null,2,null,null,"異符号の整数の加法"]
[]
[]
[]
[]
[null,null,"問題番号",null,null,null,null,null,null,null,null,null,null,null,null,null,null,null,null,null,null,null,null,null,null,null,null,null,null,null,null,null,"答えを入力"]
[null,null,1,null,null,null,null,null,null,"（",null,{"$f":"IF(MOD($C$8,4)<2,\"＋\",\"－\")","v":"＋"},null,{"$f":"VLOOKUP($C$8,$DD$8:$DF$27,2,0)","v":1},null,null,"）",null,"＋",null,"（",null,{"$f":"IF(L8=\"＋\",\"－\",\"＋\")","v":"－"},null,{"$f":"VLOOKUP($C$8,$DD$8:$DF$27,3,0)","v":2},null,null,"）",null,"＝",null,null,null,null,null,null,null,null,null,null,null,null,null,null,null,null,null,null,null,null,null,null,null,null,null,null,null,null,null,null,null,null,null,null,null,null,null,null,null,null,null,null,null,null,null,null,null,null,null,null,null,null,null,null,null,null,null,null,null,null,null,null,null,null,null,null,null,null,null,null,null,null,null,null,null,null,null,1,{"$f":"MOD(DAY(TODAY()),3)+1","v":1},{"$f":"MOD(WEEKDAY(TODAY(),2),2)+1","v":2}]
[null,null,null,null,null,null,null,null,null,null,null,null,null,null,null,null,null,null,null,null,null,null,null,null,null,null,null,null,null,null,null,null,null,null,null,null,null,null,null,null,null,null,null,null,null,null,null,null,null,null,null,null,null,null,null,null,null,null,null,null,null,null,null,null,null,null,null,null,null,null,null,null,null,null,null,null,null,null,null,null,null,null,null,null,null,null,null,null,null,null,null,null,null,null,null,null,null,null,null,null,null,null,null,null,null,null,null,2,{"$f":"MOD(DAY(TODAY()),3)+2","v":2},{"$f":"MOD(WEEKDAY(TODAY(),2),2)+3","v":4}]
[null,null,null,null,null,null,null,null,null,null,null,null,null,null,null,null,null,null,null,null,null,null,null,null,null,null,null,null,null,null,null,null,null,null,null,null,null,null,null,null,null,null,null,null,null,null,null,null,null,null,null,null,null,null,null,null,null,null,null,null,null,null,null,null,null,null,null,null,null,null,null,null,null,null,null,null,null,null,null,null,null,null,null,null,null,null,null,null,null,null,null,null,null,null,null,null,null,null,null,null,null,null,null,null,null,null,null,3,{"$f":"MOD(DAY(TODAY()),3)+3","v":3},{"$f":"MOD(WEEKDAY(TODAY(),2),2)+5","v":6}]
[null,null,null,null,null,null,null,null,null,null,null,null,null,null,null,null,null,null,null,null,null,null,null,null,null,null,null,null,null,null,null,null,null,null,null,null,null,null,null,null,null,null,null,null,null,null,null,null,null,null,null,null,null,null,null,null,null,null,null,null,null,null,null,null,null,null,null,null,null,null,null,null,null,null,null,null,null,null,null,null,null,null,null,null,null,null,null,null,null,null,null,null,null,null,null,null,null,null,null,null,null,null,null,null,null,null,null,4,{"$f":"MOD(MONTH(TODAY()),3)+4","v":4},{"$f":"MOD(DAY(TODAY()),3)+1","v":1}]
[null,null,null,null,null,"正解",null,null,null,null,null,{"$f":"VALUE(ASC(L8&N8))+VALUE(ASC(W8&Y8))","v":-1},null,null,null,null,null,null,null,{"$f":"IF(L12>0,\"⇒「＋」の記号は省略\",\"\")","v":""},null,null,null,null,null,null,null,null,null,null,null,null,null,null,null,null,null,null,null,null,null,null,null,null,null,null,null,null,null,null,null,null,null,null,null,null,null,{"$f":"IF($AG$8=$L$12,\"○\",\"×\")","v":"×"},null,null,null,null,null,null,null,null,null,null,null,null,null,null,null,null,null,null,null,null,null,null,null,null,null,null,null,null,null,null,null,null,null,null,null,null,null,null,null,null,null,null,null,null,null,null,null,null,null,5,{"$f":"MOD(MONTH(TODAY()),3)+5","v":5},{"$f":"MOD(DAY(TODAY()),3)+2","v":2}]
[null,null,null,null,null,null,null,null,null,null,null,null,null,null,null,null,null,null,null,null,null,null,null,null,null,null,null,null,null,null,null,null,null,null,null,null,null,null,null,null,null,null,null,null,null,null,null,null,null,null,null,null,null,null,null,null,null,null,null,null,null,null,null,null,null,null,null,null,null,null,null,null,null,null,null,null,null,null,null,null,null,null,null,null,null,null,null,null,null,null,null,null,null,null,null,null,null,null,null,null,null,null,null,null,null,null,null,6,{"$f":"MOD(MONTH(TODAY()),3)+6","v":6},{"$f":"MOD(DAY(TODAY()),3)+3","v":3}]
[null,null,null,null,null,null,null,null,null,null,null,null,null,null,null,null,null,null,null,null,null,null,null,null,null,null,null,null,null,null,null,null,null,null,null,null,null,null,null,null,null,null,null,null,null,null,null,null,null,null,null,null,null,null,null,null,null,null,null,null,null,null,null,null,null,null,null,null,null,null,null,null,null,null,null,null,null,null,null,null,null,null,null,null,null,null,null,null,null,null,null,null,null,null,null,null,null,null,null,null,null,null,null,null,null,null,null,7,{"$f":"2*(MOD(WEEKDAY(TODAY(),2),2)+1)","v":4},{"$f":"MOD(DAY(TODAY()),5)+3","v":7}]
[null,null,null,null,null,null,null,null,null,null,null,null,null,null,null,null,null,null,null,null,null,null,null,null,null,null,null,null,null,null,null,null,null,null,null,null,null,null,null,null,null,null,null,null,null,null,null,null,null,null,null,null,null,null,null,null,null,null,null,null,null,null,null,null,null,null,null,null,null,null,null,null,null,null,null,null,null,null,null,null,null,null,null,null,null,null,null,null,null,null,null,null,null,null,null,null,null,null,null,null,null,null,null,null,null,null,null,8,{"$f":"2*(MOD(WEEKDAY(TODAY(),2),2)+2)","v":6},{"$f":"MOD(DAY(TODAY()),5)+4","v":8}]
[null,null,null,null,null,"解説",null,null,null,null,null,"符号は数の大きい方なので",null,null,null,null,null,null,null,null,null,null,null,null,null,null,null,null,null,null,null,null,"「",null,{"$f":"IF(N8<Y8,W8,IF(N8>Y8,L8,\"\"))","v":"－"},null,"」",null,null,null,null,null,null,null,null,null,null,null,null,null,null,null,null,null,null,null,null,null,null,null,null,null,null,null,null,null,null,null,null,null,null,null,null,null,null,null,null,null,null,null,null,null,null,null,null,null,null,null,null,null,null,null,null,null,null,null,null,null,null,null,null,null,null,null,null,null,null,9,{"$f":"2*(MOD(WEEKDAY(TODAY(),2),2)+3)","v":8},{"$f":"MOD(DAY(TODAY()),5)+5","v":9}]
[null,null,null,null,null,null,null,null,null,null,null,null,null,null,null,null,null,null,null,null,null,null,null,null,null,null,null,null,null,null,null,null,null,null,null,null,null,null,null,null,null,null,null,null,null,null,null,null,null,null,null,null,null,null,null,null,null,null,null,null,null,null,null,null,null,null,null,null,null,null,null,null,null,null,null,null,null,null,null,null,null,null,null,null,null,null,null,null,null,null,null,null,null,null,null,null,null,null,null,null,null,null,null,null,null,null,null,10,{"$f":"3*(MOD(DAY(TODAY()),3)+1)+1","v":4},{"$f":"5*(MOD(WEEKDAY(TODAY(),2),2)+1)","v":10}]
[null,null,null,null,null,null,null,null,null,null,null,"数は｢大きい方｣－｢小さい方｣",null,null,null,null,null,null,null,null,null,null,null,null,null,null,null,null,null,null,null,null,{"$f":"MAX(N8,Y8)","v":2},null,null,"－",null,{"$f":"MIN(N8,Y8)","v":1},null,null,null,null,null,null,null,null,null,null,null,null,null,null,null,null,null,null,null,null,null,null,null,null,null,null,null,null,null,null,null,null,null,null,null,null,null,null,null,null,null,null,null,null,null,null,null,null,null,null,null,null,null,null,null,null,null,null,null,null,null,null,null,null,null,null,null,null,null,11,{"$f":"DE8+6","v":7},{"$f":"DF8+6","v":8}]
[null,null,null,null,null,null,null,null,null,null,null,null,null,null,null,null,null,null,null,null,null,null,null,null,null,null,null,null,null,null,null,null,null,null,null,null,null,null,null,null,null,null,null,null,null,null,null,null,null,null,null,null,null,null,null,null,null,null,null,null,null,null,null,null,null,null,null,null,null,null,null,null,null,null,null,null,null,null,null,null,null,null,null,null,null,null,null,null,null,null,null,null,null,null,null,null,null,null,null,null,null,null,null,null,null,null,null,12,{"$f":"DE9+6","v":8},10]
[null,null,null,null,null,null,null,null,null,null,null,null,null,null,null,null,null,null,null,null,null,null,null,null,null,null,null,null,null,null,null,null,null,null,null,null,null,null,null,null,null,null,null,null,null,null,null,null,null,null,null,null,null,null,null,null,null,null,null,null,null,null,null,null,null,null,null,null,null,null,null,null,null,null,null,null,null,null,null,null,null,null,null,null,null,null,null,null,null,null,null,null,null,null,null,null,null,null,null,null,null,null,null,null,null,null,null,13,9,12]
[null,null,null,null,null,null,null,null,null,null,null,null,null,null,null,null,null,null,null,null,null,null,null,null,null,null,null,null,null,null,null,null,null,null,null,null,null,null,null,null,null,null,null,null,null,null,null,null,null,null,null,null,null,null,null,null,null,null,null,null,null,null,null,null,null,null,null,null,null,null,null,null,null,null,null,null,null,null,null,null,null,null,null,null,null,null,null,null,null,null,null,null,null,null,null,null,null,null,null,null,null,null,null,null,null,null,null,14,10,7]
[null,null,null,null,null,null,null,null,null,null,null,null,null,null,null,null,null,null,null,null,null,null,null,null,null,null,null,null,null,null,null,null,null,null,null,null,null,null,null,null,null,null,null,null,null,null,null,null,null,null,null,null,null,null,null,null,null,{"$f":"IF($AG$8=$L$12,\"正解！\",\"残念！\")","v":"残念！"},null,null,null,null,null,null,null,null,null,null,null,null,null,null,null,null,null,null,null,null,null,null,null,null,null,null,null,null,null,null,null,null,null,null,null,null,null,null,null,null,null,null,null,null,null,null,null,null,null,15,11,8]
[null,null,null,null,null,null,null,null,null,null,null,null,null,null,null,null,null,null,null,null,null,null,null,null,null,null,null,null,null,null,null,null,null,null,null,null,null,null,null,null,null,null,null,null,null,null,null,null,null,null,null,null,null,null,null,null,null,null,null,null,null,null,null,null,null,null,null,null,null,null,null,null,null,null,null,null,null,null,null,null,null,null,null,null,null,null,null,null,null,null,null,null,null,null,null,null,null,null,null,null,null,null,null,null,null,null,null,16,12,9]
[null,null,null,null,null,null,null,null,null,null,null,null,null,null,null,null,null,null,null,null,null,null,null,null,null,null,null,null,null,null,null,null,null,null,null,null,null,null,null,null,null,null,null,null,null,null,null,null,null,null,null,null,null,null,null,null,null,null,null,null,null,null,null,null,null,null,null,null,null,null,null,null,null,null,null,null,null,null,null,null,null,null,null,null,null,null,null,null,null,null,null,null,null,null,null,null,null,null,null,null,null,null,null,null,null,null,null,17,10,13]
[null,null,null,null,null,null,null,null,null,null,null,null,null,null,null,null,null,null,null,null,null,null,null,null,null,null,null,null,null,null,null,null,null,null,null,null,null,null,null,null,null,null,null,null,null,null,null,null,null,null,null,null,null,null,null,null,null,null,null,null,null,null,null,null,null,null,null,null,null,null,null,null,null,null,null,null,null,null,null,null,null,null,null,null,null,null,null,null,null,null,null,null,null,null,null,null,null,null,null,null,null,null,null,null,null,null,null,18,12,14]
[null,null,null,null,null,null,null,null,null,null,null,null,null,null,null,null,null,null,null,null,null,null,null,null,null,null,null,null,null,null,null,null,null,null,null,null,null,null,null,null,null,null,null,null,null,null,null,null,null,null,null,null,null,null,null,null,null,null,null,null,null,null,null,null,null,null,null,null,null,null,null,null,null,null,null,null,null,null,null,null,null,null,null,null,null,null,null,null,null,null,null,null,null,null,null,null,null,null,null,null,null,null,null,null,null,null,null,19,14,15]
[null,null,null,null,null,null,null,null,null,null,null,null,null,null,null,null,null,null,null,null,null,null,null,null,null,null,null,null,null,null,null,null,null,null,null,null,null,null,null,null,null,null,null,null,null,null,null,null,null,null,null,null,null,null,null,null,null,null,null,null,null,null,null,null,null,null,null,null,null,null,null,null,null,null,null,null,null,null,null,null,null,null,null,null,null,null,null,null,null,null,null,null,null,null,null,null,null,null,null,null,null,null,null,null,null,null,null,20,10,16]

{"sheet":"３　分数＋分数(同符号)","index":2,"n_rows":34,"n_cols":114,"rows_kept":34,"cut":false,"hidden":false,"merged":[[29,109,30,109],[32,109,33,109],[10,43,10,49],[29,11,30,17],[29,18,30,18],[29,20,30,24],[15,11,15,16],[24,22,25,25],[25,18,26,18],[25,20,26,21],[26,22,27,25],[12,11,13,12],[11,13,12,16],[13,13,14,16],[17,11,18,17],[25,11,26,17],[0,33,4,68],[1,4,2,6],[1,7,2,25],[6,2,6,5],[6,32,6,39],[6,24,7,26],[7,32,8,39],[7,2,8,5],[7,9,8,10],[7,11,8,12],[7,16,8,17],[6,13,7,15],[8,13,9,15],[5,42,5,50],[7,43,8,44],[6,43,6,44],[11,5,12,8],[11,57,20,69],[17,5,18,8],[7,18,8,19],[7,20,8,21],[7,22,8,23],[7,27,8,28],[7,29,8,30],[6,45,7,49],[8,45,9,49],[16,19,17,36],[18,19,19,36],[15,21,15,26],[15,29,15,34],[8,24,9,26],[11,20,12,45],[7,51,8,61],[25,26,26,42],[21,57,26,69],[21,18,22,18],[21,20,22,21],[20,22,21,25],[22,22,23,25]]}
[null,null,null,null,null,null,null,null,null,null,null,null,null,null,null,null,null,null,null,null,null,null,null,null,null,null,null,null,null,null,null,null,null,"問題は２０題。約分できるものは約分して答えること。\n答えが整数か分数かで、解答の入力場所が違います。"]
[null,null,null,null,3,null,null,"同符号の分数の加法"]
[]
[]
[null,null,null,null,null,null,null,null,null,null,null,null,null,null,null,null,null,null,null,null,null,null,null,null,null,null,null,null,null,null,null,null,null,null,null,null,null,null,null,null,null,null,null,null,null,null,null,null,null,null,null,null,null,null,null,null,null,null,null,null,null,null,null,null,null,null,null,null,null,null,null,null,null,null,null,null,null,null,null,null,null,null,null,null,null,null,null,null,null,null,null,null,null,null,null,null,null,null,null,null,null,null,null,null,null,null,null,null,{"$f":"MOD(DAY(TODAY()),2)","v":1},{"$f":"MOD(DAY(TODAY()),3)","v":0},{"$f":"MOD(DAY(TODAY()),4)","v":1},{"$f":"MOD(DAY(TODAY()),5)","v":4},{"$f":"MOD(DAY(TODAY()),6)","v":3}]
[null,null,null,null,null,null,null,null,null,null,null,null,null,null,null,null,null,null,null,null,null,null,null,null,null,null,null,null,null,null,null,null,null,null,null,null,null,null,null,null,null,null,"答えが分数の時",null,null,null,null,null,null,null,null,null,null,null,null,null,null,null,null,null,null,null,null,null,null,null,null,null,null,null,null,null,null,null,null,null,null,null,null,null,null,null,null,null,null,null,null,null,null,null,null,null,null,null,null,null,null,null,null,null,null,null,null,null,null,null,null,null,{"$f":"2*DE5+1","v":3},{"$f":"2*DF5+1","v":1},{"$f":"2*DG5+1","v":3},9,7]
[null,null,"問題番号",null,null,null,null,null,null,null,null,null,null,{"$f":"VLOOKUP($C$8,$DD$8:$DJ$27,3,0)","v":2},null,null,null,null,null,null,null,null,null,null,{"$f":"VLOOKUP($C$8,$DD$8:$DJ$27,6,0)","v":2},null,null,null,null,null,null,null,"答えが整数の時",null,null,null,null,null,null,null,null,null,null,null,null,null,null,null,null,null,null,null,null,null,null,null,null,null,null,null,null,null,null,null,null,null,null,null,null,null,null,null,null,null,null,null,null,null,null,null,null,null,null,null,null,null,null,null,null,null,null,null,null,null,null,null,null,null,null,null,null,null,null,null,null,null,null,null,null,null,"母",null,null,"母"]
[null,null,1,null,null,null,null,null,null,"（",null,{"$f":"VLOOKUP($C$8,$DD$8:$DJ$27,2,0)","v":"+"},null,null,null,null,"）",null,"＋",null,"（",null,{"$f":"VLOOKUP($C$8,$DD$8:$DJ$27,5,0)","v":"+"},null,null,null,null,"）",null,"＝",null,null,null,null,null,null,null,null,null,null,null,null,null,null,null,null,null,null,null,null,null,"←符号は選んで！",null,null,null,null,null,null,null,null,null,null,null,null,null,null,null,null,null,null,null,null,null,null,null,null,null,null,null,null,null,null,null,null,null,null,null,null,null,null,null,null,null,null,null,null,null,null,null,null,null,null,null,null,null,null,null,1,"+",{"$f":"$DE$5+1","v":2},3,"+",{"$f":"$DE$5+1","v":2},3]
[null,null,null,null,null,null,null,null,null,null,null,null,null,{"$f":"VLOOKUP($C$8,$DD$8:$DJ$27,4,0)","v":3},null,null,null,null,null,null,null,null,null,null,{"$f":"VLOOKUP($C$8,$DD$8:$DJ$27,7,0)","v":3},null,null,null,null,null,null,null,null,null,null,null,null,null,null,null,null,null,null,null,null,null,null,null,null,null,null,null,null,null,null,null,null,null,null,null,null,null,null,null,null,null,null,null,null,null,null,null,null,null,null,null,null,null,null,null,null,null,null,null,null,null,null,null,null,null,null,null,null,null,null,null,null,null,null,null,null,null,null,null,null,null,null,2,"+",{"$f":"$DE$5+1","v":2},3,"-",{"$f":"$DE$6+1","v":4},3]
[null,null,null,null,null,null,null,null,null,null,null,null,null,null,null,null,null,null,null,null,null,null,null,null,null,null,null,null,null,null,null,null,null,null,null,null,null,null,null,null,null,null,null,null,null,null,null,null,null,null,null,null,null,null,null,null,null,null,null,null,null,null,null,null,null,null,null,null,null,null,null,null,null,null,null,null,null,null,null,null,null,null,null,null,null,null,null,null,null,null,null,null,null,null,null,null,null,null,null,null,null,null,null,null,null,null,null,3,"-",{"$f":"2+3*DF5-$DE$5","v":1},3,"+",{"$f":"$DE$5+1+3*DF5","v":2},3]
[null,null,null,null,null,null,null,null,null,null,null,null,null,null,null,null,null,null,null,null,null,null,null,null,null,null,null,null,null,null,null,null,null,null,null,null,null,null,null,null,null,null,null,null,null,null,null,null,null,null,null,null,null,null,null,null,null,null,null,null,null,null,null,null,null,null,null,null,null,null,null,null,null,null,null,null,null,null,null,null,null,null,null,null,null,null,null,null,null,null,null,null,null,null,null,null,null,null,null,null,null,null,null,null,null,null,null,4,"-",{"$f":"$DF$5+2","v":2},5,"-",{"$f":"$DE$5+5*DF5+1","v":2},5]
[null,null,null,null,null,"正解",null,null,null,null,null,null,null,{"$f":"IF(U30=\"\",W21/GCD(W21,W23),U30)","v":4},null,null,null,null,null,null,{"$f":"IF(U22=\"\",\"⇒ 正の数や０では符号を書かない\",\"\")","v":"⇒ 正の数や０では符号を書かない"},null,null,null,null,null,null,null,null,null,null,null,null,null,null,null,null,null,null,null,null,null,null,null,null,null,null,null,null,null,null,null,null,null,null,null,null,{"$f":"IF(COUNTIF(DF30:DF34,\"○\")=2,\"○\",\"×\")","v":"×"},null,null,null,null,null,null,null,null,null,null,null,null,null,null,null,null,null,null,null,null,null,null,null,null,null,null,null,null,null,null,null,null,null,null,null,null,null,null,null,null,null,null,null,null,null,null,null,null,null,5,"+",{"$f":"4-$DF$5","v":4},5,"-",{"$f":"3-$DE$5","v":2},5]
[null,null,null,null,null,null,null,null,null,null,null,{"$f":"IF(U30=\"\",U22,\"\")","v":""},null,null,null,null,null,null,null,null,null,null,null,null,null,null,null,null,null,null,null,null,null,null,null,null,null,null,null,null,null,null,null,null,null,null,null,null,null,null,null,null,null,null,null,null,null,null,null,null,null,null,null,null,null,null,null,null,null,null,null,null,null,null,null,null,null,null,null,null,null,null,null,null,null,null,null,null,null,null,null,null,null,null,null,null,null,null,null,null,null,null,null,null,null,null,null,6,"-",{"$f":"4+5*DF5-$DE$5","v":3},5,"+",{"$f":"$DE$5+2+5*DF5","v":3},5]
[null,null,null,null,null,null,null,null,null,null,null,null,null,{"$f":"IF(U30=\"\",W23/GCD(W21,W23),\"\")","v":3},null,null,null,null,null,null,null,null,null,null,null,null,null,null,null,null,null,null,null,null,null,null,null,null,null,null,null,null,null,null,null,null,null,null,null,null,null,null,null,null,null,null,null,null,null,null,null,null,null,null,null,null,null,null,null,null,null,null,null,null,null,null,null,null,null,null,null,null,null,null,null,null,null,null,null,null,null,null,null,null,null,null,null,null,null,null,null,null,null,null,null,null,null,7,"+",{"$f":"$DH$5+1","v":5},7,"+",{"$f":"2*($DF$5+1)","v":2},7]
[null,null,null,null,null,null,null,null,null,null,null,null,null,null,null,null,null,null,null,null,null,null,null,null,null,null,null,null,null,null,null,null,null,null,null,null,null,null,null,null,null,null,null,null,null,null,null,null,null,null,null,null,null,null,null,null,null,null,null,null,null,null,null,null,null,null,null,null,null,null,null,null,null,null,null,null,null,null,null,null,null,null,null,null,null,null,null,null,null,null,null,null,null,null,null,null,null,null,null,null,null,null,null,null,null,null,null,8,"+",{"$f":"$DE$5+$DF$5+2","v":3},7,"-",{"$f":"$DI$5+1","v":4},7]
[null,null,null,null,null,null,null,null,null,null,null,{"$f":"IF(U30=\"\",\"―――――\",\"\")","v":"―――――"},null,null,null,null,null,null,null,null,null,{"$f":"IF($T$19=$N$9,\"\",($T$19/$N$9)&\"倍して\")","v":""},null,null,null,null,null,null,null,{"$f":"IF($T$19=$N$9,\"\",($T$19/Y9)&\"倍して\")","v":""},null,null,null,null,null,null,null,null,null,null,null,null,null,null,null,null,null,null,null,null,null,null,null,null,null,null,null,null,null,null,null,null,null,null,null,null,null,null,null,null,null,null,null,null,null,null,null,null,null,null,null,null,null,null,null,null,null,null,null,null,null,null,null,null,null,null,null,null,null,null,null,null,null,null,null,null,null,9,"-",{"$f":"6-$DI$5","v":3},7,"+",{"$f":"2*$DE$5+4","v":6},7]
[null,null,null,null,null,null,null,null,null,null,null,null,null,null,null,null,null,null,null,{"$f":"J8&L8&(N7*T19/N9)&Q86&Q8&S8&U8&W8&(Y7*T19/Y9)&AB8","v":"（+2）＋（+2）"},null,null,null,null,null,null,null,null,null,null,null,null,null,null,null,null,null,null,null,null,null,null,null,null,null,null,null,null,null,null,null,null,null,null,null,null,null,null,null,null,null,null,null,null,null,null,null,null,null,null,null,null,null,null,null,null,null,null,null,null,null,null,null,null,null,null,null,null,null,null,null,null,null,null,null,null,null,null,null,null,null,null,null,null,null,null,null,10,"-",{"$f":"$DE$6","v":3},4,"-",{"$f":"$DF$6","v":1},4]
[null,null,null,null,null,"解説",null,null,null,null,null,"通分して",null,null,null,null,null,null,null,null,null,null,null,null,null,null,null,null,null,null,null,null,null,null,null,null,null,null,null,null,null,null,null,null,null,null,null,null,null,null,null,null,null,null,null,null,null,null,null,null,null,null,null,null,null,null,null,null,null,null,null,null,null,null,null,null,null,null,null,null,null,null,null,null,null,null,null,null,null,null,null,null,null,null,null,null,null,null,null,null,null,null,null,null,null,null,null,11,"+",{"$f":"4*$DF$5+1","v":1},4,"-",{"$f":"$DF$6","v":1},4]
[null,null,null,null,null,null,null,null,null,null,null,null,null,null,null,null,null,null,null,{"$f":"LCM($N$9,$Y$9)","v":3},null,null,null,null,null,null,null,null,null,null,null,null,null,null,null,null,null,null,null,null,null,null,null,null,null,null,null,null,null,null,null,null,null,null,null,null,null,null,null,null,null,null,null,null,null,null,null,null,null,null,null,null,null,null,null,null,null,null,null,null,null,null,null,null,null,null,null,null,null,null,null,null,null,null,null,null,null,null,null,null,null,null,null,null,null,null,null,12,"-",{"$f":"$DH$6","v":9},4,"+",{"$f":"$DF$6+2","v":3},4]
[null,null,null,null,null,null,null,null,null,null,null,null,null,null,null,null,null,null,null,null,null,null,null,null,null,null,null,null,null,null,null,null,null,null,null,null,null,null,null,null,null,null,null,null,null,null,null,null,null,null,null,null,null,null,null,null,null,null,null,null,null,null,null,null,null,null,null,null,null,null,null,null,null,null,null,null,null,null,null,null,null,null,null,null,null,null,null,null,null,null,null,null,null,null,null,null,null,null,null,null,null,null,null,null,null,null,null,13,"+",{"$f":"2*$DE$6+1","v":7},8,"+",{"$f":"2*$DF$5+3","v":3},8]
[null,null,null,null,null,null,null,null,null,null,null,null,null,null,null,null,null,null,null,null,null,null,{"$f":"ABS(VALUE(ASC(L8&(N7*T19/N9))+VALUE(ASC(W8&(Y7*T19/Y9)))))","v":4},null,null,null,null,null,null,null,null,null,null,null,null,null,null,null,null,null,null,null,null,null,null,null,null,null,null,null,null,null,null,null,null,null,null,null,null,null,null,null,null,null,null,null,null,null,null,null,null,null,null,null,null,null,null,null,null,null,null,null,null,null,null,null,null,null,null,null,null,null,null,null,null,null,null,null,null,null,null,null,null,null,null,null,null,14,"+",{"$f":"$DH$6","v":9},8,"-",{"$f":"4*$DE$5+9","v":13},8]
[null,null,null,null,null,null,null,null,null,null,null,null,null,null,null,null,null,null,"=",null,{"$f":"IF(VALUE(ASC(L8&(N7*T19/N9))+VALUE(ASC(W8&(Y7*T19/Y9))))<0,\"-\",\"\")","v":""},null,null,null,null,null,null,null,null,null,null,null,null,null,null,null,null,null,null,null,null,null,null,null,null,null,null,null,null,null,null,null,null,null,null,null,null,{"$f":"IF(BF12=\"○\",\"正解！\",\"残念！\")","v":"残念！"},null,null,null,null,null,null,null,null,null,null,null,null,null,null,null,null,null,null,null,null,null,null,null,null,null,null,null,null,null,null,null,null,null,null,null,null,null,null,null,null,null,null,null,null,null,null,null,null,null,15,"-",{"$f":"$DE$6*$DF$6","v":3},8,"+",{"$f":"$DF$6*$DG$6","v":3},8]
[null,null,null,null,null,null,null,null,null,null,null,null,null,null,null,null,null,null,null,null,null,null,{"$f":"T19","v":3},null,null,null,null,null,null,null,null,null,null,null,null,null,null,null,null,null,null,null,null,null,null,null,null,null,null,null,null,null,null,null,null,null,null,null,null,null,null,null,null,null,null,null,null,null,null,null,null,null,null,null,null,null,null,null,null,null,null,null,null,null,null,null,null,null,null,null,null,null,null,null,null,null,null,null,null,null,null,null,null,null,null,null,null,16,"-",{"$f":"$DE$6+4","v":7},6,"-",{"$f":"11+2*$BT$1","v":11},6]
[null,null,null,null,null,null,null,null,null,null,null,null,null,null,null,null,null,null,null,null,null,null,null,null,null,null,null,null,null,null,null,null,null,null,null,null,null,null,null,null,null,null,null,null,null,null,null,null,null,null,null,null,null,null,null,null,null,null,null,null,null,null,null,null,null,null,null,null,null,null,null,null,null,null,null,null,null,null,null,null,null,null,null,null,null,null,null,null,null,null,null,null,null,null,null,null,null,null,null,null,null,null,null,null,null,null,null,17,"+",{"$f":"6*DG5+1","v":7},6,"-",{"$f":"IF(GCD(DI6+2,6)>1,7,DI6+2)","v":7},6]
[null,null,null,null,null,null,null,null,null,null,null,null,null,null,null,null,null,null,null,null,null,null,{"$f":"IF(U30=\"\",IF(GCD($W$21,$W$23)>1,$W$21/GCD($W$21,$W$23),\"\"),\"\")","v":""},null,null,null,null,null,null,null,null,null,null,null,null,null,null,null,null,null,null,null,null,null,null,null,null,null,null,null,null,null,null,null,null,null,null,null,null,null,null,null,null,null,null,null,null,null,null,null,null,null,null,null,null,null,null,null,null,null,null,null,null,null,null,null,null,null,null,null,null,null,null,null,null,null,null,null,null,null,null,null,null,null,null,null,null,18,"-",{"$f":"IF(GCD(DI5+4,DG25)>1,11,DI5+4)","v":7},9,"-",{"$f":"IF(GCD(DI6+2,DJ25)>1,8,DI6+2)","v":8},9]
[null,null,null,null,null,null,null,null,null,null,null,{"$f":"IF(L30=\"\",IF(GCD($W$21,$W$23)>1,\"約分して\",\"\"),\"\")","v":""},null,null,null,null,null,null,{"$f":"IF(L30=\"\",IF(GCD($W$21,$W$23)>1,\"=\",\"\"),\"\")","v":""},null,{"$f":"IF(U30=\"\",IF(GCD($W$21,$W$23)>1,U22,\"\"),\"\")","v":""},null,null,null,null,null,{"$f":"IF(W27=\"\",\"\",DBCS(\"※\"&GCD(W21,W23)&\"で約分\"))","v":""},null,null,null,null,null,null,null,null,null,null,null,null,null,null,null,null,null,null,null,null,null,null,null,null,null,null,null,null,null,null,null,null,null,null,null,null,null,null,null,null,null,null,null,null,null,null,null,null,null,null,null,null,null,null,null,null,null,null,null,null,null,null,null,null,null,null,null,null,null,null,null,null,null,null,null,null,null,null,null,null,19,"-",{"$f":"IF(GCD((DE5+1)*(DG5+3),DG26)>1,(DE5+1)*(DG5+3)-1,(DE5+1)*(DG5+3))","v":8},9,"+",{"$f":"9*$DF$5+2","v":2},9]
[null,null,null,null,null,null,null,null,null,null,null,null,null,null,null,null,null,null,null,null,null,null,{"$f":"IF(U30=\"\",IF(GCD($W$21,$W$23)>1,$W$23/GCD($W$21,$W$23),\"\"),\"\")","v":""},null,null,null,null,null,null,null,null,null,null,null,null,null,null,null,null,null,null,null,null,null,null,null,null,null,null,null,null,null,null,null,null,null,null,null,null,null,null,null,null,null,null,null,null,null,null,null,null,null,null,null,null,null,null,null,null,null,null,null,null,null,null,null,null,null,null,null,null,null,null,null,null,null,null,null,null,null,null,null,null,null,null,null,null,20,"-",{"$f":"$DG$6+6","v":9},10,"-",{"$f":"10*$DG$6+1","v":31},10]
[]
[]
[null,null,null,null,null,null,null,null,null,null,null,{"$f":"IF(GCD($W$21,$W$23)=W23,\"約分して\",\"\")","v":""},null,null,null,null,null,null,{"$f":"IF(GCD($W$21,$W$23)=W23,\"=\",\"\")","v":""},null,{"$f":"IF(GCD($W$21,$W$23)=W23,VALUE(ASC(U22&W21))/W23,\"\")","v":""},null,null,null,null,null,null,null,null,null,null,null,null,null,null,null,null,null,null,null,null,null,null,null,null,null,null,null,null,null,null,null,null,null,null,null,null,null,null,null,null,null,null,null,null,null,null,null,null,null,null,null,null,null,null,null,null,null,null,null,null,null,null,null,null,null,null,null,null,null,null,null,null,null,null,null,null,null,null,null,null,null,null,null,null,null,null,null,{"$f":"IF(COUNTA(AQ7:AY10)=0,\"×\",\"○\")","v":"×"},{"$f":"IF(COUNTIF(DE30:DE31,\"○\")=1,\"○\",\"×\")","v":"×"},null,"-"]
[null,null,null,null,null,null,null,null,null,null,null,null,null,null,null,null,null,null,null,null,null,null,null,null,null,null,null,null,null,null,null,null,null,null,null,null,null,null,null,null,null,null,null,null,null,null,null,null,null,null,null,null,null,null,null,null,null,null,null,null,null,null,null,null,null,null,null,null,null,null,null,null,null,null,null,null,null,null,null,null,null,null,null,null,null,null,null,null,null,null,null,null,null,null,null,null,null,null,null,null,null,null,null,null,null,null,null,null,{"$f":"IF(COUNTA(AG8)=0,\"×\",\"○\")","v":"×"}]
[null,null,null,null,null,null,null,null,null,null,null,null,null,null,null,null,null,null,null,null,null,null,null,null,null,null,null,null,null,null,null,null,null,null,null,null,null,null,null,null,null,null,null,null,null,null,null,null,null,null,null,null,null,null,null,null,null,null,null,null,null,null,null,null,null,null,null,null,null,null,null,null,null,null,null,null,null,null,null,null,null,null,null,null,null,null,null,null,null,null,null,null,null,null,null,null,null,null,null,null,null,null,null,null,null,null,null,null,{"$f":"IF(AG8=\"\",\"×\",IF(AG8=N12,\"○\",\"×\"))","v":"×"},{"$f":"DE32","v":"×"}]
[null,null,null,null,null,null,null,null,null,null,null,null,null,null,null,null,null,null,null,null,null,null,null,null,null,null,null,null,null,null,null,null,null,null,null,null,null,null,null,null,null,null,null,null,null,null,null,null,null,null,null,null,null,null,null,null,null,null,null,null,null,null,null,null,null,null,null,null,null,null,null,null,null,null,null,null,null,null,null,null,null,null,null,null,null,null,null,null,null,null,null,null,null,null,null,null,null,null,null,null,null,null,null,null,null,null,null,null,{"$f":"IF(AT7=\"\",\"×\",IF(VALUE(ASC(L13&N12))=VALUE(ASC(AR8&AT7)),\"○\",\"×\"))","v":"×"},{"$f":"IF(COUNTIF(DE33:DE34,\"○\")=2,\"○\",\"×\")","v":"×"}]
[null,null,null,null,null,null,null,null,null,null,null,null,null,null,null,null,null,null,null,null,null,null,null,null,null,null,null,null,null,null,null,null,null,null,null,null,null,null,null,null,null,null,null,null,null,null,null,null,null,null,null,null,null,null,null,null,null,null,null,null,null,null,null,null,null,null,null,null,null,null,null,null,null,null,null,null,null,null,null,null,null,null,null,null,null,null,null,null,null,null,null,null,null,null,null,null,null,null,null,null,null,null,null,null,null,null,null,null,{"$f":"IF(AT9=N14,\"○\",\"×\")","v":"×"}]

{"sheet":"４　分数＋分数(異符号)","index":3,"n_rows":34,"n_cols":114,"rows_kept":34,"cut":false,"hidden":false,"merged":[[0,33,4,68],[1,4,2,6],[1,7,2,25],[5,42,5,50],[6,2,6,5],[6,13,7,15],[6,24,7,26],[6,32,6,39],[6,43,6,44],[6,45,7,49],[7,51,8,61],[8,24,9,26],[8,45,9,49],[7,2,8,5],[7,9,8,10],[7,11,8,12],[7,16,8,17],[7,18,8,19],[7,20,8,21],[8,13,9,15],[7,22,8,23],[7,27,8,28],[7,29,8,30],[7,32,8,39],[7,43,8,44],[11,20,12,45],[29,11,30,17],[29,18,30,18],[29,20,30,24],[29,109,30,109],[11,5,12,8],[11,13,12,16],[11,57,20,69],[12,11,13,12],[13,13,14,16],[15,11,15,16],[15,21,15,26],[15,29,15,34],[17,5,18,8],[17,11,18,17],[18,19,19,36],[25,11,26,17],[25,18,26,18],[25,20,26,21],[25,26,26,42],[26,22,27,25],[16,19,17,36],[21,18,22,18],[21,20,22,21],[17,37,18,47],[32,109,33,109],[21,57,26,69],[22,22,23,25],[24,22,25,25],[20,22,21,25]]}
[null,null,null,null,null,null,null,null,null,null,null,null,null,null,null,null,null,null,null,null,null,null,null,null,null,null,null,null,null,null,null,null,null,"問題は２０題。約分できるものは約分して答えること。\n答えが整数か分数かで、解答の入力場所が違います。"]
[null,null,null,null,4,null,null,"異符号の分数の加法"]
[]
[]
[null,null,null,null,null,null,null,null,null,null,null,null,null,null,null,null,null,null,null,null,null,null,null,null,null,null,null,null,null,null,null,null,null,null,null,null,null,null,null,null,null,null,null,null,null,null,null,null,null,null,null,null,null,null,null,null,null,null,null,null,null,null,null,null,null,null,null,null,null,null,null,null,null,null,null,null,null,null,null,null,null,null,null,null,null,null,null,null,null,null,null,null,null,null,null,null,null,null,null,null,null,null,null,null,null,null,null,null,{"$f":"MOD(DAY(TODAY()),2)","v":1},{"$f":"MOD(DAY(TODAY()),3)","v":0},{"$f":"MOD(DAY(TODAY()),4)","v":1},{"$f":"MOD(DAY(TODAY()),5)","v":4},{"$f":"MOD(DAY(TODAY()),6)","v":3}]
[null,null,null,null,null,null,null,null,null,null,null,null,null,null,null,null,null,null,null,null,null,null,null,null,null,null,null,null,null,null,null,null,null,null,null,null,null,null,null,null,null,null,"答えが分数の時",null,null,null,null,null,null,null,null,null,null,null,null,null,null,null,null,null,null,null,null,null,null,null,null,null,null,null,null,null,null,null,null,null,null,null,null,null,null,null,null,null,null,null,null,null,null,null,null,null,null,null,null,null,null,null,null,null,null,null,null,null,null,null,null,null,{"$f":"2*DE5+1","v":3},{"$f":"2*DF5+1","v":1},3,9,7]
[null,null,"問題番号",null,null,null,null,null,null,null,null,null,null,{"$f":"VLOOKUP($C$8,$DD$8:$DJ$27,3,0)","v":1},null,null,null,null,null,null,null,null,null,null,{"$f":"VLOOKUP($C$8,$DD$8:$DJ$27,6,0)","v":1},null,null,null,null,null,null,null,"答えが整数の時",null,null,null,null,null,null,null,null,null,null,null,null,null,null,null,null,null,null,null,null,null,null,null,null,null,null,null,null,null,null,null,null,null,null,null,null,null,null,null,null,null,null,null,null,null,null,null,null,null,null,null,null,null,null,null,null,null,null,null,null,null,null,null,null,null,null,null,null,null,null,null,null,null,null,null,null,null,"母",null,null,"母"]
[null,null,1,null,null,null,null,null,null,"（",null,{"$f":"VLOOKUP($C$8,$DD$8:$DJ$27,2,0)","v":"+"},null,null,null,null,"）",null,"＋",null,"（",null,{"$f":"VLOOKUP($C$8,$DD$8:$DJ$27,5,0)","v":"+"},null,null,null,null,"）",null,"＝",null,null,null,null,null,null,null,null,null,null,null,null,null,null,null,null,null,null,null,null,null,"←符号は選んで！",null,null,null,null,null,null,null,null,null,null,null,null,null,null,null,null,null,null,null,null,null,null,null,null,null,null,null,null,null,null,null,null,null,null,null,null,null,null,null,null,null,null,null,null,null,null,null,null,null,null,null,null,null,null,null,1,"+",1,2,"+",{"$f":"DF6","v":1},4]
[null,null,null,null,null,null,null,null,null,null,null,null,null,{"$f":"VLOOKUP($C$8,$DD$8:$DJ$27,4,0)","v":2},null,null,null,null,null,null,null,null,null,null,{"$f":"VLOOKUP($C$8,$DD$8:$DJ$27,7,0)","v":4},null,null,null,null,null,null,null,null,null,null,null,null,null,null,null,null,null,null,null,null,null,null,null,null,null,null,null,null,null,null,null,null,null,null,null,null,null,null,null,null,null,null,null,null,null,null,null,null,null,null,null,null,null,null,null,null,null,null,null,null,null,null,null,null,null,null,null,null,null,null,null,null,null,null,null,null,null,null,null,null,null,null,2,"+",{"$f":"6*$DE$5+1","v":7},6,"-",{"$f":"$DF$5*3+2","v":2},3]
[null,null,null,null,null,null,null,null,null,null,null,null,null,null,null,null,null,null,null,null,null,null,null,null,null,null,null,null,null,null,null,null,null,null,null,null,null,null,null,null,null,null,null,null,null,null,null,null,null,null,null,null,null,null,null,null,null,null,null,null,null,null,null,null,null,null,null,null,null,null,null,null,null,null,null,null,null,null,null,null,null,null,null,null,null,null,null,null,null,null,null,null,null,null,null,null,null,null,null,null,null,null,null,null,null,null,null,3,"-",{"$f":"$DF$6","v":1},2,"+",{"$f":"$DE$6+4","v":7},6]
[null,null,null,null,null,null,null,null,null,null,null,null,null,null,null,null,null,null,null,null,null,null,null,null,null,null,null,null,null,null,null,null,null,null,null,null,null,null,null,null,null,null,null,null,null,null,null,null,null,null,null,null,null,null,null,null,null,null,null,null,null,null,null,null,null,null,null,null,null,null,null,null,null,null,null,null,null,null,null,null,null,null,null,null,null,null,null,null,null,null,null,null,null,null,null,null,null,null,null,null,null,null,null,null,null,null,null,4,"-",{"$f":"8-$DG$6","v":5},2,"-",{"$f":"$DH$6","v":9},8]
[null,null,null,null,null,"正解",null,null,null,null,null,null,null,{"$f":"IF(U30=\"\",W21/GCD(W21,W23),U30)","v":3},null,null,null,null,null,null,{"$f":"IF(U22=\"\",\"⇒ 正の数や０では符号を書かない\",\"\")","v":"⇒ 正の数や０では符号を書かない"},null,null,null,null,null,null,null,null,null,null,null,null,null,null,null,null,null,null,null,null,null,null,null,null,null,null,null,null,null,null,null,null,null,null,null,null,{"$f":"IF(COUNTIF(DF30:DF34,\"○\")=2,\"○\",\"×\")","v":"×"},null,null,null,null,null,null,null,null,null,null,null,null,null,null,null,null,null,null,null,null,null,null,null,null,null,null,null,null,null,null,null,null,null,null,null,null,null,null,null,null,null,null,null,null,null,null,null,null,null,5,"+",{"$f":"$DE$5+1","v":2},9,"-",{"$f":"5-$DE$5","v":4},3]
[null,null,null,null,null,null,null,null,null,null,null,{"$f":"IF(U30=\"\",U22,\"\")","v":""},null,null,null,null,null,null,null,null,null,null,null,null,null,null,null,null,null,null,null,null,null,null,null,null,null,null,null,null,null,null,null,null,null,null,null,null,null,null,null,null,null,null,null,null,null,null,null,null,null,null,null,null,null,null,null,null,null,null,null,null,null,null,null,null,null,null,null,null,null,null,null,null,null,null,null,null,null,null,null,null,null,null,null,null,null,null,null,null,null,null,null,null,null,null,null,6,"-",{"$f":"$DG$6+6","v":9},10,"+",{"$f":"4-$DG$5","v":3},5]
[null,null,null,null,null,null,null,null,null,null,null,null,null,{"$f":"IF(U30=\"\",W23/GCD(W21,W23),\"\")","v":4},null,null,null,null,null,null,null,null,null,null,null,null,null,null,null,null,null,null,null,null,null,null,null,null,null,null,null,null,null,null,null,null,null,null,null,null,null,null,null,null,null,null,null,null,null,null,null,null,null,null,null,null,null,null,null,null,null,null,null,null,null,null,null,null,null,null,null,null,null,null,null,null,null,null,null,null,null,null,null,null,null,null,null,null,null,null,null,null,null,null,null,null,null,7,"+",{"$f":"$DF$6","v":1},2,"+",{"$f":"3*$DF$5+$DE$6+1","v":4},3]
[null,null,null,null,null,null,null,null,null,null,null,null,null,null,null,null,null,null,null,null,null,null,null,null,null,null,null,null,null,null,null,null,null,null,null,null,null,null,null,null,null,null,null,null,null,null,null,null,null,null,null,null,null,null,null,null,null,null,null,null,null,null,null,null,null,null,null,null,null,null,null,null,null,null,null,null,null,null,null,null,null,null,null,null,null,null,null,null,null,null,null,null,null,null,null,null,null,null,null,null,null,null,null,null,null,null,null,8,"+",{"$f":"$DE$5+4","v":5},3,"-",{"$f":"$DG$6","v":3},4]
[null,null,null,null,null,null,null,null,null,null,null,{"$f":"IF(U30=\"\",\"―――――\",\"\")","v":"―――――"},null,null,null,null,null,null,null,null,null,{"$f":"IF($T$19=$N$9,\"\",IF(($T$19/$N$9)=1,\"\",($T$19/$N$9)&\"倍して\"))","v":"2倍して"},null,null,null,null,null,null,null,{"$f":"IF($T$19=$Y$9,\"\",IF($T$19/Y9=1,\"\",($T$19/Y9)&\"倍して\"))","v":""},null,null,null,null,null,null,null,null,null,null,null,null,null,null,null,null,null,null,null,null,null,null,null,null,null,null,null,null,null,null,null,null,null,null,null,null,null,null,null,null,null,null,null,null,null,null,null,null,null,null,null,null,null,null,null,null,null,null,null,null,null,null,null,null,null,null,null,null,null,null,null,null,null,null,null,null,null,9,"-",{"$f":"$DG$6","v":3},2,"+",{"$f":"2*($DF$5+1)","v":2},5]
[null,null,null,null,null,null,null,null,null,null,null,null,null,null,null,null,null,null,null,{"$f":"J8&L8&(N7*T19/N9)&Q86&Q8&S8&U8&W8&(Y7*T19/Y9)&AB8","v":"（+2）＋（+1）"},null,null,null,null,null,null,null,null,null,null,null,null,null,null,null,null,null,null,null,null,null,null,null,null,null,null,null,null,null,null,null,null,null,null,null,null,null,null,null,null,null,null,null,null,null,null,null,null,null,null,null,null,null,null,null,null,null,null,null,null,null,null,null,null,null,null,null,null,null,null,null,null,null,null,null,null,null,null,null,null,null,null,null,null,null,null,null,10,"-",{"$f":"3*$DE$5+1","v":4},3,"-",{"$f":"$DG$5+1","v":2},5]
[null,null,null,null,null,"解説",null,null,null,null,null,"通分して",null,null,null,null,null,null,null,null,null,null,null,null,null,null,null,null,null,null,null,null,null,null,null,null,null,{"$f":"\"※\"&DBCS(T19)&\"で通分\"","v":"※４で通分"},null,null,null,null,null,null,null,null,null,null,null,null,null,null,null,null,null,null,null,null,null,null,null,null,null,null,null,null,null,null,null,null,null,null,null,null,null,null,null,null,null,null,null,null,null,null,null,null,null,null,null,null,null,null,null,null,null,null,null,null,null,null,null,null,null,null,null,null,null,11,"+",{"$f":"DE6","v":3},2,"-",{"$f":"DH6","v":9},7]
[null,null,null,null,null,null,null,null,null,null,null,null,null,null,null,null,null,null,null,{"$f":"LCM($N$9,$Y$9)","v":4},null,null,null,null,null,null,null,null,null,null,null,null,null,null,null,null,null,null,null,null,null,null,null,null,null,null,null,null,null,null,null,null,null,null,null,null,null,null,null,null,null,null,null,null,null,null,null,null,null,null,null,null,null,null,null,null,null,null,null,null,null,null,null,null,null,null,null,null,null,null,null,null,null,null,null,null,null,null,null,null,null,null,null,null,null,null,null,12,"-",{"$f":"(DE5+1)*(DG5+1)","v":4},7,"+",{"$f":"3*DE5+1","v":4},3]
[null,null,null,null,null,null,null,null,null,null,null,null,null,null,null,null,null,null,null,null,null,null,null,null,null,null,null,null,null,null,null,null,null,null,null,null,null,null,null,null,null,null,null,null,null,null,null,null,null,null,null,null,null,null,null,null,null,null,null,null,null,null,null,null,null,null,null,null,null,null,null,null,null,null,null,null,null,null,null,null,null,null,null,null,null,null,null,null,null,null,null,null,null,null,null,null,null,null,null,null,null,null,null,null,null,null,null,13,"+",{"$f":"$DF$6","v":1},4,"+",{"$f":"$DE$6","v":3},5]
[null,null,null,null,null,null,null,null,null,null,null,null,null,null,null,null,null,null,null,null,null,null,{"$f":"ABS(VALUE(ASC(L8&(N7*T19/N9))+VALUE(ASC(W8&(Y7*T19/Y9)))))","v":3},null,null,null,null,null,null,null,null,null,null,null,null,null,null,null,null,null,null,null,null,null,null,null,null,null,null,null,null,null,null,null,null,null,null,null,null,null,null,null,null,null,null,null,null,null,null,null,null,null,null,null,null,null,null,null,null,null,null,null,null,null,null,null,null,null,null,null,null,null,null,null,null,null,null,null,null,null,null,null,null,null,null,null,null,14,"+",{"$f":"4*$DE$5+1","v":5},4,"-",{"$f":"$DF$6","v":1},7]
[null,null,null,null,null,null,null,null,null,null,null,null,null,null,null,null,null,null,"=",null,{"$f":"IF(VALUE(ASC(L8&(N7*T19/N9))+VALUE(ASC(W8&(Y7*T19/Y9))))<0,\"-\",\"\")","v":""},null,null,null,null,null,null,null,null,null,null,null,null,null,null,null,null,null,null,null,null,null,null,null,null,null,null,null,null,null,null,null,null,null,null,null,null,{"$f":"IF(BF12=\"○\",\"正解！\",\"残念！\")","v":"残念！"},null,null,null,null,null,null,null,null,null,null,null,null,null,null,null,null,null,null,null,null,null,null,null,null,null,null,null,null,null,null,null,null,null,null,null,null,null,null,null,null,null,null,null,null,null,null,null,null,null,15,"-",{"$f":"2*$DE$6-1","v":5},6,"+",{"$f":"$DG$6+1","v":4},5]
[null,null,null,null,null,null,null,null,null,null,null,null,null,null,null,null,null,null,null,null,null,null,{"$f":"T19","v":4},null,null,null,null,null,null,null,null,null,null,null,null,null,null,null,null,null,null,null,null,null,null,null,null,null,null,null,null,null,null,null,null,null,null,null,null,null,null,null,null,null,null,null,null,null,null,null,null,null,null,null,null,null,null,null,null,null,null,null,null,null,null,null,null,null,null,null,null,null,null,null,null,null,null,null,null,null,null,null,null,null,null,null,null,16,"-",{"$f":"4*DF5+1","v":1},4,"-",{"$f":"$DE$6+4","v":7},6]
[null,null,null,null,null,null,null,null,null,null,null,null,null,null,null,null,null,null,null,null,null,null,null,null,null,null,null,null,null,null,null,null,null,null,null,null,null,null,null,null,null,null,null,null,null,null,null,null,null,null,null,null,null,null,null,null,null,null,null,null,null,null,null,null,null,null,null,null,null,null,null,null,null,null,null,null,null,null,null,null,null,null,null,null,null,null,null,null,null,null,null,null,null,null,null,null,null,null,null,null,null,null,null,null,null,null,null,17,"+",{"$f":"4*$DE$6+1","v":13},6,"-",{"$f":"$DG$6+2","v":5},4]
[null,null,null,null,null,null,null,null,null,null,null,null,null,null,null,null,null,null,null,null,null,null,{"$f":"IF(U30=\"\",IF(GCD($W$21,$W$23)>1,$W$21/GCD($W$21,$W$23),\"\"),\"\")","v":""},null,null,null,null,null,null,null,null,null,null,null,null,null,null,null,null,null,null,null,null,null,null,null,null,null,null,null,null,null,null,null,null,null,null,null,null,null,null,null,null,null,null,null,null,null,null,null,null,null,null,null,null,null,null,null,null,null,null,null,null,null,null,null,null,null,null,null,null,null,null,null,null,null,null,null,null,null,null,null,null,null,null,null,null,18,"-",{"$f":"IF(DG6=5,7,$DG$6+4)","v":7},6,"-",{"$f":"3*$DE$6+1","v":10},9]
[null,null,null,null,null,null,null,null,null,null,null,{"$f":"IF(L30=\"\",IF(GCD($W$21,$W$23)>1,\"約分して\",\"\"),\"\")","v":""},null,null,null,null,null,null,{"$f":"IF(L30=\"\",IF(GCD($W$21,$W$23)>1,\"=\",\"\"),\"\")","v":""},null,{"$f":"IF(U30=\"\",IF(GCD($W$21,$W$23)>1,U22,\"\"),\"\")","v":""},null,null,null,null,null,{"$f":"IF(W27=\"\",\"\",DBCS(\"※\"&GCD(W21,W23)&\"で約分\"))","v":""},null,null,null,null,null,null,null,null,null,null,null,null,null,null,null,null,null,null,null,null,null,null,null,null,null,null,null,null,null,null,null,null,null,null,null,null,null,null,null,null,null,null,null,null,null,null,null,null,null,null,null,null,null,null,null,null,null,null,null,null,null,null,null,null,null,null,null,null,null,null,null,null,null,null,null,null,null,null,null,null,19,"-",{"$f":"DH6+2","v":11},8,"+",{"$f":"IF(DG6=5,7,DG6+4)","v":7},6]
[null,null,null,null,null,null,null,null,null,null,null,null,null,null,null,null,null,null,null,null,null,null,{"$f":"IF(U30=\"\",IF(GCD($W$21,$W$23)>1,$W$23/GCD($W$21,$W$23),\"\"),\"\")","v":""},null,null,null,null,null,null,null,null,null,null,null,null,null,null,null,null,null,null,null,null,null,null,null,null,null,null,null,null,null,null,null,null,null,null,null,null,null,null,null,null,null,null,null,null,null,null,null,null,null,null,null,null,null,null,null,null,null,null,null,null,null,null,null,null,null,null,null,null,null,null,null,null,null,null,null,null,null,null,null,null,null,null,null,null,20,"-",{"$f":"$DE$6*$DF$6","v":3},4,"-",{"$f":"$DF$6+6","v":7},10]
[]
[]
[null,null,null,null,null,null,null,null,null,null,null,{"$f":"IF(GCD($W$21,$W$23)=W23,\"約分して\",\"\")","v":""},null,null,null,null,null,null,{"$f":"IF(GCD($W$21,$W$23)=W23,\"=\",\"\")","v":""},null,{"$f":"IF(GCD($W$21,$W$23)=W23,VALUE(ASC(U22&W21))/W23,\"\")","v":""},null,null,null,null,null,null,null,null,null,null,null,null,null,null,null,null,null,null,null,null,null,null,null,null,null,null,null,null,null,null,null,null,null,null,null,null,null,null,null,null,null,null,null,null,null,null,null,null,null,null,null,null,null,null,null,null,null,null,null,null,null,null,null,null,null,null,null,null,null,null,null,null,null,null,null,null,null,null,null,null,null,null,null,null,null,null,null,{"$f":"IF(COUNTA(AQ7:AY10)=0,\"×\",\"○\")","v":"×"},{"$f":"IF(COUNTIF(DE30:DE31,\"○\")=1,\"○\",\"×\")","v":"×"},null,"-"]
[null,null,null,null,null,null,null,null,null,null,null,null,null,null,null,null,null,null,null,null,null,null,null,null,null,null,null,null,null,null,null,null,null,null,null,null,null,null,null,null,null,null,null,null,null,null,null,null,null,null,null,null,null,null,null,null,null,null,null,null,null,null,null,null,null,null,null,null,null,null,null,null,null,null,null,null,null,null,null,null,null,null,null,null,null,null,null,null,null,null,null,null,null,null,null,null,null,null,null,null,null,null,null,null,null,null,null,null,{"$f":"IF(COUNTA(AG8)=0,\"×\",\"○\")","v":"×"}]
[null,null,null,null,null,null,null,null,null,null,null,null,null,null,null,null,null,null,null,null,null,null,null,null,null,null,null,null,null,null,null,null,null,null,null,null,null,null,null,null,null,null,null,null,null,null,null,null,null,null,null,null,null,null,null,null,null,null,null,null,null,null,null,null,null,null,null,null,null,null,null,null,null,null,null,null,null,null,null,null,null,null,null,null,null,null,null,null,null,null,null,null,null,null,null,null,null,null,null,null,null,null,null,null,null,null,null,null,{"$f":"IF(AG8=\"\",\"×\",IF(AG8=N12,\"○\",\"×\"))","v":"×"},{"$f":"DE32","v":"×"}]
[null,null,null,null,null,null,null,null,null,null,null,null,null,null,null,null,null,null,null,null,null,null,null,null,null,null,null,null,null,null,null,null,null,null,null,null,null,null,null,null,null,null,null,null,null,null,null,null,null,null,null,null,null,null,null,null,null,null,null,null,null,null,null,null,null,null,null,null,null,null,null,null,null,null,null,null,null,null,null,null,null,null,null,null,null,null,null,null,null,null,null,null,null,null,null,null,null,null,null,null,null,null,null,null,null,null,null,null,{"$f":"IF(AT7=\"\",\"×\",IF(VALUE(ASC(L13&N12))=VALUE(ASC(AR8&AT7)),\"○\",\"×\"))","v":"×"},{"$f":"IF(COUNTIF(DE33:DE34,\"○\")=2,\"○\",\"×\")","v":"×"}]
[null,null,null,null,null,null,null,null,null,null,null,null,null,null,null,null,null,null,null,null,null,null,null,null,null,null,null,null,null,null,null,null,null,null,null,null,null,null,null,null,null,null,null,null,null,null,null,null,null,null,null,null,null,null,null,null,null,null,null,null,null,null,null,null,null,null,null,null,null,null,null,null,null,null,null,null,null,null,null,null,null,null,null,null,null,null,null,null,null,null,null,null,null,null,null,null,null,null,null,null,null,null,null,null,null,null,null,null,{"$f":"IF(AT9=N14,\"○\",\"×\")","v":"×"}]

{"sheet":"５　整数－整数","index":4,"n_rows":27,"n_cols":110,"rows_kept":27,"cut":false,"hidden":false,"merged":[[18,24,19,25],[18,26,19,28],[18,29,19,30],[18,10,19,10],[18,32,19,50],[21,57,26,69],[15,11,16,12],[15,13,16,14],[15,15,16,17],[15,18,16,19],[15,20,16,21],[15,22,16,23],[15,24,16,25],[15,26,16,28],[15,29,16,30],[18,11,19,12],[18,13,19,14],[18,15,19,17],[18,18,19,19],[18,20,19,21],[18,22,19,23],[7,32,8,39],[11,5,12,8],[11,11,12,18],[11,57,20,69],[15,5,16,8],[7,18,8,19],[7,20,8,21],[7,22,8,23],[7,24,8,26],[7,27,8,28],[7,29,8,30],[7,2,8,5],[7,9,8,10],[7,11,8,12],[7,13,8,15],[7,16,8,17],[0,33,4,68],[1,4,2,6],[1,7,2,25],[6,2,6,5],[6,32,6,39]]}
[null,null,null,null,null,null,null,null,null,null,null,null,null,null,null,null,null,null,null,null,null,null,null,null,null,null,null,null,null,null,null,null,null,"問題は１～２０まで、２０題あります。\n答えが正の数の時は、｢＋｣を省略してください。"]
[null,null,null,null,5,null,null,"整数の減法"]
[]
[]
[]
[]
[null,null,"問題番号",null,null,null,null,null,null,null,null,null,null,null,null,null,null,null,null,null,null,null,null,null,null,null,null,null,null,null,null,null,"答えを入力"]
[null,null,1,null,null,null,null,null,null,"（",null,{"$f":"IF(MOD($C$8,5)<3,\"－\",\"＋\")","v":"－"},null,{"$f":"VLOOKUP($C$8,$DD$8:$DF$27,2,0)","v":1},null,null,"）",null,"－",null,"（",null,{"$f":"IF(MOD($C$8,4)>1,\"＋\",\"－\")","v":"－"},null,{"$f":"VLOOKUP($C$8,$DD$8:$DF$27,3,0)","v":2},null,null,"）",null,"＝",null,null,null,null,null,null,null,null,null,null,null,null,null,null,null,null,null,null,null,null,null,null,null,null,null,null,null,null,null,null,null,null,null,null,null,null,null,null,null,null,null,null,null,null,null,null,null,null,null,null,null,null,null,null,null,null,null,null,null,null,null,null,null,null,null,null,null,null,null,null,null,null,null,null,null,null,null,1,{"$f":"MOD(DAY(TODAY()),3)+1","v":1},{"$f":"MOD(WEEKDAY(TODAY(),2),2)+1","v":2}]
[null,null,null,null,null,null,null,null,null,null,null,null,null,null,null,null,null,null,null,null,null,null,null,null,null,null,null,null,null,null,null,null,null,null,null,null,null,null,null,null,null,null,null,null,null,null,null,null,null,null,null,null,null,null,null,null,null,null,null,null,null,null,null,null,null,null,null,null,null,null,null,null,null,null,null,null,null,null,null,null,null,null,null,null,null,null,null,null,null,null,null,null,null,null,null,null,null,null,null,null,null,null,null,null,null,null,null,2,{"$f":"MOD(DAY(TODAY()),3)+2","v":2},{"$f":"MOD(WEEKDAY(TODAY(),2),2)+3","v":4}]
[null,null,null,null,null,null,null,null,null,null,null,null,null,null,null,null,null,null,null,null,null,null,null,null,null,null,null,null,null,null,null,null,null,null,null,null,null,null,null,null,null,null,null,null,null,null,null,null,null,null,null,null,null,null,null,null,null,null,null,null,null,null,null,null,null,null,null,null,null,null,null,null,null,null,null,null,null,null,null,null,null,null,null,null,null,null,null,null,null,null,null,null,null,null,null,null,null,null,null,null,null,null,null,null,null,null,null,3,{"$f":"MOD(DAY(TODAY()),3)+3","v":3},{"$f":"MOD(WEEKDAY(TODAY(),2),2)+5","v":6}]
[null,null,null,null,null,null,null,null,null,null,null,null,null,null,null,null,null,null,null,null,null,null,null,null,null,null,null,null,null,null,null,null,null,null,null,null,null,null,null,null,null,null,null,null,null,null,null,null,null,null,null,null,null,null,null,null,null,null,null,null,null,null,null,null,null,null,null,null,null,null,null,null,null,null,null,null,null,null,null,null,null,null,null,null,null,null,null,null,null,null,null,null,null,null,null,null,null,null,null,null,null,null,null,null,null,null,null,4,{"$f":"MOD(MONTH(TODAY()),3)+4","v":4},{"$f":"MOD(DAY(TODAY()),3)+1","v":1}]
[null,null,null,null,null,"正解",null,null,null,null,null,{"$f":"VALUE(ASC(N19&P19))+VALUE(ASC(Y19&AA19))","v":1},null,null,null,null,null,null,null,null,null,null,null,null,null,null,null,null,null,null,null,null,null,null,null,null,null,null,null,null,null,null,null,null,null,null,null,null,null,null,null,null,null,null,null,null,null,{"$f":"IF($AG$8=$L$12,\"○\",\"×\")","v":"×"},null,null,null,null,null,null,null,null,null,null,null,null,null,null,null,null,null,null,null,null,null,null,null,null,null,null,null,null,null,null,null,null,null,null,null,null,null,null,null,null,null,null,null,null,null,null,null,null,null,5,{"$f":"MOD(MONTH(TODAY()),3)+5","v":5},{"$f":"MOD(DAY(TODAY()),3)+2","v":2}]
[null,null,null,null,null,null,null,null,null,null,null,null,null,null,null,null,null,null,null,null,null,null,null,null,null,null,null,null,null,null,null,null,null,null,null,null,null,null,null,null,null,null,null,null,null,null,null,null,null,null,null,null,null,null,null,null,null,null,null,null,null,null,null,null,null,null,null,null,null,null,null,null,null,null,null,null,null,null,null,null,null,null,null,null,null,null,null,null,null,null,null,null,null,null,null,null,null,null,null,null,null,null,null,null,null,null,null,6,{"$f":"MOD(MONTH(TODAY()),3)+6","v":6},{"$f":"MOD(DAY(TODAY()),3)+3","v":3}]
[null,null,null,null,null,null,null,null,null,null,null,null,null,null,null,null,null,null,null,null,null,null,null,null,null,null,null,null,null,null,null,null,null,null,null,null,null,null,null,null,null,null,null,null,null,null,null,null,null,null,null,null,null,null,null,null,null,null,null,null,null,null,null,null,null,null,null,null,null,null,null,null,null,null,null,null,null,null,null,null,null,null,null,null,null,null,null,null,null,null,null,null,null,null,null,null,null,null,null,null,null,null,null,null,null,null,null,7,{"$f":"2*(MOD(WEEKDAY(TODAY(),2),2)+1)","v":4},{"$f":"MOD(DAY(TODAY()),5)+3","v":7}]
[null,null,null,null,null,null,null,null,null,null,null,null,null,null,null,null,null,null,null,null,null,null,null,null,null,null,null,null,null,null,null,null,null,null,null,null,null,null,null,null,null,null,null,null,null,null,null,null,null,null,null,null,null,null,null,null,null,null,null,null,null,null,null,null,null,null,null,null,null,null,null,null,null,null,null,null,null,null,null,null,null,null,null,null,null,null,null,null,null,null,null,null,null,null,null,null,null,null,null,null,null,null,null,null,null,null,null,8,{"$f":"2*(MOD(WEEKDAY(TODAY(),2),2)+2)","v":6},{"$f":"MOD(DAY(TODAY()),5)+4","v":8}]
[null,null,null,null,null,"解説",null,null,null,null,null,"（",null,{"$f":"L8","v":"－"},null,{"$f":"N8","v":1},null,null,"）",null,{"$f":"S8","v":"－"},null,"（",null,{"$f":"W8","v":"－"},null,{"$f":"Y8","v":2},null,null,"）",null,null,null,null,null,null,null,null,null,null,null,null,null,null,null,null,null,null,null,null,null,null,null,null,null,null,null,null,null,null,null,null,null,null,null,null,null,null,null,null,null,null,null,null,null,null,null,null,null,null,null,null,null,null,null,null,null,null,null,null,null,null,null,null,null,null,null,null,null,null,null,null,null,null,null,null,null,9,{"$f":"2*(MOD(WEEKDAY(TODAY(),2),2)+3)","v":8},{"$f":"MOD(DAY(TODAY()),5)+5","v":9}]
[null,null,null,null,null,null,null,null,null,null,null,null,null,null,null,null,null,null,null,null,null,null,null,null,null,null,null,null,null,null,null,null,null,null,null,null,null,null,null,null,null,null,null,null,null,null,null,null,null,null,null,null,null,null,null,null,null,null,null,null,null,null,null,null,null,null,null,null,null,null,null,null,null,null,null,null,null,null,null,null,null,null,null,null,null,null,null,null,null,null,null,null,null,null,null,null,null,null,null,null,null,null,null,null,null,null,null,10,{"$f":"3*(MOD(DAY(TODAY()),3)+1)+1","v":4},{"$f":"5*(MOD(WEEKDAY(TODAY(),2),2)+1)","v":10}]
[null,null,null,null,null,null,null,null,null,null,null,null,null,null,null,null,null,null,null,null,null,null,null,null,null,null,null,null,null,null,null,null,null,null,null,null,null,null,null,null,null,null,null,null,null,null,null,null,null,null,null,null,null,null,null,null,null,null,null,null,null,null,null,null,null,null,null,null,null,null,null,null,null,null,null,null,null,null,null,null,null,null,null,null,null,null,null,null,null,null,null,null,null,null,null,null,null,null,null,null,null,null,null,null,null,null,null,11,{"$f":"DE8+6","v":7},{"$f":"DF8+6","v":8}]
[null,null,null,null,null,null,null,null,null,null,"=","（",null,{"$f":"N16","v":"－"},null,{"$f":"P16","v":1},null,null,"）",null,"＋",null,"（",null,{"$f":"IF(Y16=\"－\",\"＋\",\"－\")","v":"＋"},null,{"$f":"AA16","v":2},null,null,"）",null,null,{"$f":"IF(N19=Y19,\"⇒　同符号のたし算\",\"⇒　異符号のたし算\")","v":"⇒　異符号のたし算"},null,null,null,null,null,null,null,null,null,null,null,null,null,null,null,null,null,null,null,null,null,null,null,null,null,null,null,null,null,null,null,null,null,null,null,null,null,null,null,null,null,null,null,null,null,null,null,null,null,null,null,null,null,null,null,null,null,null,null,null,null,null,null,null,null,null,null,null,null,null,null,null,null,null,12,{"$f":"DE9+6","v":8},10]
[null,null,null,null,null,null,null,null,null,null,null,null,null,null,null,null,null,null,null,null,null,null,null,null,null,null,null,null,null,null,null,null,null,null,null,null,null,null,null,null,null,null,null,null,null,null,null,null,null,null,null,null,null,null,null,null,null,null,null,null,null,null,null,null,null,null,null,null,null,null,null,null,null,null,null,null,null,null,null,null,null,null,null,null,null,null,null,null,null,null,null,null,null,null,null,null,null,null,null,null,null,null,null,null,null,null,null,13,9,12]
[null,null,null,null,null,null,null,null,null,null,null,null,null,null,null,null,null,null,null,null,null,null,null,null,null,null,null,null,null,null,null,null,null,null,null,null,null,null,null,null,null,null,null,null,null,null,null,null,null,null,null,null,null,null,null,null,null,null,null,null,null,null,null,null,null,null,null,null,null,null,null,null,null,null,null,null,null,null,null,null,null,null,null,null,null,null,null,null,null,null,null,null,null,null,null,null,null,null,null,null,null,null,null,null,null,null,null,14,10,7]
[null,null,null,null,null,null,null,null,null,null,null,null,null,null,null,null,null,null,null,null,null,null,null,null,null,null,null,null,null,null,null,null,null,null,null,null,null,null,null,null,null,null,null,null,null,null,null,null,null,null,null,null,null,null,null,null,null,{"$f":"IF($AG$8=$L$12,\"正解！\",\"残念！\")","v":"残念！"},null,null,null,null,null,null,null,null,null,null,null,null,null,null,null,null,null,null,null,null,null,null,null,null,null,null,null,null,null,null,null,null,null,null,null,null,null,null,null,null,null,null,null,null,null,null,null,null,null,15,11,8]
[null,null,null,null,null,null,null,null,null,null,null,null,null,null,null,null,null,null,null,null,null,null,null,null,null,null,null,null,null,null,null,null,null,null,null,null,null,null,null,null,null,null,null,null,null,null,null,null,null,null,null,null,null,null,null,null,null,null,null,null,null,null,null,null,null,null,null,null,null,null,null,null,null,null,null,null,null,null,null,null,null,null,null,null,null,null,null,null,null,null,null,null,null,null,null,null,null,null,null,null,null,null,null,null,null,null,null,16,12,9]
[null,null,null,null,null,null,null,null,null,null,null,null,null,null,null,null,null,null,null,null,null,null,null,null,null,null,null,null,null,null,null,null,null,null,null,null,null,null,null,null,null,null,null,null,null,null,null,null,null,null,null,null,null,null,null,null,null,null,null,null,null,null,null,null,null,null,null,null,null,null,null,null,null,null,null,null,null,null,null,null,null,null,null,null,null,null,null,null,null,null,null,null,null,null,null,null,null,null,null,null,null,null,null,null,null,null,null,17,10,13]
[null,null,null,null,null,null,null,null,null,null,null,null,null,null,null,null,null,null,null,null,null,null,null,null,null,null,null,null,null,null,null,null,null,null,null,null,null,null,null,null,null,null,null,null,null,null,null,null,null,null,null,null,null,null,null,null,null,null,null,null,null,null,null,null,null,null,null,null,null,null,null,null,null,null,null,null,null,null,null,null,null,null,null,null,null,null,null,null,null,null,null,null,null,null,null,null,null,null,null,null,null,null,null,null,null,null,null,18,12,14]
[null,null,null,null,null,null,null,null,null,null,null,null,null,null,null,null,null,null,null,null,null,null,null,null,null,null,null,null,null,null,null,null,null,null,null,null,null,null,null,null,null,null,null,null,null,null,null,null,null,null,null,null,null,null,null,null,null,null,null,null,null,null,null,null,null,null,null,null,null,null,null,null,null,null,null,null,null,null,null,null,null,null,null,null,null,null,null,null,null,null,null,null,null,null,null,null,null,null,null,null,null,null,null,null,null,null,null,19,14,15]
[null,null,null,null,null,null,null,null,null,null,null,null,null,null,null,null,null,null,null,null,null,null,null,null,null,null,null,null,null,null,null,null,null,null,null,null,null,null,null,null,null,null,null,null,null,null,null,null,null,null,null,null,null,null,null,null,null,null,null,null,null,null,null,null,null,null,null,null,null,null,null,null,null,null,null,null,null,null,null,null,null,null,null,null,null,null,null,null,null,null,null,null,null,null,null,null,null,null,null,null,null,null,null,null,null,null,null,20,10,16]

{"sheet":"６　分数－分数","index":5,"n_rows":34,"n_cols":114,"rows_kept":34,"cut":false,"hidden":false,"merged":[[33,18,34,18],[33,20,34,24],[29,109,30,109],[32,109,33,109],[21,57,26,69],[26,22,27,25],[28,22,29,25],[20,19,21,36],[22,19,23,36],[21,18,22,18],[11,57,20,69],[25,11,26,17],[16,19,17,36],[29,11,30,17],[29,18,30,18],[29,20,30,21],[29,26,30,42],[30,22,31,25],[17,37,18,47],[18,19,19,36],[24,22,25,25],[25,18,26,18],[25,20,26,21],[15,11,15,16],[15,21,15,26],[15,29,15,34],[17,5,18,8],[17,11,18,17],[7,27,8,28],[7,29,8,30],[7,32,8,39],[7,43,8,44],[11,5,12,8],[11,13,12,16],[11,20,12,45],[7,16,8,17],[7,18,8,19],[7,20,8,21],[8,13,9,15],[7,22,8,23],[12,11,13,12],[13,13,14,16],[0,33,4,68],[1,4,2,6],[1,7,2,25],[5,42,5,50],[6,2,6,5],[6,13,7,15],[6,24,7,26],[6,32,6,39],[6,43,6,44],[6,45,7,49],[7,51,8,61],[8,24,9,26],[8,45,9,49],[7,2,8,5],[7,9,8,10],[7,11,8,12]]}
[null,null,null,null,null,null,null,null,null,null,null,null,null,null,null,null,null,null,null,null,null,null,null,null,null,null,null,null,null,null,null,null,null,"問題は２０題。約分できるものは約分して答えること。\n答えが整数か分数かで、解答の入力場所が違います。"]
[null,null,null,null,6,null,null,"分数の減法"]
[]
[]
[null,null,null,null,null,null,null,null,null,null,null,null,null,null,null,null,null,null,null,null,null,null,null,null,null,null,null,null,null,null,null,null,null,null,null,null,null,null,null,null,null,null,null,null,null,null,null,null,null,null,null,null,null,null,null,null,null,null,null,null,null,null,null,null,null,null,null,null,null,null,null,null,null,null,null,null,null,null,null,null,null,null,null,null,null,null,null,null,null,null,null,null,null,null,null,null,null,null,null,null,null,null,null,null,null,null,null,null,{"$f":"MOD(DAY(TODAY()),2)","v":1},{"$f":"MOD(DAY(TODAY()),3)","v":0},{"$f":"MOD(DAY(TODAY()),4)","v":1},{"$f":"MOD(DAY(TODAY()),5)","v":4},{"$f":"MOD(DAY(TODAY()),6)","v":3}]
[null,null,null,null,null,null,null,null,null,null,null,null,null,null,null,null,null,null,null,null,null,null,null,null,null,null,null,null,null,null,null,null,null,null,null,null,null,null,null,null,null,null,"答えが分数の時",null,null,null,null,null,null,null,null,null,null,null,null,null,null,null,null,null,null,null,null,null,null,null,null,null,null,null,null,null,null,null,null,null,null,null,null,null,null,null,null,null,null,null,null,null,null,null,null,null,null,null,null,null,null,null,null,null,null,null,null,null,null,null,null,null,{"$f":"2*DE5+1","v":3},{"$f":"2*DF5+1","v":1},3,9,7]
[null,null,"問題番号",null,null,null,null,null,null,null,null,null,null,{"$f":"VLOOKUP($C$8,$DD$8:$DJ$27,3,0)","v":1},null,null,null,null,null,null,null,null,null,null,{"$f":"VLOOKUP($C$8,$DD$8:$DJ$27,6,0)","v":1},null,null,null,null,null,null,null,"答えが整数の時",null,null,null,null,null,null,null,null,null,null,null,null,null,null,null,null,null,null,null,null,null,null,null,null,null,null,null,null,null,null,null,null,null,null,null,null,null,null,null,null,null,null,null,null,null,null,null,null,null,null,null,null,null,null,null,null,null,null,null,null,null,null,null,null,null,null,null,null,null,null,null,null,null,null,null,null,null,"母",null,null,"母"]
[null,null,1,null,null,null,null,null,null,"（",null,{"$f":"VLOOKUP($C$8,$DD$8:$DJ$27,2,0)","v":"+"},null,null,null,null,"）",null,"－",null,"（",null,{"$f":"VLOOKUP($C$8,$DD$8:$DJ$27,5,0)","v":"+"},null,null,null,null,"）",null,"＝",null,null,null,null,null,null,null,null,null,null,null,null,null,null,null,null,null,null,null,null,null,"←符号は選んで！",null,null,null,null,null,null,null,null,null,null,null,null,null,null,null,null,null,null,null,null,null,null,null,null,null,null,null,null,null,null,null,null,null,null,null,null,null,null,null,null,null,null,null,null,null,null,null,null,null,null,null,null,null,null,null,1,"+",1,2,"+",{"$f":"DF6","v":1},2]
[null,null,null,null,null,null,null,null,null,null,null,null,null,{"$f":"VLOOKUP($C$8,$DD$8:$DJ$27,4,0)","v":2},null,null,null,null,null,null,null,null,null,null,{"$f":"VLOOKUP($C$8,$DD$8:$DJ$27,7,0)","v":2},null,null,null,null,null,null,null,null,null,null,null,null,null,null,null,null,null,null,null,null,null,null,null,null,null,null,null,null,null,null,null,null,null,null,null,null,null,null,null,null,null,null,null,null,null,null,null,null,null,null,null,null,null,null,null,null,null,null,null,null,null,null,null,null,null,null,null,null,null,null,null,null,null,null,null,null,null,null,null,null,null,null,2,"+",{"$f":"6*$DE$5+1","v":7},6,"-",{"$f":"$DF$5*3+2","v":2},3]
[null,null,null,null,null,null,null,null,null,null,null,null,null,null,null,null,null,null,null,null,null,null,null,null,null,null,null,null,null,null,null,null,null,null,null,null,null,null,null,null,null,null,null,null,null,null,null,null,null,null,null,null,null,null,null,null,null,null,null,null,null,null,null,null,null,null,null,null,null,null,null,null,null,null,null,null,null,null,null,null,null,null,null,null,null,null,null,null,null,null,null,null,null,null,null,null,null,null,null,null,null,null,null,null,null,null,null,3,"-",{"$f":"$DF$6","v":1},2,"+",{"$f":"$DE$6+4","v":7},6]
[null,null,null,null,null,null,null,null,null,null,null,null,null,null,null,null,null,null,null,null,null,null,null,null,null,null,null,null,null,null,null,null,null,null,null,null,null,null,null,null,null,null,null,null,null,null,null,null,null,null,null,null,null,null,null,null,null,null,null,null,null,null,null,null,null,null,null,null,null,null,null,null,null,null,null,null,null,null,null,null,null,null,null,null,null,null,null,null,null,null,null,null,null,null,null,null,null,null,null,null,null,null,null,null,null,null,null,4,"-",{"$f":"8-$DG$6","v":5},2,"-",{"$f":"$DH$6","v":9},8]
[null,null,null,null,null,"正解",null,null,null,null,null,null,null,{"$f":"IF(U34=\"\",W25/GCD(W25,W27),U34)","v":0},null,null,null,null,null,null,{"$f":"IF(U26=\"\",\"⇒ 正の数や０では符号を書かない\",\"\")","v":"⇒ 正の数や０では符号を書かない"},null,null,null,null,null,null,null,null,null,null,null,null,null,null,null,null,null,null,null,null,null,null,null,null,null,null,null,null,null,null,null,null,null,null,null,null,{"$f":"IF(COUNTIF(DF30:DF34,\"○\")=2,\"○\",\"×\")","v":"×"},null,null,null,null,null,null,null,null,null,null,null,null,null,null,null,null,null,null,null,null,null,null,null,null,null,null,null,null,null,null,null,null,null,null,null,null,null,null,null,null,null,null,null,null,null,null,null,null,null,5,"+",{"$f":"$DE$5+1","v":2},9,"-",{"$f":"5-$DE$5","v":4},3]
[null,null,null,null,null,null,null,null,null,null,null,{"$f":"IF(U34=\"\",U26,\"\")","v":""},null,null,null,null,null,null,null,null,null,null,null,null,null,null,null,null,null,null,null,null,null,null,null,null,null,null,null,null,null,null,null,null,null,null,null,null,null,null,null,null,null,null,null,null,null,null,null,null,null,null,null,null,null,null,null,null,null,null,null,null,null,null,null,null,null,null,null,null,null,null,null,null,null,null,null,null,null,null,null,null,null,null,null,null,null,null,null,null,null,null,null,null,null,null,null,6,"-",{"$f":"$DG$6+6","v":9},10,"+",{"$f":"4-$DG$5","v":3},5]
[null,null,null,null,null,null,null,null,null,null,null,null,null,{"$f":"IF(U34=\"\",W27/GCD(W25,W27),\"\")","v":""},null,null,null,null,null,null,null,null,null,null,null,null,null,null,null,null,null,null,null,null,null,null,null,null,null,null,null,null,null,null,null,null,null,null,null,null,null,null,null,null,null,null,null,null,null,null,null,null,null,null,null,null,null,null,null,null,null,null,null,null,null,null,null,null,null,null,null,null,null,null,null,null,null,null,null,null,null,null,null,null,null,null,null,null,null,null,null,null,null,null,null,null,null,7,"+",{"$f":"$DF$6","v":1},2,"+",{"$f":"3*$DF$5+$DE$6+1","v":4},3]
[null,null,null,null,null,null,null,null,null,null,null,null,null,null,null,null,null,null,null,null,null,null,null,null,null,null,null,null,null,null,null,null,null,null,null,null,null,null,null,null,null,null,null,null,null,null,null,null,null,null,null,null,null,null,null,null,null,null,null,null,null,null,null,null,null,null,null,null,null,null,null,null,null,null,null,null,null,null,null,null,null,null,null,null,null,null,null,null,null,null,null,null,null,null,null,null,null,null,null,null,null,null,null,null,null,null,null,8,"+",{"$f":"$DE$5+4","v":5},3,"-",{"$f":"$DG$6","v":3},4]
[null,null,null,null,null,null,null,null,null,null,null,{"$f":"IF(U34=\"\",\"―――――\",\"\")","v":""},null,null,null,null,null,null,null,null,null,{"$f":"IF($T$19=$N$9,\"\",IF(($T$19/$N$9)=1,\"\",($T$19/$N$9)&\"倍して\"))","v":""},null,null,null,null,null,null,null,{"$f":"IF($T$19=$Y$9,\"\",IF($T$19/Y9=1,\"\",($T$19/Y9)&\"倍して\"))","v":""},null,null,null,null,null,null,null,null,null,null,null,null,null,null,null,null,null,null,null,null,null,null,null,null,null,null,null,null,null,null,null,null,null,null,null,null,null,null,null,null,null,null,null,null,null,null,null,null,null,null,null,null,null,null,null,null,null,null,null,null,null,null,null,null,null,null,null,null,null,null,null,null,null,null,null,null,null,9,"-",{"$f":"$DG$6","v":3},2,"+",{"$f":"2*($DF$5+1)","v":2},5]
[null,null,null,null,null,null,null,null,null,null,null,null,null,null,null,null,null,null,null,{"$f":"J8&L8&(N7*T19/N9)&Q86&Q8&S8&U8&W8&(Y7*T19/Y9)&AB8","v":"（+1）－（+1）"},null,null,null,null,null,null,null,null,null,null,null,null,null,null,null,null,null,null,null,null,null,null,null,null,null,null,null,null,null,null,null,null,null,null,null,null,null,null,null,null,null,null,null,null,null,null,null,null,null,null,null,null,null,null,null,null,null,null,null,null,null,null,null,null,null,null,null,null,null,null,null,null,null,null,null,null,null,null,null,null,null,null,null,null,null,null,null,10,"-",{"$f":"3*$DE$5+1","v":4},3,"-",{"$f":"$DG$5+1","v":2},5]
[null,null,null,null,null,"解説",null,null,null,null,null,"通分して",null,null,null,null,null,null,null,null,null,null,null,null,null,null,null,null,null,null,null,null,null,null,null,null,null,{"$f":"\"※\"&DBCS(T19)&\"で通分\"","v":"※２で通分"},null,null,null,null,null,null,null,null,null,null,null,null,null,null,null,null,null,null,null,null,null,null,null,null,null,null,null,null,null,null,null,null,null,null,null,null,null,null,null,null,null,null,null,null,null,null,null,null,null,null,null,null,null,null,null,null,null,null,null,null,null,null,null,null,null,null,null,null,null,11,"+",{"$f":"DE6","v":3},2,"-",{"$f":"DH6","v":9},7]
[null,null,null,null,null,null,null,null,null,null,null,null,null,null,null,null,null,null,null,{"$f":"LCM($N$9,$Y$9)","v":2},null,null,null,null,null,null,null,null,null,null,null,null,null,null,null,null,null,null,null,null,null,null,null,null,null,null,null,null,null,null,null,null,null,null,null,null,null,null,null,null,null,null,null,null,null,null,null,null,null,null,null,null,null,null,null,null,null,null,null,null,null,null,null,null,null,null,null,null,null,null,null,null,null,null,null,null,null,null,null,null,null,null,null,null,null,null,null,12,"-",{"$f":"(DE5+1)*(DG5+1)","v":4},7,"+",{"$f":"3*DE5+1","v":4},3]
[null,null,null,null,null,null,null,null,null,null,null,null,null,null,null,null,null,null,null,null,null,null,null,null,null,null,null,null,null,null,null,null,null,null,null,null,null,null,null,null,null,null,null,null,null,null,null,null,null,null,null,null,null,null,null,null,null,null,null,null,null,null,null,null,null,null,null,null,null,null,null,null,null,null,null,null,null,null,null,null,null,null,null,null,null,null,null,null,null,null,null,null,null,null,null,null,null,null,null,null,null,null,null,null,null,null,null,13,"+",{"$f":"$DF$6","v":1},4,"+",{"$f":"$DE$6","v":3},5]
[null,null,null,null,null,null,null,null,null,null,null,null,null,null,null,null,null,null,null,{"$f":"J8&L8&(N7*T19/N9)&Q86&Q8&\"＋\"&U8&IF(W8=\"+\",\"-\",\"+\")&(Y7*T19/Y9)&AB8","v":"（+1）＋（-1）"},null,null,null,null,null,null,null,null,null,null,null,null,null,null,null,null,null,null,null,null,null,null,null,null,null,null,null,null,null,null,null,null,null,null,null,null,null,null,null,null,null,null,null,null,null,null,null,null,null,null,null,null,null,null,null,null,null,null,null,null,null,null,null,null,null,null,null,null,null,null,null,null,null,null,null,null,null,null,null,null,null,null,null,null,null,null,null,14,"+",{"$f":"4*$DE$5+1","v":5},4,"-",{"$f":"$DF$6","v":1},7]
[null,null,null,null,null,null,null,null,null,null,null,null,null,null,null,null,null,null,"=",null,null,null,null,null,null,null,null,null,null,null,null,null,null,null,null,null,null,null,null,null,null,null,null,null,null,null,null,null,null,null,null,null,null,null,null,null,null,{"$f":"IF(BF12=\"○\",\"正解！\",\"残念！\")","v":"残念！"},null,null,null,null,null,null,null,null,null,null,null,null,null,null,null,null,null,null,null,null,null,null,null,null,null,null,null,null,null,null,null,null,null,null,null,null,null,null,null,null,null,null,null,null,null,null,null,null,null,15,"-",{"$f":"2*$DE$6-1","v":5},6,"+",{"$f":"$DG$6+1","v":4},5]
[null,null,null,null,null,null,null,null,null,null,null,null,null,null,null,null,null,null,null,{"$f":"LCM($N$9,$Y$9)","v":2},null,null,null,null,null,null,null,null,null,null,null,null,null,null,null,null,null,null,null,null,null,null,null,null,null,null,null,null,null,null,null,null,null,null,null,null,null,null,null,null,null,null,null,null,null,null,null,null,null,null,null,null,null,null,null,null,null,null,null,null,null,null,null,null,null,null,null,null,null,null,null,null,null,null,null,null,null,null,null,null,null,null,null,null,null,null,null,16,"-",{"$f":"4*DF5+1","v":1},4,"-",{"$f":"$DE$6+4","v":7},6]
[null,null,null,null,null,null,null,null,null,null,null,null,null,null,null,null,null,null,null,null,null,null,null,null,null,null,null,null,null,null,null,null,null,null,null,null,null,null,null,null,null,null,null,null,null,null,null,null,null,null,null,null,null,null,null,null,null,null,null,null,null,null,null,null,null,null,null,null,null,null,null,null,null,null,null,null,null,null,null,null,null,null,null,null,null,null,null,null,null,null,null,null,null,null,null,null,null,null,null,null,null,null,null,null,null,null,null,17,"+",{"$f":"4*$DE$6+1","v":13},6,"-",{"$f":"$DG$6+2","v":5},4]
[null,null,null,null,null,null,null,null,null,null,null,null,null,null,null,null,null,null,null,null,null,null,{"$f":"ABS(VALUE(ASC(L8&(N7*T19/N9))+VALUE(ASC(IF(W8=\"+\",\"-\",\"+\")&(Y7*T19/Y9)))))","v":0},null,null,null,null,null,null,null,null,null,null,null,null,null,null,null,null,null,null,null,null,null,null,null,null,null,null,null,null,null,null,null,null,null,null,null,null,null,null,null,null,null,null,null,null,null,null,null,null,null,null,null,null,null,null,null,null,null,null,null,null,null,null,null,null,null,null,null,null,null,null,null,null,null,null,null,null,null,null,null,null,null,null,null,null,18,"-",{"$f":"IF(DG6=5,7,$DG$6+4)","v":7},6,"-",{"$f":"3*$DE$6+1","v":10},9]
[null,null,null,null,null,null,null,null,null,null,null,{"$f":"IF(L30=\"\",IF(GCD($W$25,$W$27)>1,\"約分して\",\"\"),\"\")","v":""},null,null,null,null,null,null,"=",null,{"$f":"IF(VALUE(ASC(L8&(N7*T19/N9))-VALUE(ASC(W8&(Y7*T19/Y9))))<0,\"-\",\"\")","v":""},null,null,null,null,null,null,null,null,null,null,null,null,null,null,null,null,null,null,null,null,null,null,null,null,null,null,null,null,null,null,null,null,null,null,null,null,null,null,null,null,null,null,null,null,null,null,null,null,null,null,null,null,null,null,null,null,null,null,null,null,null,null,null,null,null,null,null,null,null,null,null,null,null,null,null,null,null,null,null,null,null,null,null,null,null,null,19,"-",{"$f":"DH6+2","v":11},8,"+",{"$f":"IF(DG6=5,7,DG6+4)","v":7},6]
[null,null,null,null,null,null,null,null,null,null,null,null,null,null,null,null,null,null,null,null,null,null,{"$f":"T19","v":2},null,null,null,null,null,null,null,null,null,null,null,null,null,null,null,null,null,null,null,null,null,null,null,null,null,null,null,null,null,null,null,null,null,null,null,null,null,null,null,null,null,null,null,null,null,null,null,null,null,null,null,null,null,null,null,null,null,null,null,null,null,null,null,null,null,null,null,null,null,null,null,null,null,null,null,null,null,null,null,null,null,null,null,null,20,"-",{"$f":"$DE$6*$DF$6","v":3},4,"-",{"$f":"$DF$6+6","v":7},10]
[]
[null,null,null,null,null,null,null,null,null,null,null,null,null,null,null,null,null,null,null,null,null,null,{"$f":"IF(U34=\"\",IF(GCD($W$25,$W$27)>1,$W$25/GCD($W$25,$W$27),\"\"),\"\")","v":""}]
[null,null,null,null,null,null,null,null,null,null,null,{"$f":"IF(GCD($W$25,$W$27)=W27,\"約分して\",\"\")","v":"約分して"},null,null,null,null,null,null,{"$f":"IF(L30=\"\",IF(GCD($W$25,$W$27)>1,\"=\",\"\"),\"\")","v":""},null,{"$f":"IF(U34=\"\",IF(GCD($W$25,$W$27)>1,U26,\"\"),\"\")","v":""},null,null,null,null,null,{"$f":"IF(W31=\"\",\"\",DBCS(\"※\"&GCD(W25,W27)&\"で約分\"))","v":""},null,null,null,null,null,null,null,null,null,null,null,null,null,null,null,null,null,null,null,null,null,null,null,null,null,null,null,null,null,null,null,null,null,null,null,null,null,null,null,null,null,null,null,null,null,null,null,null,null,null,null,null,null,null,null,null,null,null,null,null,null,null,null,null,null,null,null,null,null,null,null,null,null,null,null,null,null,null,null,null,null,{"$f":"IF(COUNTA(AQ7:AY10)=0,\"×\",\"○\")","v":"×"},{"$f":"IF(COUNTIF(DE30:DE31,\"○\")=1,\"○\",\"×\")","v":"×"},null,"-"]
[null,null,null,null,null,null,null,null,null,null,null,null,null,null,null,null,null,null,null,null,null,null,{"$f":"IF(U34=\"\",IF(GCD($W$25,$W$27)>1,$W$27/GCD($W$25,$W$27),\"\"),\"\")","v":""},null,null,null,null,null,null,null,null,null,null,null,null,null,null,null,null,null,null,null,null,null,null,null,null,null,null,null,null,null,null,null,null,null,null,null,null,null,null,null,null,null,null,null,null,null,null,null,null,null,null,null,null,null,null,null,null,null,null,null,null,null,null,null,null,null,null,null,null,null,null,null,null,null,null,null,null,null,null,null,null,null,null,null,null,null,{"$f":"IF(COUNTA(AG8)=0,\"×\",\"○\")","v":"×"}]
[null,null,null,null,null,null,null,null,null,null,null,null,null,null,null,null,null,null,null,null,null,null,null,null,null,null,null,null,null,null,null,null,null,null,null,null,null,null,null,null,null,null,null,null,null,null,null,null,null,null,null,null,null,null,null,null,null,null,null,null,null,null,null,null,null,null,null,null,null,null,null,null,null,null,null,null,null,null,null,null,null,null,null,null,null,null,null,null,null,null,null,null,null,null,null,null,null,null,null,null,null,null,null,null,null,null,null,null,{"$f":"IF(AG8=\"\",\"×\",IF(AG8=N12,\"○\",\"×\"))","v":"×"},{"$f":"DE32","v":"×"}]
[null,null,null,null,null,null,null,null,null,null,null,null,null,null,null,null,null,null,null,null,null,null,null,null,null,null,null,null,null,null,null,null,null,null,null,null,null,null,null,null,null,null,null,null,null,null,null,null,null,null,null,null,null,null,null,null,null,null,null,null,null,null,null,null,null,null,null,null,null,null,null,null,null,null,null,null,null,null,null,null,null,null,null,null,null,null,null,null,null,null,null,null,null,null,null,null,null,null,null,null,null,null,null,null,null,null,null,null,{"$f":"IF(AT7=\"\",\"×\",IF(VALUE(ASC(L13&N12))=VALUE(ASC(AR8&AT7)),\"○\",\"×\"))","v":"×"},{"$f":"IF(COUNTIF(DE33:DE34,\"○\")=2,\"○\",\"×\")","v":"×"}]
[null,null,null,null,null,null,null,null,null,null,null,null,null,null,null,null,null,null,{"$f":"IF(GCD($W$25,$W$27)=W27,\"=\",\"\")","v":"="},null,{"$f":"IF(GCD($W$25,$W$27)=W27,VALUE(ASC(U26&W25))/W27,\"\")","v":0},null,null,null,null,null,null,null,null,null,null,null,null,null,null,null,null,null,null,null,null,null,null,null,null,null,null,null,null,null,null,null,null,null,null,null,null,null,null,null,null,null,null,null,null,null,null,null,null,null,null,null,null,null,null,null,null,null,null,null,null,null,null,null,null,null,null,null,null,null,null,null,null,null,null,null,null,null,null,null,null,null,null,null,null,null,null,null,{"$f":"IF(AT9=N14,\"○\",\"×\")","v":"○"}]

{"sheet":"７　カッコなし(整数)","index":6,"n_rows":27,"n_cols":110,"rows_kept":27,"cut":false,"hidden":false,"merged":[[7,18,8,19],[7,27,8,28],[7,29,8,30],[0,33,4,68],[1,4,2,6],[1,7,2,25],[6,2,6,5],[6,32,6,39],[7,2,8,5],[7,9,8,10],[7,11,8,12],[7,13,8,17],[7,20,8,24],[7,32,8,39],[11,5,12,8],[11,11,12,18],[11,19,12,35],[15,13,16,14],[15,15,16,19],[15,20,16,21],[15,22,16,26],[15,5,16,8],[15,31,16,56],[21,57,26,69],[11,57,20,69],[18,34,19,47],[18,24,19,25],[18,26,19,28],[18,29,19,30],[18,20,19,21],[18,22,19,23],[18,10,19,10],[18,11,19,12],[18,13,19,14],[18,15,19,17],[18,18,19,19]]}
[null,null,null,null,null,null,null,null,null,null,null,null,null,null,null,null,null,null,null,null,null,null,null,null,null,null,null,null,null,null,null,null,null,"問題は１～２０まで、２０題あります。\n答えが正の数の時は、｢＋｣を省略してください。"]
[null,null,null,null,7,null,null,"カッコのない加減①"]
[]
[]
[]
[]
[null,null,"問題番号",null,null,null,null,null,null,null,null,null,null,null,null,null,null,null,null,null,null,null,null,null,null,null,null,null,null,null,null,null,"答えを入力"]
[null,null,1,null,null,null,null,null,null,null,null,{"$f":"IF(MOD($C$8,5)<3,\"－\",\"\")","v":"－"},null,{"$f":"VLOOKUP($C$8,$DD$8:$DF$27,2,0)","v":1},null,null,null,null,{"$f":"IF(MOD($C$8,4)>1,\"＋\",\"－\")","v":"－"},null,{"$f":"VLOOKUP($C$8,$DD$8:$DF$27,3,0)","v":2},null,null,null,null,null,null,null,null,"＝",null,null,null,null,null,null,null,null,null,null,null,null,null,null,null,null,null,null,null,null,null,null,null,null,null,null,null,null,null,null,null,null,null,null,null,null,null,null,null,null,null,null,null,null,null,null,null,null,null,null,null,null,null,null,null,null,null,null,null,null,null,null,null,null,null,null,null,null,null,null,null,null,null,null,null,null,null,1,{"$f":"MOD(DAY(TODAY()),3)+1","v":1},{"$f":"MOD(WEEKDAY(TODAY(),2),2)+1","v":2}]
[null,null,null,null,null,null,null,null,null,null,null,null,null,null,null,null,null,null,null,null,null,null,null,null,null,null,null,null,null,null,null,null,null,null,null,null,null,null,null,null,null,null,null,null,null,null,null,null,null,null,null,null,null,null,null,null,null,null,null,null,null,null,null,null,null,null,null,null,null,null,null,null,null,null,null,null,null,null,null,null,null,null,null,null,null,null,null,null,null,null,null,null,null,null,null,null,null,null,null,null,null,null,null,null,null,null,null,2,{"$f":"MOD(DAY(TODAY()),3)+2","v":2},{"$f":"MOD(WEEKDAY(TODAY(),2),2)+3","v":4}]
[null,null,null,null,null,null,null,null,null,null,null,null,null,null,null,null,null,null,null,null,null,null,null,null,null,null,null,null,null,null,null,null,null,null,null,null,null,null,null,null,null,null,null,null,null,null,null,null,null,null,null,null,null,null,null,null,null,null,null,null,null,null,null,null,null,null,null,null,null,null,null,null,null,null,null,null,null,null,null,null,null,null,null,null,null,null,null,null,null,null,null,null,null,null,null,null,null,null,null,null,null,null,null,null,null,null,null,3,{"$f":"MOD(DAY(TODAY()),3)+3","v":3},{"$f":"MOD(WEEKDAY(TODAY(),2),2)+5","v":6}]
[null,null,null,null,null,null,null,null,null,null,null,null,null,null,null,null,null,null,null,null,null,null,null,null,null,null,null,null,null,null,null,null,null,null,null,null,null,null,null,null,null,null,null,null,null,null,null,null,null,null,null,null,null,null,null,null,null,null,null,null,null,null,null,null,null,null,null,null,null,null,null,null,null,null,null,null,null,null,null,null,null,null,null,null,null,null,null,null,null,null,null,null,null,null,null,null,null,null,null,null,null,null,null,null,null,null,null,4,{"$f":"MOD(MONTH(TODAY()),3)+4","v":4},{"$f":"MOD(DAY(TODAY()),3)+1","v":1}]
[null,null,null,null,null,"正解",null,null,null,null,null,{"$f":"VALUE(ASC(L8&N8))+VALUE(ASC(S8&U8))","v":-3},null,null,null,null,null,null,null,null,null,null,null,null,null,null,null,null,null,null,null,null,null,null,null,null,null,null,null,null,null,null,null,null,null,null,null,null,null,null,null,null,null,null,null,null,null,{"$f":"IF($AG$8=$L$12,\"○\",\"×\")","v":"×"},null,null,null,null,null,null,null,null,null,null,null,null,null,null,null,null,null,null,null,null,null,null,null,null,null,null,null,null,null,null,null,null,null,null,null,null,null,null,null,null,null,null,null,null,null,null,null,null,null,5,{"$f":"MOD(MONTH(TODAY()),3)+5","v":5},{"$f":"MOD(DAY(TODAY()),3)+2","v":2}]
[null,null,null,null,null,null,null,null,null,null,null,null,null,null,null,null,null,null,null,null,null,null,null,null,null,null,null,null,null,null,null,null,null,null,null,null,null,null,null,null,null,null,null,null,null,null,null,null,null,null,null,null,null,null,null,null,null,null,null,null,null,null,null,null,null,null,null,null,null,null,null,null,null,null,null,null,null,null,null,null,null,null,null,null,null,null,null,null,null,null,null,null,null,null,null,null,null,null,null,null,null,null,null,null,null,null,null,6,{"$f":"MOD(MONTH(TODAY()),3)+6","v":6},{"$f":"MOD(DAY(TODAY()),3)+3","v":3}]
[null,null,null,null,null,null,null,null,null,null,null,null,null,null,null,null,null,null,null,null,null,null,null,null,null,null,null,null,null,null,null,null,null,null,null,null,null,null,null,null,null,null,null,null,null,null,null,null,null,null,null,null,null,null,null,null,null,null,null,null,null,null,null,null,null,null,null,null,null,null,null,null,null,null,null,null,null,null,null,null,null,null,null,null,null,null,null,null,null,null,null,null,null,null,null,null,null,null,null,null,null,null,null,null,null,null,null,7,{"$f":"2*(MOD(WEEKDAY(TODAY(),2),2)+1)","v":4},{"$f":"MOD(DAY(TODAY()),5)+3","v":7}]
[null,null,null,null,null,null,null,null,null,null,null,null,null,null,null,null,null,null,null,null,null,null,null,null,null,null,null,null,null,null,null,null,null,null,null,null,null,null,null,null,null,null,null,null,null,null,null,null,null,null,null,null,null,null,null,null,null,null,null,null,null,null,null,null,null,null,null,null,null,null,null,null,null,null,null,null,null,null,null,null,null,null,null,null,null,null,null,null,null,null,null,null,null,null,null,null,null,null,null,null,null,null,null,null,null,null,null,8,{"$f":"2*(MOD(WEEKDAY(TODAY(),2),2)+2)","v":6},{"$f":"MOD(DAY(TODAY()),5)+4","v":8}]
[null,null,null,null,null,"解説",null,null,null,null,null,null,null,{"$f":"IF(MOD($C$8,5)<3,\"－\",\"\")","v":"－"},null,{"$f":"VLOOKUP($C$8,$DD$8:$DF$27,2,0)","v":1},null,null,null,null,{"$f":"IF(MOD($C$8,4)>1,\"＋\",\"－\")","v":"－"},null,{"$f":"VLOOKUP($C$8,$DD$8:$DF$27,3,0)","v":2},null,null,null,null,null,null,null,null,{"$f":"IF(L8=\"－\",\"\",IF(VALUE(ASC(L8&N8))*L12<0,\"引けないときは「-」をつけて逆に引く\",\"小学校の時と同じ計算！\"))","v":""},null,null,null,null,null,null,null,null,null,null,null,null,null,null,null,null,null,null,null,null,null,null,null,null,null,null,null,null,null,null,null,null,null,null,null,null,null,null,null,null,null,null,null,null,null,null,null,null,null,null,null,null,null,null,null,null,null,null,null,null,null,null,null,null,null,null,null,null,null,null,null,null,null,null,null,9,{"$f":"2*(MOD(WEEKDAY(TODAY(),2),2)+3)","v":8},{"$f":"MOD(DAY(TODAY()),5)+5","v":9}]
[null,null,null,null,null,null,null,null,null,null,null,null,null,null,null,null,null,null,null,null,null,null,null,null,null,null,null,null,null,null,null,null,null,null,null,null,null,null,null,null,null,null,null,null,null,null,null,null,null,null,null,null,null,null,null,null,null,null,null,null,null,null,null,null,null,null,null,null,null,null,null,null,null,null,null,null,null,null,null,null,null,null,null,null,null,null,null,null,null,null,null,null,null,null,null,null,null,null,null,null,null,null,null,null,null,null,null,10,{"$f":"3*(MOD(DAY(TODAY()),3)+1)+1","v":4},{"$f":"5*(MOD(WEEKDAY(TODAY(),2),2)+1)","v":10}]
[null,null,null,null,null,null,null,null,null,null,null,null,null,null,null,null,null,null,null,null,null,null,null,null,null,null,null,null,null,null,null,null,null,null,null,null,null,null,null,null,null,null,null,null,null,null,null,null,null,null,null,null,null,null,null,null,null,null,null,null,null,null,null,null,null,null,null,null,null,null,null,null,null,null,null,null,null,null,null,null,null,null,null,null,null,null,null,null,null,null,null,null,null,null,null,null,null,null,null,null,null,null,null,null,null,null,null,11,{"$f":"DE8+6","v":7},8]
[null,null,null,null,null,null,null,null,null,null,"=","（",null,{"$f":"IF(N16=\"\",\"＋\",N16)","v":"－"},null,{"$f":"VLOOKUP($C$8,$DD$8:$DF$27,2,0)","v":1},null,null,"）",null,"＋",null,"（",null,{"$f":"U16","v":"－"},null,{"$f":"VLOOKUP($C$8,$DD$8:$DF$27,3,0)","v":2},null,null,"）",null,null,null,null,{"$f":"IF(AF16=\"\",IF(N19=Y19,\"同符号のたし算\",\"異符号のたし算\"),\"\")","v":"同符号のたし算"},null,null,null,null,null,null,null,null,null,null,null,null,null,null,null,null,null,null,null,null,null,null,null,null,null,null,null,null,null,null,null,null,null,null,null,null,null,null,null,null,null,null,null,null,null,null,null,null,null,null,null,null,null,null,null,null,null,null,null,null,null,null,null,null,null,null,null,null,null,null,null,null,12,8,10]
[null,null,null,null,null,null,null,null,null,null,null,null,null,null,null,null,null,null,null,null,null,null,null,null,null,null,null,null,null,null,null,null,null,null,null,null,null,null,null,null,null,null,null,null,null,null,null,null,null,null,null,null,null,null,null,null,null,null,null,null,null,null,null,null,null,null,null,null,null,null,null,null,null,null,null,null,null,null,null,null,null,null,null,null,null,null,null,null,null,null,null,null,null,null,null,null,null,null,null,null,null,null,null,null,null,null,null,13,9,12]
[null,null,null,null,null,null,null,null,null,null,null,null,null,null,null,null,null,null,null,null,null,null,null,null,null,null,null,null,null,null,null,null,null,null,null,null,null,null,null,null,null,null,null,null,null,null,null,null,null,null,null,null,null,null,null,null,null,null,null,null,null,null,null,null,null,null,null,null,null,null,null,null,null,null,null,null,null,null,null,null,null,null,null,null,null,null,null,null,null,null,null,null,null,null,null,null,null,null,null,null,null,null,null,null,null,null,null,14,10,7]
[null,null,null,null,null,null,null,null,null,null,null,null,null,null,null,null,null,null,null,null,null,null,null,null,null,null,null,null,null,null,null,null,null,null,null,null,null,null,null,null,null,null,null,null,null,null,null,null,null,null,null,null,null,null,null,null,null,{"$f":"IF($AG$8=$L$12,\"正解！\",\"残念！\")","v":"残念！"},null,null,null,null,null,null,null,null,null,null,null,null,null,null,null,null,null,null,null,null,null,null,null,null,null,null,null,null,null,null,null,null,null,null,null,null,null,null,null,null,null,null,null,null,null,null,null,null,null,15,11,8]
[null,null,null,null,null,null,null,null,null,null,null,null,null,null,null,null,null,null,null,null,null,null,null,null,null,null,null,null,null,null,null,null,null,null,null,null,null,null,null,null,null,null,null,null,null,null,null,null,null,null,null,null,null,null,null,null,null,null,null,null,null,null,null,null,null,null,null,null,null,null,null,null,null,null,null,null,null,null,null,null,null,null,null,null,null,null,null,null,null,null,null,null,null,null,null,null,null,null,null,null,null,null,null,null,null,null,null,16,12,9]
[null,null,null,null,null,null,null,null,null,null,null,null,null,null,null,null,null,null,null,null,null,null,null,null,null,null,null,null,null,null,null,null,null,null,null,null,null,null,null,null,null,null,null,null,null,null,null,null,null,null,null,null,null,null,null,null,null,null,null,null,null,null,null,null,null,null,null,null,null,null,null,null,null,null,null,null,null,null,null,null,null,null,null,null,null,null,null,null,null,null,null,null,null,null,null,null,null,null,null,null,null,null,null,null,null,null,null,17,10,13]
[null,null,null,null,null,null,null,null,null,null,null,null,null,null,null,null,null,null,null,null,null,null,null,null,null,null,null,null,null,null,null,null,null,null,null,null,null,null,null,null,null,null,null,null,null,null,null,null,null,null,null,null,null,null,null,null,null,null,null,null,null,null,null,null,null,null,null,null,null,null,null,null,null,null,null,null,null,null,null,null,null,null,null,null,null,null,null,null,null,null,null,null,null,null,null,null,null,null,null,null,null,null,null,null,null,null,null,18,12,14]
[null,null,null,null,null,null,null,null,null,null,null,null,null,null,null,null,null,null,null,null,null,null,null,null,null,null,null,null,null,null,null,null,null,null,null,null,null,null,null,null,null,null,null,null,null,null,null,null,null,null,null,null,null,null,null,null,null,null,null,null,null,null,null,null,null,null,null,null,null,null,null,null,null,null,null,null,null,null,null,null,null,null,null,null,null,null,null,null,null,null,null,null,null,null,null,null,null,null,null,null,null,null,null,null,null,null,null,19,14,15]
[null,null,null,null,null,null,null,null,null,null,null,null,null,null,null,null,null,null,null,null,null,null,null,null,null,null,null,null,null,null,null,null,null,null,null,null,null,null,null,null,null,null,null,null,null,null,null,null,null,null,null,null,null,null,null,null,null,null,null,null,null,null,null,null,null,null,null,null,null,null,null,null,null,null,null,null,null,null,null,null,null,null,null,null,null,null,null,null,null,null,null,null,null,null,null,null,null,null,null,null,null,null,null,null,null,null,null,20,10,16]

{"sheet":"８　カッコなし(分数)","index":7,"n_rows":34,"n_cols":114,"rows_kept":34,"cut":false,"hidden":false,"merged":[[6,32,6,39],[15,18,15,22],[15,25,15,29],[29,11,30,17],[29,18,30,18],[29,20,30,24],[25,11,26,17],[25,18,26,18],[7,28,8,29],[7,32,8,39],[29,109,30,109],[32,109,33,109],[16,19,17,28],[18,19,19,28],[17,32,18,47],[21,57,26,69],[22,22,23,25],[24,22,25,25],[25,20,26,21],[25,26,26,42],[26,22,27,25],[11,5,12,8],[11,13,12,16],[11,20,12,45],[11,57,20,69],[12,11,13,12],[13,13,14,16],[15,11,15,16],[17,5,18,8],[17,11,18,17],[20,22,21,25],[21,18,22,18],[21,20,22,21],[0,33,4,68],[1,4,2,6],[1,7,2,25],[5,42,5,50],[6,2,6,5],[6,13,7,15],[6,22,7,24],[6,43,6,44],[6,45,7,49],[7,43,8,44],[8,22,9,24],[8,45,9,49],[7,2,8,5],[7,9,8,10],[7,18,8,19],[8,13,9,15]]}
[null,null,null,null,null,null,null,null,null,null,null,null,null,null,null,null,null,null,null,null,null,null,null,null,null,null,null,null,null,null,null,null,null,"問題は２０題。約分できるものは約分して答えること。\n答えが整数か分数かで、解答の入力場所が違います。"]
[null,null,null,null,8,null,null,"カッコのない加減②"]
[]
[]
[null,null,null,null,null,null,null,null,null,null,null,null,null,null,null,null,null,null,null,null,null,null,null,null,null,null,null,null,null,null,null,null,null,null,null,null,null,null,null,null,null,null,null,null,null,null,null,null,null,null,null,null,null,null,null,null,null,null,null,null,null,null,null,null,null,null,null,null,null,null,null,null,null,null,null,null,null,null,null,null,null,null,null,null,null,null,null,null,null,null,null,null,null,null,null,null,null,null,null,null,null,null,null,null,null,null,null,null,{"$f":"MOD(DAY(TODAY()),2)","v":1},{"$f":"MOD(DAY(TODAY()),3)","v":0},{"$f":"MOD(DAY(TODAY()),4)","v":1},{"$f":"MOD(DAY(TODAY()),5)","v":4},{"$f":"MOD(DAY(TODAY()),6)","v":3}]
[null,null,null,null,null,null,null,null,null,null,null,null,null,null,null,null,null,null,null,null,null,null,null,null,null,null,null,null,null,null,null,null,null,null,null,null,null,null,null,null,null,null,"答えが分数の時",null,null,null,null,null,null,null,null,null,null,null,null,null,null,null,null,null,null,null,null,null,null,null,null,null,null,null,null,null,null,null,null,null,null,null,null,null,null,null,null,null,null,null,null,null,null,null,null,null,null,null,null,null,null,null,null,null,null,null,null,null,null,null,null,null,{"$f":"2*DE5+1","v":3},{"$f":"2*DF5+1","v":1},3,9,7]
[null,null,"問題番号",null,null,null,null,null,null,null,null,null,null,{"$f":"VLOOKUP($C$8,$DD$8:$DJ$27,3,0)","v":1},null,null,null,null,null,null,null,null,{"$f":"VLOOKUP($C$8,$DD$8:$DJ$27,6,0)","v":1},null,null,null,null,null,null,null,null,null,"答えが整数の時",null,null,null,null,null,null,null,null,null,null,null,null,null,null,null,null,null,null,null,null,null,null,null,null,null,null,null,null,null,null,null,null,null,null,null,null,null,null,null,null,null,null,null,null,null,null,null,null,null,null,null,null,null,null,null,null,null,null,null,null,null,null,null,null,null,null,null,null,null,null,null,null,null,null,null,null,null,"母",null,null,"母"]
[null,null,1,null,null,null,null,null,null,{"$f":"IF(VLOOKUP($C$8,$DD$8:$DJ$27,2,0)=\"+\",\"\",VLOOKUP($C$8,$DD$8:$DJ$27,2,0))","v":""},null,null,null,null,null,null,null,null,{"$f":"VLOOKUP($C$8,$DD$8:$DJ$27,5,0)","v":"+"},null,null,null,null,null,null,null,null,null,"＝",null,null,null,null,null,null,null,null,null,null,null,null,null,null,null,null,null,null,null,null,null,null,null,null,null,null,null,null,null,null,null,null,null,null,null,null,null,null,null,null,null,null,null,null,null,null,null,null,null,null,null,null,null,null,null,null,null,null,null,null,null,null,null,null,null,null,null,null,null,null,null,null,null,null,null,null,null,null,1,"+",1,2,"+",{"$f":"DF6","v":1},4]
[null,null,null,null,null,null,null,null,null,null,null,null,null,{"$f":"VLOOKUP($C$8,$DD$8:$DJ$27,4,0)","v":2},null,null,null,null,null,null,null,null,{"$f":"VLOOKUP($C$8,$DD$8:$DJ$27,7,0)","v":4},null,null,null,null,null,null,null,null,null,null,null,null,null,null,null,null,null,null,null,null,null,null,null,null,null,null,null,null,null,null,null,null,null,null,null,null,null,null,null,null,null,null,null,null,null,null,null,null,null,null,null,null,null,null,null,null,null,null,null,null,null,null,null,null,null,null,null,null,null,null,null,null,null,null,null,null,null,null,null,null,null,null,null,null,2,"+",{"$f":"6*$DE$5+1","v":7},6,"-",{"$f":"$DF$5*3+2","v":2},3]
[null,null,null,null,null,null,null,null,null,null,null,null,null,null,null,null,null,null,null,null,null,null,null,null,null,null,null,null,null,null,null,null,null,null,null,null,null,null,null,null,null,null,null,null,null,null,null,null,null,null,null,null,null,null,null,null,null,null,null,null,null,null,null,null,null,null,null,null,null,null,null,null,null,null,null,null,null,null,null,null,null,null,null,null,null,null,null,null,null,null,null,null,null,null,null,null,null,null,null,null,null,null,null,null,null,null,null,3,"-",{"$f":"$DF$6","v":1},2,"+",{"$f":"$DE$6+4","v":7},6]
[null,null,null,null,null,null,null,null,null,null,null,null,null,null,null,null,null,null,null,null,null,null,null,null,null,null,null,null,null,null,null,null,null,null,null,null,null,null,null,null,null,null,null,null,null,null,null,null,null,null,null,null,null,null,null,null,null,null,null,null,null,null,null,null,null,null,null,null,null,null,null,null,null,null,null,null,null,null,null,null,null,null,null,null,null,null,null,null,null,null,null,null,null,null,null,null,null,null,null,null,null,null,null,null,null,null,null,4,"-",{"$f":"8-$DG$6","v":5},2,"-",{"$f":"$DH$6","v":9},8]
[null,null,null,null,null,"正解",null,null,null,null,null,null,null,{"$f":"IF(U30=\"\",W21/GCD(W21,W23),U30)","v":3},null,null,null,null,null,null,{"$f":"IF(U22=\"\",\"⇒ 正の数や０では符号を書かない\",\"\")","v":"⇒ 正の数や０では符号を書かない"},null,null,null,null,null,null,null,null,null,null,null,null,null,null,null,null,null,null,null,null,null,null,null,null,null,null,null,null,null,null,null,null,null,null,null,null,{"$f":"IF(COUNTIF(DF30:DF34,\"○\")=2,\"○\",\"×\")","v":"×"},null,null,null,null,null,null,null,null,null,null,null,null,null,null,null,null,null,null,null,null,null,null,null,null,null,null,null,null,null,null,null,null,null,null,null,null,null,null,null,null,null,null,null,null,null,null,null,null,null,5,"+",{"$f":"$DE$5+1","v":2},9,"-",{"$f":"5-$DE$5","v":4},3]
[null,null,null,null,null,null,null,null,null,null,null,{"$f":"IF(U30=\"\",U22,\"\")","v":""},null,null,null,null,null,null,null,null,null,null,null,null,null,null,null,null,null,null,null,null,null,null,null,null,null,null,null,null,null,null,null,null,null,null,null,null,null,null,null,null,null,null,null,null,null,null,null,null,null,null,null,null,null,null,null,null,null,null,null,null,null,null,null,null,null,null,null,null,null,null,null,null,null,null,null,null,null,null,null,null,null,null,null,null,null,null,null,null,null,null,null,null,null,null,null,6,"-",{"$f":"$DG$6+6","v":9},10,"+",{"$f":"4-$DG$5","v":3},5]
[null,null,null,null,null,null,null,null,null,null,null,null,null,{"$f":"IF(U30=\"\",W23/GCD(W21,W23),\"\")","v":4},null,null,null,null,null,null,null,null,null,null,null,null,null,null,null,null,null,null,null,null,null,null,null,null,null,null,null,null,null,null,null,null,null,null,null,null,null,null,null,null,null,null,null,null,null,null,null,null,null,null,null,null,null,null,null,null,null,null,null,null,null,null,null,null,null,null,null,null,null,null,null,null,null,null,null,null,null,null,null,null,null,null,null,null,null,null,null,null,null,null,null,null,null,7,"+",{"$f":"$DF$6","v":1},2,"+",{"$f":"3*$DF$5+$DE$6+1","v":4},3]
[null,null,null,null,null,null,null,null,null,null,null,null,null,null,null,null,null,null,null,null,null,null,null,null,null,null,null,null,null,null,null,null,null,null,null,null,null,null,null,null,null,null,null,null,null,null,null,null,null,null,null,null,null,null,null,null,null,null,null,null,null,null,null,null,null,null,null,null,null,null,null,null,null,null,null,null,null,null,null,null,null,null,null,null,null,null,null,null,null,null,null,null,null,null,null,null,null,null,null,null,null,null,null,null,null,null,null,8,"+",{"$f":"$DE$5+4","v":5},3,"-",{"$f":"$DG$6","v":3},4]
[null,null,null,null,null,null,null,null,null,null,null,{"$f":"IF(U30=\"\",\"―――――\",\"\")","v":"―――――"},null,null,null,null,null,null,{"$f":"IF($T$19=$N$9,\"\",IF(($T$19/$N$9)=1,\"\",($T$19/$N$9)&\"倍\"))","v":"2倍"},null,null,null,null,null,null,{"$f":"IF($T$19=$W$9,\"\",IF($T$19/W9=1,\"\",($T$19/W9)&\"倍\"))","v":""},null,null,null,null,null,null,null,null,null,null,null,null,null,null,null,null,null,null,null,null,null,null,null,null,null,null,null,null,null,null,null,null,null,null,null,null,null,null,null,null,null,null,null,null,null,null,null,null,null,null,null,null,null,null,null,null,null,null,null,null,null,null,null,null,null,null,null,null,null,null,null,null,null,null,null,null,null,null,null,null,null,9,"-",{"$f":"$DG$6","v":3},2,"+",{"$f":"2*($DF$5+1)","v":2},5]
[null,null,null,null,null,null,null,null,null,null,null,null,null,null,null,null,null,null,null,{"$f":"J8&(N7*T19/N9)&S8&(W7*T19/W9)","v":"2+1"},null,null,null,null,null,null,null,null,null,null,null,null,null,null,null,null,null,null,null,null,null,null,null,null,null,null,null,null,null,null,null,null,null,null,null,null,null,null,null,null,null,null,null,null,null,null,null,null,null,null,null,null,null,null,null,null,null,null,null,null,null,null,null,null,null,null,null,null,null,null,null,null,null,null,null,null,null,null,null,null,null,null,null,null,null,null,null,10,"-",{"$f":"3*$DE$5+1","v":4},3,"-",{"$f":"$DG$5+1","v":2},5]
[null,null,null,null,null,"解説",null,null,null,null,null,"通分して",null,null,null,null,null,null,null,null,null,null,null,null,null,null,null,null,null,null,null,null,{"$f":"\"※\"&DBCS(T19)&\"で通分\"","v":"※４で通分"},null,null,null,null,null,null,null,null,null,null,null,null,null,null,null,null,null,null,null,null,null,null,null,null,null,null,null,null,null,null,null,null,null,null,null,null,null,null,null,null,null,null,null,null,null,null,null,null,null,null,null,null,null,null,null,null,null,null,null,null,null,null,null,null,null,null,null,null,null,null,null,null,null,null,11,"+",{"$f":"DE6","v":3},2,"-",{"$f":"DH6","v":9},7]
[null,null,null,null,null,null,null,null,null,null,null,null,null,null,null,null,null,null,null,{"$f":"LCM($N$9,$W$9)","v":4},null,null,null,null,null,null,null,null,null,null,null,null,null,null,null,null,null,null,null,null,null,null,null,null,null,null,null,null,null,null,null,null,null,null,null,null,null,null,null,null,null,null,null,null,null,null,null,null,null,null,null,null,null,null,null,null,null,null,null,null,null,null,null,null,null,null,null,null,null,null,null,null,null,null,null,null,null,null,null,null,null,null,null,null,null,null,null,12,"-",{"$f":"(DE5+1)*(DG5+1)","v":4},7,"+",{"$f":"3*DE5+1","v":4},3]
[null,null,null,null,null,null,null,null,null,null,null,null,null,null,null,null,null,null,null,null,null,null,null,null,null,null,null,null,null,null,null,null,null,null,null,null,null,null,null,null,null,null,null,null,null,null,null,null,null,null,null,null,null,null,null,null,null,null,null,null,null,null,null,null,null,null,null,null,null,null,null,null,null,null,null,null,null,null,null,null,null,null,null,null,null,null,null,null,null,null,null,null,null,null,null,null,null,null,null,null,null,null,null,null,null,null,null,13,"+",{"$f":"$DF$6","v":1},4,"+",{"$f":"$DE$6","v":3},5]
[null,null,null,null,null,null,null,null,null,null,null,null,null,null,null,null,null,null,null,null,null,null,{"$f":"ABS(VALUE(ASC(J8&(N7*T19/N9))+VALUE(ASC(S8&(W7*T19/W9)))))","v":3},null,null,null,null,null,null,null,null,null,null,null,null,null,null,null,null,null,null,null,null,null,null,null,null,null,null,null,null,null,null,null,null,null,null,null,null,null,null,null,null,null,null,null,null,null,null,null,null,null,null,null,null,null,null,null,null,null,null,null,null,null,null,null,null,null,null,null,null,null,null,null,null,null,null,null,null,null,null,null,null,null,null,null,null,14,"+",{"$f":"4*$DE$5+1","v":5},4,"-",{"$f":"$DF$6","v":1},7]
[null,null,null,null,null,null,null,null,null,null,null,null,null,null,null,null,null,null,"=",null,{"$f":"IF(VALUE(ASC(J8&(N7*T19/N9))+VALUE(ASC(S8&(W7*T19/W9))))<0,\"-\",\"\")","v":""},null,null,null,null,null,null,null,null,null,null,null,null,null,null,null,null,null,null,null,null,null,null,null,null,null,null,null,null,null,null,null,null,null,null,null,null,{"$f":"IF(BF12=\"○\",\"正解！\",\"残念！\")","v":"残念！"},null,null,null,null,null,null,null,null,null,null,null,null,null,null,null,null,null,null,null,null,null,null,null,null,null,null,null,null,null,null,null,null,null,null,null,null,null,null,null,null,null,null,null,null,null,null,null,null,null,15,"-",{"$f":"2*$DE$6-1","v":5},6,"+",{"$f":"$DG$6+1","v":4},5]
[null,null,null,null,null,null,null,null,null,null,null,null,null,null,null,null,null,null,null,null,null,null,{"$f":"T19","v":4},null,null,null,null,null,null,null,null,null,null,null,null,null,null,null,null,null,null,null,null,null,null,null,null,null,null,null,null,null,null,null,null,null,null,null,null,null,null,null,null,null,null,null,null,null,null,null,null,null,null,null,null,null,null,null,null,null,null,null,null,null,null,null,null,null,null,null,null,null,null,null,null,null,null,null,null,null,null,null,null,null,null,null,null,16,"-",{"$f":"4*DF5+1","v":1},4,"-",{"$f":"$DE$6+4","v":7},6]
[null,null,null,null,null,null,null,null,null,null,null,null,null,null,null,null,null,null,null,null,null,null,null,null,null,null,null,null,null,null,null,null,null,null,null,null,null,null,null,null,null,null,null,null,null,null,null,null,null,null,null,null,null,null,null,null,null,null,null,null,null,null,null,null,null,null,null,null,null,null,null,null,null,null,null,null,null,null,null,null,null,null,null,null,null,null,null,null,null,null,null,null,null,null,null,null,null,null,null,null,null,null,null,null,null,null,null,17,"+",{"$f":"4*$DE$6+1","v":13},6,"-",{"$f":"$DG$6+2","v":5},4]
[null,null,null,null,null,null,null,null,null,null,null,null,null,null,null,null,null,null,null,null,null,null,{"$f":"IF(U30=\"\",IF(GCD($W$21,$W$23)>1,$W$21/GCD($W$21,$W$23),\"\"),\"\")","v":""},null,null,null,null,null,null,null,null,null,null,null,null,null,null,null,null,null,null,null,null,null,null,null,null,null,null,null,null,null,null,null,null,null,null,null,null,null,null,null,null,null,null,null,null,null,null,null,null,null,null,null,null,null,null,null,null,null,null,null,null,null,null,null,null,null,null,null,null,null,null,null,null,null,null,null,null,null,null,null,null,null,null,null,null,18,"-",{"$f":"IF(DG6=5,7,$DG$6+4)","v":7},6,"-",{"$f":"3*$DE$6+1","v":10},9]
[null,null,null,null,null,null,null,null,null,null,null,{"$f":"IF(L30=\"\",IF(GCD($W$21,$W$23)>1,\"約分して\",\"\"),\"\")","v":""},null,null,null,null,null,null,{"$f":"IF(L30=\"\",IF(GCD($W$21,$W$23)>1,\"=\",\"\"),\"\")","v":""},null,{"$f":"IF(U30=\"\",IF(GCD($W$21,$W$23)>1,U22,\"\"),\"\")","v":""},null,null,null,null,null,{"$f":"IF(W27=\"\",\"\",DBCS(\"※\"&GCD(W21,W23)&\"で約分\"))","v":""},null,null,null,null,null,null,null,null,null,null,null,null,null,null,null,null,null,null,null,null,null,null,null,null,null,null,null,null,null,null,null,null,null,null,null,null,null,null,null,null,null,null,null,null,null,null,null,null,null,null,null,null,null,null,null,null,null,null,null,null,null,null,null,null,null,null,null,null,null,null,null,null,null,null,null,null,null,null,null,null,19,"-",{"$f":"DH6+2","v":11},8,"+",{"$f":"IF(DG6=5,7,DG6+4)","v":7},6]
[null,null,null,null,null,null,null,null,null,null,null,null,null,null,null,null,null,null,null,null,null,null,{"$f":"IF(U30=\"\",IF(GCD($W$21,$W$23)>1,$W$23/GCD($W$21,$W$23),\"\"),\"\")","v":""},null,null,null,null,null,null,null,null,null,null,null,null,null,null,null,null,null,null,null,null,null,null,null,null,null,null,null,null,null,null,null,null,null,null,null,null,null,null,null,null,null,null,null,null,null,null,null,null,null,null,null,null,null,null,null,null,null,null,null,null,null,null,null,null,null,null,null,null,null,null,null,null,null,null,null,null,null,null,null,null,null,null,null,null,20,"-",{"$f":"$DE$6*$DF$6","v":3},4,"-",{"$f":"$DF$6+6","v":7},10]
[]
[]
[null,null,null,null,null,null,null,null,null,null,null,{"$f":"IF(GCD($W$21,$W$23)=W23,\"約分して\",\"\")","v":""},null,null,null,null,null,null,{"$f":"IF(GCD($W$21,$W$23)=W23,\"=\",\"\")","v":""},null,{"$f":"IF(GCD($W$21,$W$23)=W23,VALUE(ASC(U22&W21))/W23,\"\")","v":""},null,null,null,null,null,null,null,null,null,null,null,null,null,null,null,null,null,null,null,null,null,null,null,null,null,null,null,null,null,null,null,null,null,null,null,null,null,null,null,null,null,null,null,null,null,null,null,null,null,null,null,null,null,null,null,null,null,null,null,null,null,null,null,null,null,null,null,null,null,null,null,null,null,null,null,null,null,null,null,null,null,null,null,null,null,null,null,{"$f":"IF(COUNTA(AQ7:AY10)=0,\"×\",\"○\")","v":"×"},{"$f":"IF(COUNTIF(DE30:DE31,\"○\")=1,\"○\",\"×\")","v":"×"},null,"-"]
[null,null,null,null,null,null,null,null,null,null,null,null,null,null,null,null,null,null,null,null,null,null,null,null,null,null,null,null,null,null,null,null,null,null,null,null,null,null,null,null,null,null,null,null,null,null,null,null,null,null,null,null,null,null,null,null,null,null,null,null,null,null,null,null,null,null,null,null,null,null,null,null,null,null,null,null,null,null,null,null,null,null,null,null,null,null,null,null,null,null,null,null,null,null,null,null,null,null,null,null,null,null,null,null,null,null,null,null,{"$f":"IF(COUNTA(AG8)=0,\"×\",\"○\")","v":"×"}]
[null,null,null,null,null,null,null,null,null,null,null,null,null,null,null,null,null,null,null,null,null,null,null,null,null,null,null,null,null,null,null,null,null,null,null,null,null,null,null,null,null,null,null,null,null,null,null,null,null,null,null,null,null,null,null,null,null,null,null,null,null,null,null,null,null,null,null,null,null,null,null,null,null,null,null,null,null,null,null,null,null,null,null,null,null,null,null,null,null,null,null,null,null,null,null,null,null,null,null,null,null,null,null,null,null,null,null,null,{"$f":"IF(AG8=\"\",\"×\",IF(AG8=N12,\"○\",\"×\"))","v":"×"},{"$f":"DE32","v":"×"}]
[null,null,null,null,null,null,null,null,null,null,null,null,null,null,null,null,null,null,null,null,null,null,null,null,null,null,null,null,null,null,null,null,null,null,null,null,null,null,null,null,null,null,null,null,null,null,null,null,null,null,null,null,null,null,null,null,null,null,null,null,null,null,null,null,null,null,null,null,null,null,null,null,null,null,null,null,null,null,null,null,null,null,null,null,null,null,null,null,null,null,null,null,null,null,null,null,null,null,null,null,null,null,null,null,null,null,null,null,{"$f":"IF(AT7=\"\",\"×\",IF(VALUE(ASC(L13&N12))=VALUE(ASC(AR8&AT7)),\"○\",\"×\"))","v":"×"},{"$f":"IF(COUNTIF(DE33:DE34,\"○\")=2,\"○\",\"×\")","v":"×"}]
[null,null,null,null,null,null,null,null,null,null,null,null,null,null,null,null,null,null,null,null,null,null,null,null,null,null,null,null,null,null,null,null,null,null,null,null,null,null,null,null,null,null,null,null,null,null,null,null,null,null,null,null,null,null,null,null,null,null,null,null,null,null,null,null,null,null,null,null,null,null,null,null,null,null,null,null,null,null,null,null,null,null,null,null,null,null,null,null,null,null,null,null,null,null,null,null,null,null,null,null,null,null,null,null,null,null,null,null,{"$f":"IF(AT9=N14,\"○\",\"×\")","v":"×"}]

{"sheet":"９　カッコなし（まとめ）","index":8,"n_rows":27,"n_cols":110,"rows_kept":27,"cut":false,"hidden":false,"merged":[[21,57,26,69],[15,12,16,56],[17,12,18,56],[19,12,20,56],[11,57,20,69],[15,5,16,8],[7,20,8,24],[7,27,8,28],[7,29,8,30],[7,32,8,39],[11,5,12,8],[11,11,12,18],[11,19,12,35],[7,2,8,5],[7,9,8,10],[7,11,8,12],[7,13,8,17],[7,18,8,19],[0,33,4,68],[1,4,2,6],[1,7,2,25],[6,2,6,5],[6,32,6,39]]}
[null,null,null,null,null,null,null,null,null,null,null,null,null,null,null,null,null,null,null,null,null,null,null,null,null,null,null,null,null,null,null,null,null,"問題は１～２０まで、２０題あります。\n答えが正の数の時は、｢＋｣を省略してください。"]
[null,null,null,null,9,null,null,"カッコのない加減③"]
[]
[]
[]
[]
[null,null,"問題番号",null,null,null,null,null,null,null,null,null,null,null,null,null,null,null,null,null,null,null,null,null,null,null,null,null,null,null,null,null,"答えを入力"]
[null,null,1,null,null,null,null,null,null,null,null,{"$f":"IF(MOD($C$8,5)<3,\"－\",\"\")","v":"－"},null,{"$f":"VLOOKUP($C$8,$DD$8:$DF$27,2,0)","v":1},null,null,null,null,{"$f":"IF(MOD($C$8,4)>1,\"＋\",\"－\")","v":"－"},null,{"$f":"VLOOKUP($C$8,$DD$8:$DF$27,3,0)","v":2},null,null,null,null,null,null,null,null,"＝",null,null,null,null,null,null,null,null,null,null,null,null,null,null,null,null,null,null,null,null,null,null,null,null,null,null,null,null,null,null,null,null,null,null,null,null,null,null,null,null,null,null,null,null,null,null,null,null,null,null,null,null,null,null,null,null,null,null,null,null,null,null,null,null,null,null,null,null,null,null,null,null,null,null,null,null,null,1,{"$f":"MOD(DAY(TODAY()),3)+1","v":1},{"$f":"MOD(WEEKDAY(TODAY(),2),2)+1","v":2}]
[null,null,null,null,null,null,null,null,null,null,null,null,null,null,null,null,null,null,null,null,null,null,null,null,null,null,null,null,null,null,null,null,null,null,null,null,null,null,null,null,null,null,null,null,null,null,null,null,null,null,null,null,null,null,null,null,null,null,null,null,null,null,null,null,null,null,null,null,null,null,null,null,null,null,null,null,null,null,null,null,null,null,null,null,null,null,null,null,null,null,null,null,null,null,null,null,null,null,null,null,null,null,null,null,null,null,null,2,{"$f":"MOD(DAY(TODAY()),3)+2","v":2},{"$f":"MOD(WEEKDAY(TODAY(),2),2)+3","v":4}]
[null,null,null,null,null,null,null,null,null,null,null,null,null,null,null,null,null,null,null,null,null,null,null,null,null,null,null,null,null,null,null,null,null,null,null,null,null,null,null,null,null,null,null,null,null,null,null,null,null,null,null,null,null,null,null,null,null,null,null,null,null,null,null,null,null,null,null,null,null,null,null,null,null,null,null,null,null,null,null,null,null,null,null,null,null,null,null,null,null,null,null,null,null,null,null,null,null,null,null,null,null,null,null,null,null,null,null,3,{"$f":"MOD(DAY(TODAY()),3)+3","v":3},{"$f":"MOD(WEEKDAY(TODAY(),2),2)+5","v":6}]
[null,null,null,null,null,null,null,null,null,null,null,null,null,null,null,null,null,null,null,null,null,null,null,null,null,null,null,null,null,null,null,null,null,null,null,null,null,null,null,null,null,null,null,null,null,null,null,null,null,null,null,null,null,null,null,null,null,null,null,null,null,null,null,null,null,null,null,null,null,null,null,null,null,null,null,null,null,null,null,null,null,null,null,null,null,null,null,null,null,null,null,null,null,null,null,null,null,null,null,null,null,null,null,null,null,null,null,4,{"$f":"MOD(MONTH(TODAY()),3)+4","v":4},{"$f":"MOD(DAY(TODAY()),3)+1","v":1}]
[null,null,null,null,null,"正解",null,null,null,null,null,{"$f":"VALUE(ASC(L8&N8))+VALUE(ASC(S8&U8))","v":-3},null,null,null,null,null,null,null,null,null,null,null,null,null,null,null,null,null,null,null,null,null,null,null,null,null,null,null,null,null,null,null,null,null,null,null,null,null,null,null,null,null,null,null,null,null,{"$f":"IF($AG$8=$L$12,\"○\",\"×\")","v":"×"},null,null,null,null,null,null,null,null,null,null,null,null,null,null,null,null,null,null,null,null,null,null,null,null,null,null,null,null,null,null,null,null,null,null,null,null,null,null,null,null,null,null,null,null,null,null,null,null,null,5,{"$f":"MOD(MONTH(TODAY()),3)+5","v":5},{"$f":"MOD(DAY(TODAY()),3)+2","v":2}]
[null,null,null,null,null,null,null,null,null,null,null,null,null,null,null,null,null,null,null,null,null,null,null,null,null,null,null,null,null,null,null,null,null,null,null,null,null,null,null,null,null,null,null,null,null,null,null,null,null,null,null,null,null,null,null,null,null,null,null,null,null,null,null,null,null,null,null,null,null,null,null,null,null,null,null,null,null,null,null,null,null,null,null,null,null,null,null,null,null,null,null,null,null,null,null,null,null,null,null,null,null,null,null,null,null,null,null,6,{"$f":"MOD(MONTH(TODAY()),3)+6","v":6},{"$f":"MOD(DAY(TODAY()),3)+3","v":3}]
[null,null,null,null,null,null,null,null,null,null,null,null,null,null,null,null,null,null,null,null,null,null,null,null,null,null,null,null,null,null,null,null,null,null,null,null,null,null,null,null,null,null,null,null,null,null,null,null,null,null,null,null,null,null,null,null,null,null,null,null,null,null,null,null,null,null,null,null,null,null,null,null,null,null,null,null,null,null,null,null,null,null,null,null,null,null,null,null,null,null,null,null,null,null,null,null,null,null,null,null,null,null,null,null,null,null,null,7,{"$f":"2*(MOD(WEEKDAY(TODAY(),2),2)+1)","v":4},{"$f":"MOD(DAY(TODAY()),5)+3","v":7}]
[null,null,null,null,null,null,null,null,null,null,null,null,null,null,null,null,null,null,null,null,null,null,null,null,null,null,null,null,null,null,null,null,null,null,null,null,null,null,null,null,null,null,null,null,null,null,null,null,null,null,null,null,null,null,null,null,null,null,null,null,null,null,null,null,null,null,null,null,null,null,null,null,null,null,null,null,null,null,null,null,null,null,null,null,null,null,null,null,null,null,null,null,null,null,null,null,null,null,null,null,null,null,null,null,null,null,null,8,{"$f":"2*(MOD(WEEKDAY(TODAY(),2),2)+2)","v":6},{"$f":"MOD(DAY(TODAY()),5)+4","v":8}]
[null,null,null,null,null,"解説",null,null,null,null,null,null,{"$f":"IF(L8=\"－\",IF(S8=\"－\",\"同符号なので数字は足す、符号は共通の「－」\",\"異符号なので符号は数の大きい方、数は大きい方から小さい方を引く\"),\"\")","v":"同符号なので数字は足す、符号は共通の「－」"},null,null,null,null,null,null,null,null,null,null,null,null,null,null,null,null,null,null,null,null,null,null,null,null,null,null,null,null,null,null,null,null,null,null,null,null,null,null,null,null,null,null,null,null,null,null,null,null,null,null,null,null,null,null,null,null,null,null,null,null,null,null,null,null,null,null,null,null,null,null,null,null,null,null,null,null,null,null,null,null,null,null,null,null,null,null,null,null,null,null,null,null,null,null,9,{"$f":"2*(MOD(WEEKDAY(TODAY(),2),2)+3)","v":8},{"$f":"MOD(DAY(TODAY()),5)+5","v":9}]
[null,null,null,null,null,null,null,null,null,null,null,null,null,null,null,null,null,null,null,null,null,null,null,null,null,null,null,null,null,null,null,null,null,null,null,null,null,null,null,null,null,null,null,null,null,null,null,null,null,null,null,null,null,null,null,null,null,null,null,null,null,null,null,null,null,null,null,null,null,null,null,null,null,null,null,null,null,null,null,null,null,null,null,null,null,null,null,null,null,null,null,null,null,null,null,null,null,null,null,null,null,null,null,null,null,null,null,10,{"$f":"3*(MOD(DAY(TODAY()),3)+1)+1","v":4},{"$f":"5*(MOD(WEEKDAY(TODAY(),2),2)+1)","v":10}]
[null,null,null,null,null,null,null,null,null,null,null,null,{"$f":"IF(M16=\"\",IF(S8=\"＋\",\"小学校と同じたし算です\",IF(N8<U8,\"引けないので、「－｣をつけて逆に引く\",\"小学校と同じ引き算です\")),\"\")","v":""},null,null,null,null,null,null,null,null,null,null,null,null,null,null,null,null,null,null,null,null,null,null,null,null,null,null,null,null,null,null,null,null,null,null,null,null,null,null,null,null,null,null,null,null,null,null,null,null,null,null,null,null,null,null,null,null,null,null,null,null,null,null,null,null,null,null,null,null,null,null,null,null,null,null,null,null,null,null,null,null,null,null,null,null,null,null,null,null,null,null,null,null,null,null,11,{"$f":"DE8+6","v":7},8]
[null,null,null,null,null,null,null,null,null,null,null,null,null,null,null,null,null,null,null,null,null,null,null,null,null,null,null,null,null,null,null,null,null,null,null,null,null,null,null,null,null,null,null,null,null,null,null,null,null,null,null,null,null,null,null,null,null,null,null,null,null,null,null,null,null,null,null,null,null,null,null,null,null,null,null,null,null,null,null,null,null,null,null,null,null,null,null,null,null,null,null,null,null,null,null,null,null,null,null,null,null,null,null,null,null,null,null,12,8,10]
[null,null,null,null,null,null,null,null,null,null,null,null,"カッコのない足し算・引き算に慣れましょう",null,null,null,null,null,null,null,null,null,null,null,null,null,null,null,null,null,null,null,null,null,null,null,null,null,null,null,null,null,null,null,null,null,null,null,null,null,null,null,null,null,null,null,null,null,null,null,null,null,null,null,null,null,null,null,null,null,null,null,null,null,null,null,null,null,null,null,null,null,null,null,null,null,null,null,null,null,null,null,null,null,null,null,null,null,null,null,null,null,null,null,null,null,null,13,9,12]
[null,null,null,null,null,null,null,null,null,null,null,null,null,null,null,null,null,null,null,null,null,null,null,null,null,null,null,null,null,null,null,null,null,null,null,null,null,null,null,null,null,null,null,null,null,null,null,null,null,null,null,null,null,null,null,null,null,null,null,null,null,null,null,null,null,null,null,null,null,null,null,null,null,null,null,null,null,null,null,null,null,null,null,null,null,null,null,null,null,null,null,null,null,null,null,null,null,null,null,null,null,null,null,null,null,null,null,14,10,7]
[null,null,null,null,null,null,null,null,null,null,null,null,null,null,null,null,null,null,null,null,null,null,null,null,null,null,null,null,null,null,null,null,null,null,null,null,null,null,null,null,null,null,null,null,null,null,null,null,null,null,null,null,null,null,null,null,null,{"$f":"IF($AG$8=$L$12,\"正解！\",\"残念！\")","v":"残念！"},null,null,null,null,null,null,null,null,null,null,null,null,null,null,null,null,null,null,null,null,null,null,null,null,null,null,null,null,null,null,null,null,null,null,null,null,null,null,null,null,null,null,null,null,null,null,null,null,null,15,11,8]
[null,null,null,null,null,null,null,null,null,null,null,null,null,null,null,null,null,null,null,null,null,null,null,null,null,null,null,null,null,null,null,null,null,null,null,null,null,null,null,null,null,null,null,null,null,null,null,null,null,null,null,null,null,null,null,null,null,null,null,null,null,null,null,null,null,null,null,null,null,null,null,null,null,null,null,null,null,null,null,null,null,null,null,null,null,null,null,null,null,null,null,null,null,null,null,null,null,null,null,null,null,null,null,null,null,null,null,16,12,9]
[null,null,null,null,null,null,null,null,null,null,null,null,null,null,null,null,null,null,null,null,null,null,null,null,null,null,null,null,null,null,null,null,null,null,null,null,null,null,null,null,null,null,null,null,null,null,null,null,null,null,null,null,null,null,null,null,null,null,null,null,null,null,null,null,null,null,null,null,null,null,null,null,null,null,null,null,null,null,null,null,null,null,null,null,null,null,null,null,null,null,null,null,null,null,null,null,null,null,null,null,null,null,null,null,null,null,null,17,10,13]
[null,null,null,null,null,null,null,null,null,null,null,null,null,null,null,null,null,null,null,null,null,null,null,null,null,null,null,null,null,null,null,null,null,null,null,null,null,null,null,null,null,null,null,null,null,null,null,null,null,null,null,null,null,null,null,null,null,null,null,null,null,null,null,null,null,null,null,null,null,null,null,null,null,null,null,null,null,null,null,null,null,null,null,null,null,null,null,null,null,null,null,null,null,null,null,null,null,null,null,null,null,null,null,null,null,null,null,18,12,14]
[null,null,null,null,null,null,null,null,null,null,null,null,null,null,null,null,null,null,null,null,null,null,null,null,null,null,null,null,null,null,null,null,null,null,null,null,null,null,null,null,null,null,null,null,null,null,null,null,null,null,null,null,null,null,null,null,null,null,null,null,null,null,null,null,null,null,null,null,null,null,null,null,null,null,null,null,null,null,null,null,null,null,null,null,null,null,null,null,null,null,null,null,null,null,null,null,null,null,null,null,null,null,null,null,null,null,null,19,14,15]
[null,null,null,null,null,null,null,null,null,null,null,null,null,null,null,null,null,null,null,null,null,null,null,null,null,null,null,null,null,null,null,null,null,null,null,null,null,null,null,null,null,null,null,null,null,null,null,null,null,null,null,null,null,null,null,null,null,null,null,null,null,null,null,null,null,null,null,null,null,null,null,null,null,null,null,null,null,null,null,null,null,null,null,null,null,null,null,null,null,null,null,null,null,null,null,null,null,null,null,null,null,null,null,null,null,null,null,20,10,16]

{"sheet":"10　カッコはずし","index":9,"n_rows":27,"n_cols":110,"rows_kept":27,"cut":false,"hidden":false,"merged":[[21,57,26,69],[11,5,12,8],[11,57,20,69],[15,5,16,8],[7,18,8,19],[7,20,8,21],[7,22,8,23],[7,24,8,26],[7,27,8,28],[7,29,8,30],[7,32,8,41],[15,44,16,51],[18,11,19,42],[18,44,19,51],[11,11,12,26],[15,11,16,42],[0,33,4,68],[1,4,2,6],[1,7,2,25],[6,2,6,5],[7,2,8,5],[7,9,8,10],[7,11,8,12],[7,13,8,15],[7,16,8,17],[5,30,6,43]]}
[null,null,null,null,null,null,null,null,null,null,null,null,null,null,null,null,null,null,null,null,null,null,null,null,null,null,null,null,null,null,null,null,null,"問題は１～２０まで、２０題あります。\n答えが正の数の時は、｢＋｣を省略してください。"]
[null,null,null,null,10,null,null,"カッコをはずす練習"]
[]
[]
[]
[null,null,null,null,null,null,null,null,null,null,null,null,null,null,null,null,null,null,null,null,null,null,null,null,null,null,null,null,null,null,"カッコをはずした式を入力\nしなさい(半角も全角も可)"]
[null,null,"問題番号"]
[null,null,1,null,null,null,null,null,null,"（",null,{"$f":"IF(MOD($C$8,5)<3,\"－\",\"＋\")","v":"－"},null,{"$f":"VLOOKUP($C$8,$DD$8:$DF$27,2,0)","v":1},null,null,"）",null,{"$f":"IF(MOD($C$8,2)=1,\"＋\",\"－\")","v":"＋"},null,"（",null,{"$f":"IF(MOD($C$8,4)>1,\"＋\",\"－\")","v":"－"},null,{"$f":"VLOOKUP($C$8,$DD$8:$DF$27,3,0)","v":2},null,null,"）",null,"＝",null,null,null,null,null,null,null,null,null,null,null,null,null,null,null,null,null,null,null,null,null,null,null,null,null,null,null,null,null,null,null,null,null,null,null,null,null,null,null,null,null,null,null,null,null,null,null,null,null,null,null,null,null,null,null,null,null,null,null,null,null,null,null,null,null,null,null,null,null,null,null,null,null,null,null,null,null,1,{"$f":"MOD(DAY(TODAY()),3)+1","v":1},{"$f":"MOD(WEEKDAY(TODAY(),2),2)+1","v":2}]
[null,null,null,null,null,null,null,null,null,null,null,null,null,null,null,null,null,null,null,null,null,null,null,null,null,null,null,null,null,null,null,null,null,null,null,null,null,null,null,null,null,null,null,null,null,null,null,null,null,null,null,null,null,null,null,null,null,null,null,null,null,null,null,null,null,null,null,null,null,null,null,null,null,null,null,null,null,null,null,null,null,null,null,null,null,null,null,null,null,null,null,null,null,null,null,null,null,null,null,null,null,null,null,null,null,null,null,2,{"$f":"MOD(DAY(TODAY()),3)+2","v":2},{"$f":"MOD(WEEKDAY(TODAY(),2),2)+3","v":4}]
[null,null,null,null,null,null,null,null,null,null,null,null,null,null,null,null,null,null,null,null,null,null,null,null,null,null,null,null,null,null,null,null,null,null,null,null,null,null,null,null,null,null,null,null,null,null,null,null,null,null,null,null,null,null,null,null,null,null,null,null,null,null,null,null,null,null,null,null,null,null,null,null,null,null,null,null,null,null,null,null,null,null,null,null,null,null,null,null,null,null,null,null,null,null,null,null,null,null,null,null,null,null,null,null,null,null,null,3,{"$f":"MOD(DAY(TODAY()),3)+3","v":3},{"$f":"MOD(WEEKDAY(TODAY(),2),2)+5","v":6}]
[null,null,null,null,null,null,null,null,null,null,null,null,null,null,null,null,null,null,null,null,null,null,null,null,null,null,null,null,null,null,null,null,null,null,null,null,null,null,null,null,null,null,null,null,null,null,null,null,null,null,null,null,null,null,null,null,null,null,null,null,null,null,null,null,null,null,null,null,null,null,null,null,null,null,null,null,null,null,null,null,null,null,null,null,null,null,null,null,null,null,null,null,null,null,null,null,null,null,null,null,null,null,null,null,null,null,null,4,{"$f":"MOD(MONTH(TODAY()),3)+4","v":4},{"$f":"MOD(DAY(TODAY()),3)+1","v":1}]
[null,null,null,null,null,"正解",null,null,null,null,null,{"$f":"AS16&AS19","v":"－１－２"},null,null,null,null,null,null,null,null,null,null,null,null,null,null,null,null,null,null,null,null,null,null,null,null,null,null,null,null,null,null,null,null,null,null,null,null,null,null,null,null,null,null,null,null,null,{"$f":"IF(DBCS($AG$8)=DBCS($L$12),\"○\",\"×\")","v":"×"},null,null,null,null,null,null,null,null,null,null,null,null,null,null,null,null,null,null,null,null,null,null,null,null,null,null,null,null,null,null,null,null,null,null,null,null,null,null,null,null,null,null,null,null,null,null,null,null,null,5,{"$f":"MOD(MONTH(TODAY()),3)+5","v":5},{"$f":"MOD(DAY(TODAY()),3)+2","v":2}]
[null,null,null,null,null,null,null,null,null,null,null,null,null,null,null,null,null,null,null,null,null,null,null,null,null,null,null,null,null,null,null,null,null,null,null,null,null,null,null,null,null,null,null,null,null,null,null,null,null,null,null,null,null,null,null,null,null,null,null,null,null,null,null,null,null,null,null,null,null,null,null,null,null,null,null,null,null,null,null,null,null,null,null,null,null,null,null,null,null,null,null,null,null,null,null,null,null,null,null,null,null,null,null,null,null,null,null,6,{"$f":"MOD(MONTH(TODAY()),3)+6","v":6},{"$f":"MOD(DAY(TODAY()),3)+3","v":3}]
[null,null,null,null,null,null,null,null,null,null,null,null,null,null,null,null,null,null,null,null,null,null,null,null,null,null,null,null,null,null,null,null,null,null,null,null,null,null,null,null,null,null,null,null,null,null,null,null,null,null,null,null,null,null,null,null,null,null,null,null,null,null,null,null,null,null,null,null,null,null,null,null,null,null,null,null,null,null,null,null,null,null,null,null,null,null,null,null,null,null,null,null,null,null,null,null,null,null,null,null,null,null,null,null,null,null,null,7,{"$f":"2*(MOD(WEEKDAY(TODAY(),2),2)+1)","v":4},{"$f":"MOD(DAY(TODAY()),5)+3","v":7}]
[null,null,null,null,null,null,null,null,null,null,null,null,null,null,null,null,null,null,null,null,null,null,null,null,null,null,null,null,null,null,null,null,null,null,null,null,null,null,null,null,null,null,null,null,null,null,null,null,null,null,null,null,null,null,null,null,null,null,null,null,null,null,null,null,null,null,null,null,null,null,null,null,null,null,null,null,null,null,null,null,null,null,null,null,null,null,null,null,null,null,null,null,null,null,null,null,null,null,null,null,null,null,null,null,null,null,null,8,{"$f":"2*(MOD(WEEKDAY(TODAY(),2),2)+2)","v":6},{"$f":"MOD(DAY(TODAY()),5)+4","v":8}]
[null,null,null,null,null,"解説",null,null,null,null,null,{"$f":"IF(VALUE(ASC(L8&N8))<0,\"式の最初の\"&ASC(J8&L8&N8&Q8)&\"のカッコを取って  \",\"式の最初の\"&ASC(J8&L8&N8&Q8)&\"のカッコと｢+｣を取って  \")","v":"式の最初の(-1)のカッコを取って  "},null,null,null,null,null,null,null,null,null,null,null,null,null,null,null,null,null,null,null,null,null,null,null,null,null,null,null,null,null,null,null,null,{"$f":"IF(L8=\"－\",DBCS(L8&N8),DBCS(N8))","v":"－１"},null,null,null,null,null,null,null,null,null,null,null,null,null,null,null,null,null,null,null,null,null,null,null,null,null,null,null,null,null,null,null,null,null,null,null,null,null,null,null,null,null,null,null,null,null,null,null,null,null,null,null,null,null,null,null,null,null,null,null,null,null,null,9,{"$f":"2*(MOD(WEEKDAY(TODAY(),2),2)+3)","v":8},{"$f":"MOD(DAY(TODAY()),5)+5","v":9}]
[null,null,null,null,null,null,null,null,null,null,null,null,null,null,null,null,null,null,null,null,null,null,null,null,null,null,null,null,null,null,null,null,null,null,null,null,null,null,null,null,null,null,null,null,null,null,null,null,null,null,null,null,null,null,null,null,null,null,null,null,null,null,null,null,null,null,null,null,null,null,null,null,null,null,null,null,null,null,null,null,null,null,null,null,null,null,null,null,null,null,null,null,null,null,null,null,null,null,null,null,null,null,null,null,null,null,null,10,{"$f":"3*(MOD(DAY(TODAY()),3)+1)+1","v":4},{"$f":"5*(MOD(WEEKDAY(TODAY(),2),2)+1)","v":10}]
[null,null,null,null,null,null,null,null,null,null,null,null,null,null,null,null,null,null,null,null,null,null,null,null,null,null,null,null,null,null,null,null,null,null,null,null,null,null,null,null,null,null,null,null,null,null,null,null,null,null,null,null,null,null,null,null,null,null,null,null,null,null,null,null,null,null,null,null,null,null,null,null,null,null,null,null,null,null,null,null,null,null,null,null,null,null,null,null,null,null,null,null,null,null,null,null,null,null,null,null,null,null,null,null,null,null,null,11,{"$f":"DE8+6","v":7},{"$f":"DF8+6","v":8}]
[null,null,null,null,null,null,null,null,null,null,null,{"$f":"IF(S8=W8,ASC(S8&U8&W8&Y8&AB8)&\"は同符号が続くので「＋」⇒\",ASC(S8&U8&W8&Y8&AB8)&\"は異符号が続くので「－」⇒\")","v":"+(-2)は異符号が続くので「－」⇒"},null,null,null,null,null,null,null,null,null,null,null,null,null,null,null,null,null,null,null,null,null,null,null,null,null,null,null,null,null,null,null,null,{"$f":"IF(S8=W8,DBCS(\"+\"&Y8),DBCS(\"-\"&Y8))","v":"－２"},null,null,null,null,null,null,null,null,null,null,null,null,null,null,null,null,null,null,null,null,null,null,null,null,null,null,null,null,null,null,null,null,null,null,null,null,null,null,null,null,null,null,null,null,null,null,null,null,null,null,null,null,null,null,null,null,null,null,null,null,null,null,12,{"$f":"DE9+6","v":8},10]
[null,null,null,null,null,null,null,null,null,null,null,null,null,null,null,null,null,null,null,null,null,null,null,null,null,null,null,null,null,null,null,null,null,null,null,null,null,null,null,null,null,null,null,null,null,null,null,null,null,null,null,null,null,null,null,null,null,null,null,null,null,null,null,null,null,null,null,null,null,null,null,null,null,null,null,null,null,null,null,null,null,null,null,null,null,null,null,null,null,null,null,null,null,null,null,null,null,null,null,null,null,null,null,null,null,null,null,13,9,12]
[null,null,null,null,null,null,null,null,null,null,null,null,null,null,null,null,null,null,null,null,null,null,null,null,null,null,null,null,null,null,null,null,null,null,null,null,null,null,null,null,null,null,null,null,null,null,null,null,null,null,null,null,null,null,null,null,null,null,null,null,null,null,null,null,null,null,null,null,null,null,null,null,null,null,null,null,null,null,null,null,null,null,null,null,null,null,null,null,null,null,null,null,null,null,null,null,null,null,null,null,null,null,null,null,null,null,null,14,10,7]
[null,null,null,null,null,null,null,null,null,null,null,null,null,null,null,null,null,null,null,null,null,null,null,null,null,null,null,null,null,null,null,null,null,null,null,null,null,null,null,null,null,null,null,null,null,null,null,null,null,null,null,null,null,null,null,null,null,{"$f":"IF(DBCS($AG$8)=DBCS($L$12),\"正解！\",\"残念！\")","v":"残念！"},null,null,null,null,null,null,null,null,null,null,null,null,null,null,null,null,null,null,null,null,null,null,null,null,null,null,null,null,null,null,null,null,null,null,null,null,null,null,null,null,null,null,null,null,null,null,null,null,null,15,11,8]
[null,null,null,null,null,null,null,null,null,null,null,null,null,null,null,null,null,null,null,null,null,null,null,null,null,null,null,null,null,null,null,null,null,null,null,null,null,null,null,null,null,null,null,null,null,null,null,null,null,null,null,null,null,null,null,null,null,null,null,null,null,null,null,null,null,null,null,null,null,null,null,null,null,null,null,null,null,null,null,null,null,null,null,null,null,null,null,null,null,null,null,null,null,null,null,null,null,null,null,null,null,null,null,null,null,null,null,16,12,9]
[null,null,null,null,null,null,null,null,null,null,null,null,null,null,null,null,null,null,null,null,null,null,null,null,null,null,null,null,null,null,null,null,null,null,null,null,null,null,null,null,null,null,null,null,null,null,null,null,null,null,null,null,null,null,null,null,null,null,null,null,null,null,null,null,null,null,null,null,null,null,null,null,null,null,null,null,null,null,null,null,null,null,null,null,null,null,null,null,null,null,null,null,null,null,null,null,null,null,null,null,null,null,null,null,null,null,null,17,10,13]
[null,null,null,null,null,null,null,null,null,null,null,null,null,null,null,null,null,null,null,null,null,null,null,null,null,null,null,null,null,null,null,null,null,null,null,null,null,null,null,null,null,null,null,null,null,null,null,null,null,null,null,null,null,null,null,null,null,null,null,null,null,null,null,null,null,null,null,null,null,null,null,null,null,null,null,null,null,null,null,null,null,null,null,null,null,null,null,null,null,null,null,null,null,null,null,null,null,null,null,null,null,null,null,null,null,null,null,18,12,14]
[null,null,null,null,null,null,null,null,null,null,null,null,null,null,null,null,null,null,null,null,null,null,null,null,null,null,null,null,null,null,null,null,null,null,null,null,null,null,null,null,null,null,null,null,null,null,null,null,null,null,null,null,null,null,null,null,null,null,null,null,null,null,null,null,null,null,null,null,null,null,null,null,null,null,null,null,null,null,null,null,null,null,null,null,null,null,null,null,null,null,null,null,null,null,null,null,null,null,null,null,null,null,null,null,null,null,null,19,14,15]
[null,null,null,null,null,null,null,null,null,null,null,null,null,null,null,null,null,null,null,null,null,null,null,null,null,null,null,null,null,null,null,null,null,null,null,null,null,null,null,null,null,null,null,null,null,null,null,null,null,null,null,null,null,null,null,null,null,null,null,null,null,null,null,null,null,null,null,null,null,null,null,null,null,null,null,null,null,null,null,null,null,null,null,null,null,null,null,null,null,null,null,null,null,null,null,null,null,null,null,null,null,null,null,null,null,null,null,20,10,16]

{"sheet":"11　３数の加減","index":10,"n_rows":31,"n_cols":117,"rows_kept":31,"cut":false,"hidden":false,"merged":[[24,33,25,56],[24,13,25,32],[30,10,31,10],[30,13,31,18],[24,10,25,10],[27,10,28,10],[27,14,28,17],[27,18,28,19],[27,20,28,23],[21,13,22,15],[21,16,22,17],[21,18,22,20],[21,21,22,22],[21,23,22,25],[7,117,7,118],[7,119,7,120],[15,19,16,53],[18,11,19,18],[18,19,19,53],[21,57,26,69],[7,32,8,39],[11,5,12,8],[11,11,12,18],[11,57,20,69],[15,5,16,8],[7,15,8,16],[7,29,8,30],[7,21,8,22],[7,11,8,14],[7,17,8,20],[7,2,8,5],[7,9,8,10],[7,23,8,26],[15,11,16,18],[21,11,22,12],[0,33,4,68],[1,4,2,6],[1,7,2,25],[6,2,6,5],[6,32,6,39]]}
[null,null,null,null,null,null,null,null,null,null,null,null,null,null,null,null,null,null,null,null,null,null,null,null,null,null,null,null,null,null,null,null,null,"問題は１～２０まで、２０題あります。\n答えが正の数の時は、｢＋｣を省略してください。"]
[null,null,null,null,11,null,null,"３つ以上の数の加減"]
[]
[]
[]
[]
[null,null,"問題番号",null,null,null,null,null,null,null,null,null,null,null,null,null,null,null,null,null,null,null,null,null,null,null,null,null,null,null,null,null,"答えを入力"]
[null,null,1,null,null,null,null,null,null,{"$f":"VLOOKUP($C$8,$DD$8:$DJ$27,2,0)","v":"－"},null,{"$f":"VLOOKUP($C$8,$DD$8:$DJ$27,3,0)","v":1},null,null,null,{"$f":"VLOOKUP($C$8,$DD$8:$DJ$27,4,0)","v":"－"},null,{"$f":"VLOOKUP($C$8,$DD$8:$DJ$27,5,0)","v":2},null,null,null,{"$f":"VLOOKUP($C$8,$DD$8:$DJ$27,6,0)","v":"＋"},null,{"$f":"VLOOKUP($C$8,$DD$8:$DJ$27,7,0)","v":4},null,null,null,null,null,"＝",null,null,null,null,null,null,null,null,null,null,null,null,null,null,null,null,null,null,null,null,null,null,null,null,null,null,null,null,null,null,null,null,null,null,null,null,null,null,null,null,null,null,null,null,null,null,null,null,null,null,null,null,null,null,null,null,null,null,null,null,null,null,null,null,null,null,null,null,null,null,null,null,null,null,null,null,null,1,{"$f":"IF(MOD($DD8,5)<3,\"－\",\"\")","v":"－"},{"$f":"MOD(DAY(TODAY()),3)+1","v":1},{"$f":"IF(MOD($DD8,4)>1,\"＋\",\"－\")","v":"－"},{"$f":"MOD(WEEKDAY(TODAY(),2),2)+1","v":2},{"$f":"IF(MOD($DD8,2)=1,\"＋\",\"－\")","v":"＋"},{"$f":"DH8+MOD(DD8,3)+1","v":4},{"$f":"VALUE(ASC(DE8&DF8))","v":-1},{"$f":"VALUE(ASC(DG8&DH8))","v":-2},{"$f":"VALUE(ASC(DI8&DJ8))","v":4}]
[null,null,null,null,null,null,null,null,null,null,null,null,null,null,null,null,null,null,null,null,null,null,null,null,null,null,null,null,null,null,null,null,null,null,null,null,null,null,null,null,null,null,null,null,null,null,null,null,null,null,null,null,null,null,null,null,null,null,null,null,null,null,null,null,null,null,null,null,null,null,null,null,null,null,null,null,null,null,null,null,null,null,null,null,null,null,null,null,null,null,null,null,null,null,null,null,null,null,null,null,null,null,null,null,null,null,null,2,{"$f":"IF(MOD($DD9,5)<3,\"－\",\"\")","v":"－"},{"$f":"MOD(DAY(TODAY()),3)+2","v":2},{"$f":"IF(MOD($DD9,4)>1,\"＋\",\"－\")","v":"＋"},{"$f":"MOD(WEEKDAY(TODAY(),2),2)+3","v":4},{"$f":"IF(MOD($DD9,2)=1,\"＋\",\"－\")","v":"－"},{"$f":"DH9+MOD(DD9,3)+1","v":7},{"$f":"VALUE(ASC(DE9&DF9))","v":-2},{"$f":"VALUE(ASC(DG9&DH9))","v":4},{"$f":"VALUE(ASC(DI9&DJ9))","v":-7}]
[null,null,null,null,null,null,null,null,null,null,null,null,null,null,null,null,null,null,null,null,null,null,null,null,null,null,null,null,null,null,null,null,null,null,null,null,null,null,null,null,null,null,null,null,null,null,null,null,null,null,null,null,null,null,null,null,null,null,null,null,null,null,null,null,null,null,null,null,null,null,null,null,null,null,null,null,null,null,null,null,null,null,null,null,null,null,null,null,null,null,null,null,null,null,null,null,null,null,null,null,null,null,null,null,null,null,null,3,"",{"$f":"MOD(DAY(TODAY()),3)+3","v":3},"＋",{"$f":"MOD(WEEKDAY(TODAY(),2),2)+5","v":6},"＋",7,3,6,7]
[null,null,null,null,null,null,null,null,null,null,null,null,null,null,null,null,null,null,null,null,null,null,null,null,null,null,null,null,null,null,null,null,null,null,null,null,null,null,null,null,null,null,null,null,null,null,null,null,null,null,null,null,null,null,null,null,null,null,null,null,null,null,null,null,null,null,null,null,null,null,null,null,null,null,null,null,null,null,null,null,null,null,null,null,null,null,null,null,null,null,null,null,null,null,null,null,null,null,null,null,null,null,null,null,null,null,null,4,"",{"$f":"MOD(MONTH(TODAY()),3)+4","v":4},"－",{"$f":"MOD(DAY(TODAY()),3)+1","v":1},"－",3,4,-1,-3]
[null,null,null,null,null,"正解",null,null,null,null,null,{"$f":"N31","v":1},null,null,null,null,null,null,null,null,null,null,null,null,null,null,null,null,null,null,null,null,null,null,null,null,null,null,null,null,null,null,null,null,null,null,null,null,null,null,null,null,null,null,null,null,null,{"$f":"IF(AG8=\"\",\"×\",IF($AG$8=$L$12,\"○\",\"×\"))","v":"×"},null,null,null,null,null,null,null,null,null,null,null,null,null,null,null,null,null,null,null,null,null,null,null,null,null,null,null,null,null,null,null,null,null,null,null,null,null,null,null,null,null,null,null,null,null,null,null,null,null,5,"－",{"$f":"MOD(MONTH(TODAY()),3)+5","v":5},"－",{"$f":"MOD(DAY(TODAY()),3)+2","v":2},"＋",5,-5,-2,5]
[null,null,null,null,null,null,null,null,null,null,null,null,null,null,null,null,null,null,null,null,null,null,null,null,null,null,null,null,null,null,null,null,null,null,null,null,null,null,null,null,null,null,null,null,null,null,null,null,null,null,null,null,null,null,null,null,null,null,null,null,null,null,null,null,null,null,null,null,null,null,null,null,null,null,null,null,null,null,null,null,null,null,null,null,null,null,null,null,null,null,null,null,null,null,null,null,null,null,null,null,null,null,null,null,null,null,null,6,"－",{"$f":"MOD(MONTH(TODAY()),3)+6","v":6},"＋",{"$f":"MOD(DAY(TODAY()),3)+3","v":3},"－",4,-6,3,-4]
[null,null,null,null,null,null,null,null,null,null,null,null,null,null,null,null,null,null,null,null,null,null,null,null,null,null,null,null,null,null,null,null,null,null,null,null,null,null,null,null,null,null,null,null,null,null,null,null,null,null,null,null,null,null,null,null,null,null,null,null,null,null,null,null,null,null,null,null,null,null,null,null,null,null,null,null,null,null,null,null,null,null,null,null,null,null,null,null,null,null,null,null,null,null,null,null,null,null,null,null,null,null,null,null,null,null,null,7,"－",{"$f":"2*(MOD(WEEKDAY(TODAY(),2),2)+1)","v":4},"＋",{"$f":"MOD(DAY(TODAY()),5)+3","v":7},"＋",9,-4,7,9]
[null,null,null,null,null,null,null,null,null,null,null,null,null,null,null,null,null,null,null,null,null,null,null,null,null,null,null,null,null,null,null,null,null,null,null,null,null,null,null,null,null,null,null,null,null,null,null,null,null,null,null,null,null,null,null,null,null,null,null,null,null,null,null,null,null,null,null,null,null,null,null,null,null,null,null,null,null,null,null,null,null,null,null,null,null,null,null,null,null,null,null,null,null,null,null,null,null,null,null,null,null,null,null,null,null,null,null,8,"",{"$f":"2*(MOD(WEEKDAY(TODAY(),2),2)+2)","v":6},"－",{"$f":"MOD(DAY(TODAY()),5)+4","v":8},"－",11,6,-8,-11]
[null,null,null,null,null,"解説",null,null,null,null,null,"正の数",null,null,null,null,null,null,null,{"$f":"IF(VLOOKUP($C$8,$DD$8:$DM$27,8,0)<0,\"\",\"「\"&VLOOKUP($C$8,$DD$8:$DM$27,8,0)&\"」\")&IF(VLOOKUP($C$8,$DD$8:$DM$27,9,0)<0,\"\",\"「\"&VLOOKUP($C$8,$DD$8:$DM$27,9,0)&\"」\")&IF(VLOOKUP($C$8,$DD$8:$DM$27,10,0)<0,\"\",\"「\"&VLOOKUP($C$8,$DD$8:$DM$27,10,0)&\"」\")","v":"「4」"},null,null,null,null,null,null,null,null,null,null,null,null,null,null,null,null,null,null,null,null,null,null,null,null,null,null,null,null,null,null,null,null,null,null,null,null,null,null,null,null,null,null,null,null,null,null,null,null,null,null,null,null,null,null,null,null,null,null,null,null,null,null,null,null,null,null,null,null,null,null,null,null,null,null,null,null,null,null,null,null,null,null,null,null,null,null,null,9,"",{"$f":"2*(MOD(WEEKDAY(TODAY(),2),2)+3)","v":8},"－",{"$f":"MOD(DAY(TODAY()),5)+5","v":9},"＋",10,8,-9,10]
[null,null,null,null,null,null,null,null,null,null,null,null,null,null,null,null,null,null,null,null,null,null,null,null,null,null,null,null,null,null,null,null,null,null,null,null,null,null,null,null,null,null,null,null,null,null,null,null,null,null,null,null,null,null,null,null,null,null,null,null,null,null,null,null,null,null,null,null,null,null,null,null,null,null,null,null,null,null,null,null,null,null,null,null,null,null,null,null,null,null,null,null,null,null,null,null,null,null,null,null,null,null,null,null,null,null,null,10,"－",{"$f":"3*(MOD(DAY(TODAY()),3)+1)+1","v":4},"＋",{"$f":"5*(MOD(WEEKDAY(TODAY(),2),2)+1)","v":10},"－",12,-4,10,-12]
[null,null,null,null,null,null,null,null,null,null,null,null,null,null,null,null,null,null,null,null,null,null,null,null,null,null,null,null,null,null,null,null,null,null,null,null,null,null,null,null,null,null,null,null,null,null,null,null,null,null,null,null,null,null,null,null,null,null,null,null,null,null,null,null,null,null,null,null,null,null,null,null,null,null,null,null,null,null,null,null,null,null,null,null,null,null,null,null,null,null,null,null,null,null,null,null,null,null,null,null,null,null,null,null,null,null,null,11,"－",{"$f":"DF8+6","v":7},"＋",{"$f":"DH8+6","v":8},"＋",11,-7,8,11]
[null,null,null,null,null,null,null,null,null,null,null,"負の数",null,null,null,null,null,null,null,{"$f":"IF(VLOOKUP($C$8,$DD$8:$DM$27,8,0)>0,\"\",\"「\"&VLOOKUP($C$8,$DD$8:$DM$27,8,0)&\"」\")&IF(VLOOKUP($C$8,$DD$8:$DM$27,9,0)>0,\"\",\"「\"&VLOOKUP($C$8,$DD$8:$DM$27,9,0)&\"」\")&IF(VLOOKUP($C$8,$DD$8:$DM$27,10,0)>0,\"\",\"「\"&VLOOKUP($C$8,$DD$8:$DM$27,10,0)&\"」\")","v":"「-1」「-2」"},null,null,null,null,null,null,null,null,null,null,null,null,null,null,null,null,null,null,null,null,null,null,null,null,null,null,null,null,null,null,null,null,null,null,null,null,null,null,null,null,null,null,null,null,null,null,null,null,null,null,null,null,null,null,null,null,null,null,null,null,null,null,null,null,null,null,null,null,null,null,null,null,null,null,null,null,null,null,null,null,null,null,null,null,null,null,null,12,"－",{"$f":"DF9+6","v":8},"－",10,"－",11,-8,-10,-11]
[null,null,null,null,null,null,null,null,null,null,null,null,null,null,null,null,null,null,null,null,null,null,null,null,null,null,null,null,null,null,null,null,null,null,null,null,null,null,null,null,null,null,null,null,null,null,null,null,null,null,null,null,null,null,null,null,null,null,null,null,null,null,null,null,null,null,null,null,null,null,null,null,null,null,null,null,null,null,null,null,null,null,null,null,null,null,null,null,null,null,null,null,null,null,null,null,null,null,null,null,null,null,null,null,null,null,null,13,"",9,"－",12,"＋",14,9,-12,14]
[null,null,null,null,null,null,null,null,null,null,null,null,null,null,null,null,null,null,null,null,null,null,null,null,null,null,null,null,null,null,null,null,null,null,null,null,null,null,null,null,null,null,null,null,null,null,null,null,null,null,null,null,null,null,null,null,null,null,null,null,null,null,null,null,null,null,null,null,null,null,null,null,null,null,null,null,null,null,null,null,null,null,null,null,null,null,null,null,null,null,null,null,null,null,null,null,null,null,null,null,null,null,null,null,null,null,null,14,"",10,"＋",7,"－",10,10,7,-10]
[null,null,null,null,null,null,null,null,null,null,null,{"$f":"VLOOKUP($C$8,$DD$8:$DJ$27,2,0)","v":"－"},null,{"$f":"L8","v":1},null,null,{"$f":"P8","v":"－"},null,{"$f":"R8","v":2},null,null,{"$f":"V8","v":"＋"},null,{"$f":"X8","v":4},null,null,null,null,null,null,null,null,null,null,null,null,null,null,null,null,null,null,null,null,null,null,null,null,null,null,null,null,null,null,null,null,null,{"$f":"IF(AG8=\"\",\"残念！\",IF($AG$8=$L$12,\"正解！\",\"残念！\"))","v":"残念！"},null,null,null,null,null,null,null,null,null,null,null,null,null,null,null,null,null,null,null,null,null,null,null,null,null,null,null,null,null,null,null,null,null,null,null,null,null,null,null,null,null,null,null,null,null,null,null,null,null,15,"－",11,"＋",8,"＋",9,-11,8,9]
[null,null,null,null,null,null,null,null,null,null,null,null,null,null,null,null,null,null,null,null,null,null,null,null,null,null,null,null,null,null,null,null,null,null,null,null,null,null,null,null,null,null,null,null,null,null,null,null,null,null,null,null,null,null,null,null,null,null,null,null,null,null,null,null,null,null,null,null,null,null,null,null,null,null,null,null,null,null,null,null,null,null,null,null,null,null,null,null,null,null,null,null,null,null,null,null,null,null,null,null,null,null,null,null,null,null,null,16,"－",12,"－",9,"－",11,-12,-9,-11]
[null,null,null,null,null,null,null,null,null,null,null,null,null,null,null,null,null,null,null,null,null,null,null,null,null,null,null,null,null,null,null,null,null,null,null,null,null,null,null,null,null,null,null,null,null,null,null,null,null,null,null,null,null,null,null,null,null,null,null,null,null,null,null,null,null,null,null,null,null,null,null,null,null,null,null,null,null,null,null,null,null,null,null,null,null,null,null,null,null,null,null,null,null,null,null,null,null,null,null,null,null,null,null,null,null,null,null,17,"－",10,"－",13,"＋",16,-10,-13,16]
[null,null,null,null,null,null,null,null,null,null,"=",null,null,{"$f":"DBCS(IF(VLOOKUP($C$8,$DD$8:$DM$27,8,0)<0,\"\",VLOOKUP($C$8,$DD$8:$DM$27,8,0))&IF(VLOOKUP($C$8,$DD$8:$DM$27,8,0)<0,IF(VLOOKUP($C$8,$DD$8:$DM$27,9,0)<0,\"\",VLOOKUP($C$8,$DD$8:$DM$27,9,0)),IF(VLOOKUP($C$8,$DD$8:$DM$27,9,0)<0,\"\",\"+\"&VLOOKUP($C$8,$DD$8:$DM$27,9,0)))& IF(VLOOKUP($C$8,$DD$8:$DM$27,8,0)<0,IF(VLOOKUP($C$8,$DD$8:$DM$27,9,0)<0,IF(VLOOKUP($C$8,$DD$8:$DM$27,10)<0,\"\",VLOOKUP($C$8,$DD$8:$DM$27,10,0)),IF(VLOOKUP($C$8,$DD$8:$DM$27,10,0)<0,\"\",\"+\"&VLOOKUP($C$8,$DD$8:$DM$27,10,0))),IF(VLOOKUP($C$8,$DD$8:$DM$27,10,0)<0,\"\",\"+\"&VLOOKUP($C$8,$DD$8:$DM$27,10,0)))&IF(VLOOKUP($C$8,$DD$8:$DM$27,8,0)>0,\"\",VLOOKUP($C$8,$DD$8:$DM$27,8,0))&IF(VLOOKUP($C$8,$DD$8:$DM$27,9,0)>0,\"\",VLOOKUP($C$8,$DD$8:$DM$27,9,0))&IF(VLOOKUP($C$8,$DD$8:$DM$27,10,0)>0,\"\",VLOOKUP($C$8,$DD$8:$DM$27,10,0)))","v":"４－１－２"},null,null,null,null,null,null,null,null,null,null,null,null,null,null,null,null,null,null,null,"正の数、負の数をまとめる",null,null,null,null,null,null,null,null,null,null,null,null,null,null,null,null,null,null,null,null,null,null,null,null,null,null,null,null,null,null,null,null,null,null,null,null,null,null,null,null,null,null,null,null,null,null,null,null,null,null,null,null,null,null,null,null,null,null,null,null,null,null,null,null,null,null,null,null,null,null,null,null,null,18,"",12,"＋",14,"－",15,12,14,-15]
[null,null,null,null,null,null,null,null,null,null,null,null,null,null,null,null,null,null,null,null,null,null,null,null,null,null,null,null,null,null,null,null,null,null,null,null,null,null,null,null,null,null,null,null,null,null,null,null,null,null,null,null,null,null,null,null,null,null,null,null,null,null,null,null,null,null,null,null,null,null,null,null,null,null,null,null,null,null,null,null,null,null,null,null,null,null,null,null,null,null,null,null,null,null,null,null,null,null,null,null,null,null,null,null,null,null,null,19,"",14,"＋",15,"＋",17,14,15,17]
[null,null,null,null,null,null,null,null,null,null,null,null,null,null,null,null,null,null,null,null,null,null,null,null,null,null,null,null,null,null,null,null,null,null,null,null,null,null,null,null,null,null,null,null,null,null,null,null,null,null,null,null,null,null,null,null,null,null,null,null,null,null,null,null,null,null,null,null,null,null,null,null,null,null,null,null,null,null,null,null,null,null,null,null,null,null,null,null,null,null,null,null,null,null,null,null,null,null,null,null,null,null,null,null,null,null,null,20,"－",10,"－",16,"－",19,-10,-16,-19]
[null,null,null,null,null,null,null,null,null,null,"=",null,null,null,{"$f":"DBCS(IF(VLOOKUP($C$8,$DD$8:$DM$27,8,0)<0,0,VLOOKUP($C$8,$DD$8:$DM$27,8,0))+IF(VLOOKUP($C$8,$DD$8:$DM$27,9,0)<0,0,VLOOKUP($C$8,$DD$8:$DM$27,9,0))+IF(VLOOKUP($C$8,$DD$8:$DM$27,10,0)<0,0,VLOOKUP($C$8,$DD$8:$DM$27,10,0)))","v":"４"},null,null,null,{"$f":"IF(U28=\"\",\"\",\"－\")","v":"－"},null,{"$f":"DBCS(ABS(VALUE(IF(VLOOKUP($C$8,$DD$8:$DM$27,8,0)>0,0,VLOOKUP($C$8,$DD$8:$DM$27,8,0)))+VALUE(IF(VLOOKUP($C$8,$DD$8:$DM$27,9,0)>0,0,VLOOKUP($C$8,$DD$8:$DM$27,9,0)))+VALUE(IF(VLOOKUP($C$8,$DD$8:$DM$27,10,0)>0,0,VLOOKUP($C$8,$DD$8:$DM$27,10,0)))))","v":"３"}]
[]
[]
[null,null,null,null,null,null,null,null,null,null,"=",null,null,{"$f":"O28-U28","v":1}]